Workbook

Sheet Contenido
D2: MACROPROCESO ESTRATÉGICO | G2: CÓDIGO: ESG-ESG-GAS-r003
D3: PROCESO GESTIÓN DE SISTEMAS INTEGRADOS | G3: VERSIÓN: 2
D4: GESTIÓN DEL RIESGO SISTEMA DE GESTIÓN ANTISOBORNO | G4: VIGENCIA: 2024-08-09
G5: PÁGINA: 1 de 29
B7: 13.
F8: Actualización de fecha: | G8: 08 de agosto de 2024
B9: Procesos:
F10: Fecha de actualización: | G10: 9 de agosto de 2024.
D12: 1 | F12: Autoevaluación y Acreditación
D13: 2 | F13: Comunicaciones
D14: 3 | F14: Planeación Institucional
D15: 4 | F15: Proyectos Especiales y Relaciones Interinstitucionales
D16: 5 | F16: Sistema de Gestión de la Calidad
D17: 6 | F17: Sistema de Gestión Ambiental
D18: 7 | F18: Sistema de Gestión de Seguridad y Salud en el Trabajo
D19: 8 | F19: Sistema de Gestión de Seguridad de la Información
D20: 9 | F20: Sistema de Gestión de Antisoborno
D21: 10 | F21: Admisiones y Registro
D22: 11 | F22: Bienestar Universitario
D23: 12 | F23: Ciencia Tecnología e Innovación
D24: 13 | F24: Dialogando con el Mundo
D25: 14 | F25: Formación y Aprendizaje
D26: 15 | F26: Graduados
D27: 16 | F27: Interacción Social Universitaria
D28: 17 | F28: Apoyo Académico
D29: 18 | F29: Bienes y Servicios
D30: 19 | F30: Documental
D31: 20 | F31: Financiera
D32: 21 | F32: Jurídica
D33: 22 | F33: Sistemas y Tecnología
D34: 23 | F34: Talento Humano
D35: 24 | F35: Control Disciplinario
D36: 25 | F36: Control Interno
D37: 26 | F37: Servicio de Atención al Ciudadano
B39: OPORTUNIDADES | G39: Contexto
B41: 13- 46.18

Sheet CONTEXTO DOFA
B2: MACROPROCESO ESTRATÉGICO | N2: CÓDIGO: ESG-GAS-r003
B3: PROCESO GESTIÓN DE SISTEMAS INTEGRADOS SISTEMA DE GESTIÓN ANTISOBORNO | N3: VERSIÓN: 2
N4: VIGENCIA: 2024-08-09
B5: GESTIÓN DEL RIESGO SISTEMA DE GESTIÓN ANTISOBORNO | N5: PÁGINA: 2 de 29
A6: 13.
A7: CONTEXTO - DOFA | C7: PARTES INTERESADAS | L7: TOTAL | M7: PORCENTAJE | N7: INTERPRETACIÓN
C8: Alta Dirección | D8: Consejo Superior | E8: Contratistas / Proveedores | F8: Entes de Control | G8: Cuerpos Colegiados | H8: Estudiantes | I8: Personal Administrativo | J8: Cumunidad Universitaria | K8: Procesos Internos
A9: DEBILIDADES | B9: ESTADO | C9: 0.1 | D9: 0.1 | E9: 0.15 | F9: 0.1 | G9: 0.1 | H9: 0.1 | I9: 0.15 | J9: 0.1 | K9: 0.1 | L9: =SUM(C9:K9) -> 1 | M9: =+L9 -> 1
A10: D1. Capacidad organizacional para anticiparse y/o identificar el riesgo de soborno. | B10: 1 | C10: 5 | D10: 5 | E10: 4 | F10: 3 | G10: 3 | H10: 3 | I10: 3 | J10: 4 | K10: 3 | L10: 33 | M10: =+SUMPRODUCT(C$9:K$9,C10:K10)/5 -> 0.73 | N10: =IF(M10<=0.6,"BAJO IMPACTO",IF(M10<=0.8,"MEDIO IMPACTO RECOMENDABLE EVALUARLO EN EL RIESGO",IF(M10<=1,"ALTO IMPACTO OBLIGATORIO ARTICULARLA A UNO DE LOS RIESGOS"))) -> MEDIO IMPACTO RECOMENDABLE EVALUARLO EN EL RIESGO | P10: 0
A11: D2. Bajo nivel de responsabilidad de los socios de negocio | B11: 1 | C11: 4 | D11: 4 | E11: 5 | F11: 3 | G11: 1 | H11: 1 | I11: 1 | J11: 4 | K11: 2 | L11: 25 | M11: 0.56 | N11: BAJO IMPACTO | P11: 1
A12: D3. Se desconoce si los Sistemas de Gestión ofrecen elementos de control para los riesgos de soborno | B12: 1 | C12: 4 | D12: 4 | E12: 4 | F12: 2 | G12: 2 | H12: 2 | I12: 3 | J12: 3 | K12: 3 | L12: 27 | M12: 0.61 | N12: MEDIO IMPACTO RECOMENDABLE EVALUARLO EN EL RIESGO
A13: D4. Los controles existentes en cada una de las actividades de los procedimientos identificados no tienen el alcance para prevenir y/o mitigar los hechos generadores de soborno. | B13: 1 | C13: 4 | D13: 4 | E13: 5 | F13: 3 | G13: 4 | H13: 4 | I13: 4 | J13: 5 | K13: 4 | L13: 37 | M13: 0.83 | N13: ALTO IMPACTO OBLIGATORIO ARTICULARLA A UNO DE LOS RIESGOS
A14: D5. No se encuentran identificadas para el sistema de gestión antisoborno, interacciones entre los procesos y relación de los procesos con los requisitos de ISO 37001 | B14: 1 | C14: 3 | D14: 3 | E14: 3 | F14: 3 | G14: 4 | H14: 4 | I14: 5 | J14: 5 | K14: 4 | L14: 34 | M14: 0.76 | N14: MEDIO IMPACTO RECOMENDABLE EVALUARLO EN EL RIESGO
A15: D6. No se cuenta con controles operacionales para socios de negocios que permita mitigar o evitar posibles hechos de soborno | B15: 1 | C15: 5 | D15: 5 | E15: 4 | F15: 3 | G15: 2 | H15: 2 | I15: 2 | J15: 2 | K15: 2 | L15: 27 | M15: 0.6 | N15: BAJO IMPACTO
A16: D7. Deficiente innovación tecnologica que impide la actualización y/o modernización de materiales y equipos destinados a la gestión y control tecnologica de los riesgos de soborno. | B16: 1 | C16: 5 | D16: 5 | E16: 4 | F16: 4 | G16: 3 | H16: 3 | I16: 4 | J16: 4 | K16: 4 | L16: 36 | M16: 0.8 | N16: MEDIO IMPACTO RECOMENDABLE EVALUARLO EN EL RIESGO
A17: D8. Aceptación de los riesgos de soborno en las acciones diarias de la Institución como algo normal en la cultura organizacional | B17: 1 | C17: 5 | D17: 5 | E17: 4 | F17: 3 | G17: 3 | H17: 3 | I17: 5 | J17: 4 | K17: 4 | L17: 36 | M17: 0.81 | N17: ALTO IMPACTO OBLIGATORIO ARTICULARLA A UNO DE LOS RIESGOS
A18: D9. Ineficientes reglas o procedimientos gerenciales que faciliten la toma de decisiones disciplinarias o juridicas en torno a la Gestión Antisoborno. | B18: 1 | C18: 4 | D18: 4 | E18: 4 | F18: 3 | G18: 3 | H18: 2 | I18: 3 | J18: 4 | K18: 3 | L18: 30 | M18: 0.67 | N18: MEDIO IMPACTO RECOMENDABLE EVALUARLO EN EL RIESGO
A19: D10. Resistencia al cambio de los asuntos internos y externos de la Institución que permita el monitoreo y revisión de los posibles hechos de soborno. | B19: 1 | C19: 5 | D19: 5 | E19: 3 | F19: 3 | G19: 4 | H19: 4 | I19: 4 | J19: 4 | K19: 4 | L19: 36 | M19: 0.79 | N19: MEDIO IMPACTO RECOMENDABLE EVALUARLO EN EL RIESGO
A20: AMENAZAS
A21: A1. Posibilidad de no mantener la información financiera y contractual en su etapa secreta favoreciendo con ello intereses particulares | B21: 1 | C21: 4 | D21: 4 | E21: 5 | F21: 3 | G21: 2 | H21: 2 | I21: 4 | J21: 3 | K21: 3 | L21: =SUM(C21:K21) -> 30 | M21: =+SUMPRODUCT(C$9:K$9,C21:K21)/5 -> 0.69 | N21: =IF(M21<=0.6,"BAJO IMPACTO",IF(M21<=0.8,"MEDIO IMPACTO RECOMENDABLE EVALUARLO EN EL RIESGO",IF(M21<=1,"ALTO IMPACTO OBLIGATORIO ARTICULARLA A UNO DE LOS RIESGOS"))) -> MEDIO IMPACTO RECOMENDABLE EVALUARLO EN EL RIESGO
A22: A2. Mantener competidores con poca transparencia y con evidencia de actos de corrupción o soborno en el proceso de selección. | B22: 1 | C22: 5 | D22: 5 | E22: 5 | F22: 3 | G22: 2 | H22: 2 | I22: 4 | J22: 3 | K22: 4 | L22: 33 | M22: 0.75 | N22: MEDIO IMPACTO RECOMENDABLE EVALUARLO EN EL RIESGO
A23: A3. Contexto político que puede interferir en el proceso contractual en epoca electoral | B23: 1 | C23: 5 | D23: 5 | E23: 5 | F23: 3 | G23: 1 | H23: 1 | I23: 3 | J23: 4 | K23: 3 | L23: 30 | M23: 0.68 | N23: MEDIO IMPACTO RECOMENDABLE EVALUARLO EN EL RIESGO
A24: A4. El Estudiante no exige el cumplimiento de las condiciones antisoborno en la Organización. | B24: 1 | C24: 4 | D24: 4 | E24: 4 | F24: 2 | G24: 3 | H24: 4 | I24: 3 | J24: 3 | K24: 4 | L24: 31 | M24: 0.69 | N24: MEDIO IMPACTO RECOMENDABLE EVALUARLO EN EL RIESGO
A25: A5. Ordenamiento juridico colombiano ineficaz al momento de impartir castigo o sanción en hechos comprobados de soborno. | B25: 1 | C25: 3 | D25: 3 | E25: 5 | F25: 4 | G25: 2 | H25: 2 | I25: 4 | J25: 2 | K25: 4 | L25: 29 | M25: 0.67 | N25: MEDIO IMPACTO RECOMENDABLE EVALUARLO EN EL RIESGO
A26: A6. Desconocimiento de la Entidad en cuanto a la gestión y control de los posibles hechos de soborno. | B26: 1 | C26: 5 | D26: 5 | E26: 4 | F26: 2 | G26: 4 | H26: 4 | I26: 4 | J26: 4 | K26: 4 | L26: 36 | M26: 0.8 | N26: MEDIO IMPACTO RECOMENDABLE EVALUARLO EN EL RIESGO
A27: A7. Falta de cooperación entre los organismos de control a nivel nacional para optimizar la gestión y valoración antisoborno. | B27: 1 | C27: 5 | D27: 5 | E27: 3 | F27: 3 | G27: 2 | H27: 2 | I27: 3 | J27: 3 | K27: 4 | L27: 30 | M27: 0.66 | N27: MEDIO IMPACTO RECOMENDABLE EVALUARLO EN EL RIESGO
A28: A8. Demanda de servicios que desborda la capacidad de respuesta y disminuye la capacidad institucional de suplir las necesidades de la comunidad universitaria. | B28: 1 | C28: 5 | D28: 5 | E28: 4 | F28: 2 | G28: 2 | H28: 3 | I28: 5 | J28: 3 | K28: 5 | L28: 34 | M28: 0.77 | N28: MEDIO IMPACTO RECOMENDABLE EVALUARLO EN EL RIESGO
A29: A9. Incumplimientos normativos aplicables con relación comercial con Entidades extranjeras. | B29: 1 | C29: 5 | D29: 5 | E29: 4 | F29: 2 | G29: 2 | H29: 3 | I29: 5 | J29: 3 | K29: 5 | L29: =SUM(C29:K29) -> 34 | M29: =+SUMPRODUCT(C$9:K$9,C29:K29)/5 -> 0.77 | N29: MEDIO IMPACTO RECOMENDABLE EVALUARLO EN EL RIESGO
A30: A10. Disminución presupuestal que impida la implementación del SGAS. | B30: 1 | C30: 5 | D30: 5 | E30: 3 | F30: 4 | G30: 4 | H30: 4 | I30: 4 | J30: 4 | K30: 4 | L30: 37 | M30: 0.81 | N30: ALTO IMPACTO OBLIGATORIO ARTICULARLA A UNO DE LOS RIESGOS
A31: FORTALEZAS
A32: F1. La Institución cuenta con un Sistema de Gestión de Calidad, que ha sido implementado con base en los requisitos de ISO 9001:2015. | B32: 1 | C32: 2 | D32: 2 | E32: 4 | F32: 3 | G32: 4 | H32: 4 | I32: 5 | J32: 5 | K32: 5 | L32: =SUM(C32:K32) -> 34 | M32: =+SUMPRODUCT(C$9:K$9,C32:K32)/5 -> 0.77 | N32: =IF(M32<=0.6,"BAJO IMPACTO",IF(M32<=0.8,"MEDIO IMPACTO RECOMENDABLE EVALUARLO",IF(M32<=1,"ALTO IMPACTO OBLIGATORIO ARTICULARLA A UNA DE LAS OPORTUNIDADES"))) -> MEDIO IMPACTO RECOMENDABLE EVALUARLO
A33: F2. La Institución cuenta con la documentación de los procesos y procedimientos haciendo mas fácil la identificación de los puntos críticos en lo que se puede presentar el hecho de soborno. | B33: 1 | C33: 4 | D33: 4 | E33: 4 | F33: 2 | G33: 3 | H33: 3 | I33: 4 | J33: 4 | K33: 5 | L33: 33 | M33: 0.74 | N33: MEDIO IMPACTO RECOMENDABLE EVALUARLO
A34: F3. Se tiene establecida un línea jerarquica que facilita la definición de roles y responsabilidades dentro del Sistema de Gestión Antisoborno. | B34: 1 | C34: 3 | D34: 3 | E34: 4 | F34: 3 | G34: 3 | H34: 2 | I34: 4 | J34: 4 | K34: 3 | L34: 29 | M34: 0.66 | N34: MEDIO IMPACTO RECOMENDABLE EVALUARLO
A35: F4. El talento humano cuenta con las compentencias interdisciplinarias para la implementación del Sistema de Gestión Antisoborno. | B35: 1 | C35: 1 | D35: 1 | E35: 5 | F35: 3 | G35: 4 | H35: 4 | I35: 4 | J35: 4 | K35: 4 | L35: 30 | M35: 0.69 | N35: MEDIO IMPACTO RECOMENDABLE EVALUARLO
A36: F5. Compromiso de la Alta Dirección en la implementación del SGAS. | B36: 1 | C36: 1 | D36: 1 | E36: 4 | F36: 2 | G36: 2 | H36: 2 | I36: 2 | J36: 4 | K36: 3 | L36: 21 | M36: 0.48 | N36: BAJO IMPACTO
A37: F6. Asignación presupuestal para el SGAS con base en los lineamientos de la NTC ISO-37001/2016 | B37: 1 | C37: 1 | D37: 1 | E37: 5 | F37: 3 | G37: 4 | H37: 4 | I37: 4 | J37: 4 | K37: 4 | L37: 30 | M37: 0.69 | N37: MEDIO IMPACTO RECOMENDABLE EVALUARLO
A38: F7. Desarrollo de métodos de comunicación interna y externa que permiten la socialización divulgación y sensibilización del SGAS (NTC ISO-37001/2016). | B38: 1 | C38: 3 | D38: 3 | E38: 5 | F38: 3 | G38: 2 | H38: 2 | I38: 4 | J38: 4 | K38: 4 | L38: 30 | M38: 0.69 | N38: MEDIO IMPACTO RECOMENDABLE EVALUARLO
A39: F8. Se siguen los lineamientos de la NTC ISO-37001/2016 que permite la implementación del SGAS según la normatividad vigente. | B39: 1 | C39: 5 | D39: 5 | E39: 5 | F39: 3 | G39: 4 | H39: 3 | I39: 3 | J39: 3 | K39: 3 | L39: 34 | M39: 0.76 | N39: MEDIO IMPACTO RECOMENDABLE EVALUARLO
A40: F9. Aseguramiento confiable en el proceso de selección y desarrollo de proveedores (banco de proveedores). | B40: 1 | C40: 4 | D40: 4 | E40: 3 | F40: 2 | G40: 3 | H40: 2 | I40: 4 | J40: 2 | K40: 2 | L40: 26 | M40: 0.59 | N40: BAJO IMPACTO
A41: F10. Ampliación del SGAS a unidades regionales que desarrollan la misión y visión de la Organización. | B41: 1 | C41: 4 | D41: 4 | E41: 5 | F41: 3 | G41: 2 | H41: 2 | I41: 4 | J41: 3 | K41: 3 | L41: 30 | M41: 0.69 | N41: MEDIO IMPACTO RECOMENDABLE EVALUARLO
A42: OPORTUNIDADES
A43: O1. Reconocimiento, credibilidad y confianza por parte de la comunidad universitaria. | B43: 1 | C43: 5 | D43: 5 | E43: 4 | F43: 3 | G43: 2 | H43: 2 | I43: 3 | J43: 2 | K43: 2 | L43: =SUM(C43:K43) -> 28 | M43: =+SUMPRODUCT(C$9:K$9,C43:K43)/5 -> 0.63 | N43: =IF(M43<=0.6,"BAJO IMPACTO",IF(M43<=0.8,"MEDIO IMPACTO RECOMENDABLE EVALUARLO",IF(M43<=1,"ALTO IMPACTO OBLIGATORIO ARTICULARLA A UNA DE LAS OPORTUNIDADES"))) -> MEDIO IMPACTO RECOMENDABLE EVALUARLO
A44: O2. Autonomía universitaria. | B44: 1 | C44: 4 | D44: 4 | E44: 3 | F44: 2 | G44: 2 | H44: 3 | I44: 3 | J44: 3 | K44: 3 | L44: 27 | M44: 0.6 | N44: BAJO IMPACTO
A45: O3. Implementación de la Política de Gobierno Digital que permita tener un gobierno en línea de cara al ciudadano en el ejercicio de los deberes misionales de la Universidad. | B45: 1 | C45: 3 | D45: 3 | E45: 4 | F45: 3 | G45: 2 | H45: 2 | I45: 4 | J45: 4 | K45: 3 | L45: 28 | M45: 0.64 | N45: MEDIO IMPACTO RECOMENDABLE EVALUARLO
A46: O4. Organización que contribuye a la consecución de los fines estatales siendo ejemplo para otras instituciones de educación superior. | B46: 1 | C46: 3 | D46: 3 | E46: 5 | F46: 2 | G46: 3 | H46: 3 | I46: 3 | J46: 3 | K46: 3 | L46: 28 | M46: 0.64 | N46: MEDIO IMPACTO RECOMENDABLE EVALUARLO
A47: O5. Posibilidad de generar alianzas interinstitucionales, regionales, nacionales e internacionales que permitan el fortalecimiento de la gestión institucional. | B47: 1 | C47: 4 | D47: 4 | E47: 5 | F47: 3 | G47: 2 | H47: 2 | I47: 4 | J47: 3 | K47: 4 | L47: 31 | M47: 0.71 | N47: MEDIO IMPACTO RECOMENDABLE EVALUARLO
A48: O6. Obtener por parte de un ente certificador el certificado en gestión antisoborno con base en los lineamientos de la Norma ISO 37001/2016 | B48: 1 | C48: 4 | D48: 4 | E48: 4 | F48: 3 | G48: 2 | H48: 2 | I48: 2 | J48: 2 | K48: 2 | L48: 25 | M48: 0.56 | N48: BAJO IMPACTO
A49: O7. Convertirse en un socio de negocio estrategico consolidando para ello una imagen de prevención de riesgos de soborno ante clientes, proveedores contratistas en el marco de la legalidad y la integridad. | B49: 1 | C49: 3 | D49: 3 | E49: 3 | F49: 2 | G49: 2 | H49: 3 | I49: 4 | J49: 3 | K49: 2 | L49: 25 | M49: 0.57 | N49: BAJO IMPACTO
A50: O8. Fortalecer la estrategia de transparencia y lucha contra la corrupción desde la gestión y valoración de los riesgos de soborno. | B50: 1 | C50: 4 | D50: 4 | E50: 4 | F50: 3 | G50: 2 | H50: 3 | I50: 4 | J50: 2 | K50: 2 | L50: 28 | M50: 0.64 | N50: MEDIO IMPACTO RECOMENDABLE EVALUARLO
A51: O9. Identificación de un contexto situacional por medio del analisis GAP en gestión antisoborno. | B51: 1 | C51: 3 | D51: 3 | E51: 4 | F51: 2 | G51: 3 | H51: 3 | I51: 2 | J51: 2 | K51: 2 | L51: 24 | M51: 0.54 | N51: BAJO IMPACTO
A52: O10. Existe una apuesta del Gobierno Nacional para tener una lucha frontal contra la corrupción y el soborno transnacional. | B52: 1 | C52: 3 | D52: 3 | E52: 3 | F52: 3 | G52: 3 | H52: 3 | I52: 4 | J52: 3 | K52: 2 | L52: 27 | M52: 0.61 | N52: MEDIO IMPACTO RECOMENDABLE EVALUARLO
A54: 13- 46.18

Sheet 1
D2: MACROPROCESO ESTRATÉGICO | Z2: CÓDIGO: ESG-ESG-GAS-r003
D3: PROCESO GESTIÓN DE SISTEMAS INTEGRADOS | Z3: VERSIÓN: 2
D4: GESTIÓN DEL RIESGO SISTEMA DE GESTIÓN ANTISOBORNO | Z4: VIGENCIA: 2024-08-09
Z5: PÁGINA: 3 de 29
B7: 13.
C8: Proceso responsable: | D8: =Contenido!F12 -> Autoevaluación y Acreditación | G8: Objetivo del Proceso: | H8: Coordinar los procesos de Registro Calificado, Autoevaluación y Acreditación de los programas académicos para cumplir con los requerimientos del Ministerio de Educación Nacional (MEN) y del Consejo Nacional de Acreditación (CNA), a través de la cultura del aseguramiento de la calidad. | Z8: Fecha de actualización: | AA8: =Contenido!G10 -> 9 de agosto de 2024.
B10: Procedimiento Asociado | C10: Posibles hechos de soborno (Descripción del riesgo) | D10: Rol del sobornador | E10: Organizaciones externas, funciones o cargos expuestos al hecho de soborno | F10: Riesgos de soborno (Efecto de la incertidumbre sobre los objetivos estratégicos) | G10: Riesgos de soborno (Efecto de la incertidumbre sobre los objetivos del SGAS) | H10: Probabilidad del riesgo inherente | J10: Impacto del riesgo inherente | L10: Nivel de riesgo inherente | M10: Valoración del nivel de riesgo inherente | N10: Controles actuales existentes | O10: Responsable del control | P10: Documentación | Q10: Control | T10: Implementación | V10: Probabilidad del riesgo residual | W10: Impacto del riesgo residual | X10: Nivel de riesgo residual | Y10: Valoración del nivel de riesgo residual | Z10: Controles adicionales requeridos | AA10: Observaciones 2a. Línea (Oficial Antisoborno) | AB10: Observaciones 3a. Línea (Dirección Control Interno)
H11: Probabilidad | I11: % | J11: Impacto | K11: % | Q11: Tipo | R11: % Peso | S11: Afectación | T11: Tipo | U11: % Peso
B12: EAAP03 - Autoevaluación de programas académicos | C12: Recibir dádivas o favores personales de los grupos de interes para alterar los resultados de los insumos o entregables del proceso de autoevaluación de programas académicos y sedes. | D12: Director y/o Gestor de la Dirección de Autoevaluación y Acreditación | E12: Grupos de interes, comunidad academica. | F12: Deterioro de la reputación institucional que afecta su capacidad y gobernanza. | G12: Debilidades en la comprensión de los lineamientos establecidos del sistema de gestión antisoborno por parte del personal administrativo y académico de la universidad. | H12: Muy baja | I12: =IF(H12=Tablas!$D$7,"20%",IF(H12=Tablas!$D$6,"40%",IF(H12=Tablas!$D$5,"60%",IF(H12=Tablas!$D$4,"80%",IF(H12=Tablas!$D$3,"100%"))))) -> 20% | J12: Moderado | K12: =IF(J12=Tablas!$G$10,"20%",IF(J12=Tablas!$H$10,"40%",IF(J12=Tablas!$I$10,"60%",IF(J12=Tablas!$J$10,"80%",IF(J12=Tablas!$K$10,"100%"))))) -> 60% | L12: =I12*K12 -> 0.12 | M12: =IF(L12<=12%,"Bajo",IF(L12<=24%,"Medio",IF(L12<=40%,"Alto","Muy Alto"))) -> Bajo | N12: Sistematización del proceso de Autoevaluación a través del aplicativo establecido. Revisión Cooperativa (Programa académico, Asesor de la Dirección de AyA, Consejo de Facultad y Decanos). | O12: Dirección de Autoevaluación y Acreditación | P12: Informes definitivos de Autoevaluación de los programas y sedes. | Q12: Preventivo | R12: =IF(Q12=Tablas!$R$3,"25%",IF(Q12=Tablas!$R$4,"15%",IF(Q12=Tablas!$R$5,"10%",))) -> 25% | S12: =IF(Q12=Tablas!$R$3,"Probabilidad",IF(Q12=Tablas!$R$4,"Probabilidad",IF(Q12=Tablas!$R$5,"Impacto",))) -> Probabilidad | T12: Manual | U12: =IF(T12=Tablas!$U$3,"25%",IF(T12=Tablas!$U$4,"15%",)) -> 15% | V12: =I12-(I12*(R12+U12)) -> 0.12 | W12: =K12 -> 60% | X12: =V12*W12 -> 0.072 | Y12: =IF(X12<=12%,"Bajo",IF(X12<=24%,"Medio",IF(X12<=40%,"Alto","Muy Alto"))) -> Bajo | Z12: 1. Apropiación y adopción de valores y principios institucionales. 2. Desarrollo del reto de integridad actualizado con la gestión antisobormo. 3. Fortalecimiento del botón "Yo Denuncio". 4. Fortalecimiento de la cultura de integridad y transparencia. | AA12: Se realiza la revisión y actualización de los riesgos identificados por el proceso, así como los controles establecidos y se evidencia ejecución de los mismos por parte de proceso y no se ha identificado materialización de riegos de soborno.
B14: 13- 46.18
B16: Diagonal 18 No. 20-29 Fusagasugá – Cundinamarca Teléfono (601) 8281483 Línea Gratuita 018000180414 www.ucundinamarca.edu.co E-mail: info@ucundinamarca.edu.co NIT: 890.680.062-2
B18: Documento controlado por el Sistema de Gestión de la Calidad Asegúrese que corresponde a la última versión consultando el Portal Institucional

Sheet 2
D2: MACROPROCESO ESTRATÉGICO | Z2: CÓDIGO: ESG-ESG-GAS-r003
D3: PROCESO GESTIÓN DE SISTEMAS INTEGRADOS | Z3: VERSIÓN: 2
D4: GESTIÓN DEL RIESGO SISTEMA DE GESTIÓN ANTISOBORNO | Z4: VIGENCIA: 2024-08-09
Z5: PÁGINA: 4 de 29
B7: 13.
C8: Proceso responsable: | D8: =Contenido!F13 -> Comunicaciones | G8: Objetivo del Proceso: | H8: Desarrollar estrategias de comunicación con el principio de la transparencia y oportunidad para los grupos de interés de la Universidad, haciendo uso de los diferentes medios de comunicación con el fin de fortalecer la imagen institucional. | Z8: Fecha de actualización: | AA8: =Contenido!G10 -> 9 de agosto de 2024.
B10: Procedimiento Asociado | C10: Posibles hechos de soborno (Descripción del riesgo) | D10: Rol del sobornador | E10: Organizaciones externas, funciones o cargos expuestos al hecho de soborno | F10: Riesgos de soborno (Efecto de la incertidumbre sobre los objetivos estratégicos) | G10: Riesgos de soborno (Efecto de la incertidumbre sobre los objetivos del SGAS) | H10: Probabilidad del riesgo inherente | J10: Impacto del riesgo inherente | L10: Nivel de riesgo inherente | M10: Valoración del nivel de riesgo inherente | N10: Controles actuales existentes | O10: Responsable del control | P10: Documentación | Q10: Control | T10: Implementación | V10: Probabilidad del riesgo residual | W10: Impacto del riesgo residual | X10: Nivel de riesgo residual | Y10: Valoración del nivel de riesgo residual | Z10: Controles adicionales requeridos | AA10: Observaciones 2a. Línea (Oficial Antisoborno) | AB10: Observaciones 3a. Línea (Dirección Control Interno)
H11: Probabilidad | I11: % | J11: Impacto | K11: % | Q11: Tipo | R11: % Peso | S11: Afectación | T11: Tipo | U11: % Peso
B12: ECOP01 - Procedimiento Único de solicitudes | C12: El Gestor de la Oficina Asesora de Comunicaciones solicita o reciba un pago y/o favorecimiento personal para desarrollar la propuesta de producto o servicio solicitada, sin esta cumplir estrictamente los requisitos de acuerdo con las directrices internas del proceso. | D12: Funcionario de la Oficina Asesora de Comunicaciones | E12: Gestor responsable de proceso de comunicaciones | F12: Deterioro de la imagen institucional de la UCundinamarca frente a la comunidad educativa y la ciudadania en general. | G12: Deficiencia en las acciones de control implementadas que prevengan actuaciones o comportamientos en contravía de lo dispuesta en del Código Autonómico de la UCundinamarca Generación Siglo XXI. | H12: Muy baja | I12: =IF(H12=Tablas!$D$7,"20%",IF(H12=Tablas!$D$6,"40%",IF(H12=Tablas!$D$5,"60%",IF(H12=Tablas!$D$4,"80%",IF(H12=Tablas!$D$3,"100%"))))) -> 20% | J12: Mayor | K12: =IF(J12=Tablas!$G$10,"20%",IF(J12=Tablas!$H$10,"40%",IF(J12=Tablas!$I$10,"60%",IF(J12=Tablas!$J$10,"80%",IF(J12=Tablas!$K$10,"100%"))))) -> 80% | L12: =I12*K12 -> 0.16 | M12: =IF(L12<=12%,"Bajo",IF(L12<=24%,"Medio",IF(L12<=40%,"Alto","Muy Alto"))) -> Medio | N12: 1. Sistematización de las solicitudes traves de la Plataforma Institucional. (solicitudes cargadas). 2. Modulo Administrador (verifica y asigna la solicitud recibida). 3. Cumplimiento del documento ECOI001 - Instructivo para la realización de solicitudes a traves de SIS. | O12: Oficina Asesora de Comunicaciones | P12: Procedimiento ECOP01 - PROCEDIMIENTO ÚNICO DE SOLICITUDES. ECOI001 - INSTRUCTIVO PARA LA REALIZACION DE SOLICITUDES A TRAVES DE SIS. ECOM001 - MANUAL DE COMUNICACIONES. | Q12: Preventivo | R12: =IF(Q12=Tablas!$R$3,"25%",IF(Q12=Tablas!$R$4,"15%",IF(Q12=Tablas!$R$5,"10%",))) -> 25% | S12: =IF(Q12=Tablas!$R$3,"Probabilidad",IF(Q12=Tablas!$R$4,"Probabilidad",IF(Q12=Tablas!$R$5,"Impacto",))) -> Probabilidad | T12: Manual | U12: =IF(T12=Tablas!$U$3,"25%",IF(T12=Tablas!$U$4,"15%",)) -> 15% | V12: =I12-(I12*(R12+U12)) -> 0.12 | W12: =K12 -> 80% | X12: =V12*W12 -> 0.096 | Y12: =IF(X12<=12%,"Bajo",IF(X12<=24%,"Medio",IF(X12<=40%,"Alto","Muy Alto"))) -> Bajo | Z12: 1. Reuniones periodicas del equipo de trabajo para identificar problemas y/o oportunidades del aplicativo SIS y los servicios allí prestados. | AA12: Se realiza la revisión y actualización de los riesgos identificados por el proceso, así como los controles establecidos y se evidencia ejecución de los mismos por parte de proceso y no se ha identificado materialización de riegos de soborno.
B13: ECOP01 - Procedimiento Único de solicitudes | C13: El Gestor de la Oficina Asesora de Comunicaciones recibe una contraprestación para entregar elementos publicitarios diferentes a los solicitados, sin realizar el debido registro con justificación y destino. | D13: Funcionario de la Oficina Asesora de Comunicaciones | E13: Gestor responsable de proceso de comunicaciones | F13: Deterioro de la imagen institucional de la UCundinamarca frente a la comunidad educativa y la ciudadania en general. | G13: Deficiencia en las acciones de control implementadas que prevengan actuaciones o comportamientos en contravía de lo dispuesta en del Código Autonómico de la UCundinamarca Generación Siglo XXI. | H13: Muy baja | I13: =IF(H13=Tablas!$D$7,"20%",IF(H13=Tablas!$D$6,"40%",IF(H13=Tablas!$D$5,"60%",IF(H13=Tablas!$D$4,"80%",IF(H13=Tablas!$D$3,"100%"))))) -> 20% | J13: Mayor | K13: =IF(J13=Tablas!$G$10,"20%",IF(J13=Tablas!$H$10,"40%",IF(J13=Tablas!$I$10,"60%",IF(J13=Tablas!$J$10,"80%",IF(J13=Tablas!$K$10,"100%"))))) -> 80% | L13: =I13*K13 -> 0.16 | M13: =IF(L13<=12%,"Bajo",IF(L13<=24%,"Medio",IF(L13<=40%,"Alto","Muy Alto"))) -> Medio | N13: Respuesta en el SIS. ECOF005 - REGISTRO DE ENTREGA DE MATERIAL PROMOCIONAL OFICINA ASESORA DE COMUNICACIONES. | O13: Oficina Asesora de Comunicaciones | P13: ECOP01 - PROCEDIMIENTO ÚNICO DE SOLICITUDES. Fomato diligenciado. ECOF005 - REGISTRO DE ENTREGA DE MATERIAL PROMOCIONAL OFICINA ASESORA DE COMUNICACIONES. | Q13: Preventivo | R13: =IF(Q13=Tablas!$R$3,"25%",IF(Q13=Tablas!$R$4,"15%",IF(Q13=Tablas!$R$5,"10%",))) -> 25% | S13: =IF(Q13=Tablas!$R$3,"Probabilidad",IF(Q13=Tablas!$R$4,"Probabilidad",IF(Q13=Tablas!$R$5,"Impacto",))) -> Probabilidad | T13: Manual | U13: =IF(T13=Tablas!$U$3,"25%",IF(T13=Tablas!$U$4,"15%",)) -> 15% | V13: =I13-(I13*(R13+U13)) -> 0.12 | W13: =K13 -> 80% | X13: =V13*W13 -> 0.096 | Y13: =IF(X13<=12%,"Bajo",IF(X13<=24%,"Medio",IF(X13<=40%,"Alto","Muy Alto"))) -> Bajo | Z13: 1. Llevar un control interno del inventario a traves de un excel. | AA13: Se realiza la revisión y actualización de los riesgos identificados por el proceso, así como los controles establecidos y se evidencia ejecución de los mismos por parte de proceso y no se ha identificado materialización de riegos de soborno.
B15: 13- 46.18
B17: Diagonal 18 No. 20-29 Fusagasugá – Cundinamarca Teléfono (601) 8281483 Línea Gratuita 018000180414 www.ucundinamarca.edu.co E-mail: info@ucundinamarca.edu.co NIT: 890.680.062-2
B19: Documento controlado por el Sistema de Gestión de la Calidad Asegúrese que corresponde a la última versión consultando el Portal Institucional

Sheet 3
D2: MACROPROCESO ESTRATÉGICO | Z2: CÓDIGO: ESG-ESG-GAS-r003
D3: PROCESO GESTIÓN DE SISTEMAS INTEGRADOS | Z3: VERSIÓN: 2
D4: GESTIÓN DEL RIESGO SISTEMA DE GESTIÓN ANTISOBORNO | Z4: VIGENCIA: 2024-08-09
Z5: PÁGINA: 5 de 29
B7: 13.
C8: Proceso responsable: | D8: =Contenido!F14 -> Planeación Institucional | G8: Objetivo del Proceso: | H8: Fomentar una cultura de planeación mediante la gestión de planes, programas y proyectos que permitan apoyar la toma de decisiones estratégicas, el cumplimiento de la misión y el logro de la visión institucional. | Z8: Fecha de actualización: | AA8: =Contenido!G10 -> 9 de agosto de 2024.
B10: Procedimiento Asociado | C10: Posibles hechos de soborno (Descripción del riesgo) | D10: Rol del sobornador | E10: Organizaciones externas, funciones o cargos expuestos al hecho de soborno | F10: Riesgos de soborno (Efecto de la incertidumbre sobre los objetivos estratégicos) | G10: Riesgos de soborno (Efecto de la incertidumbre sobre los objetivos del SGAS) | H10: Probabilidad del riesgo inherente | J10: Impacto del riesgo inherente | L10: Nivel de riesgo inherente | M10: Valoración del nivel de riesgo inherente | N10: Controles actuales existentes | O10: Responsable del control | P10: Documentación | Q10: Control | T10: Implementación | V10: Probabilidad del riesgo residual | W10: Impacto del riesgo residual | X10: Nivel de riesgo residual | Y10: Valoración del nivel de riesgo residual | Z10: Controles adicionales requeridos | AA10: Observaciones 2a. Línea (Oficial Antisoborno) | AB10: Observaciones 3a. Línea (Dirección Control Interno)
H11: Probabilidad | I11: % | J11: Impacto | K11: % | Q11: Tipo | R11: % Peso | S11: Afectación | T11: Tipo | U11: % Peso
B12: EPIP02 - ESTIMACION DE INGRESOS, GASTOS Y DEFINICIÓN DE DISPOSICIONES GENERALES | C12: Que tercero interno ofrezca o prometa una dádiva para incluir y/o cambiar la destinación, el valor o el objeto de la inclusión o modificación de la línea de PAA de los proyectos de inversión. | D12: Gestor de Dirección de Planeación | E12: Funcionario de la Universidad de Cundinamarca | F12: Afectar la credibilidad y el buen nombre de la Universidad de Cundinamarca. | G12: Deficiencia en las acciones de control implementadas que prevengan actuaciones o comportamientos en contravía de lo dispuesta en del Código Autonómico de la UCundinamarca Generación Siglo XXI. | H12: Media | I12: =IF(H12=Tablas!$D$7,"20%",IF(H12=Tablas!$D$6,"40%",IF(H12=Tablas!$D$5,"60%",IF(H12=Tablas!$D$4,"80%",IF(H12=Tablas!$D$3,"100%"))))) -> 60% | J12: Mayor | K12: =IF(J12=Tablas!$G$10,"20%",IF(J12=Tablas!$H$10,"40%",IF(J12=Tablas!$I$10,"60%",IF(J12=Tablas!$J$10,"80%",IF(J12=Tablas!$K$10,"100%"))))) -> 80% | L12: =I12*K12 -> 0.48 | M12: =IF(L12<=12%,"Bajo",IF(L12<=24%,"Medio",IF(L12<=40%,"Alto","Muy Alto"))) -> Muy Alto | N12: Seguimiento trimestral a las líneas del PAA. Solicitud de la Secretaría Técnica del Comité de Contratación de las lineas que se incluyen o se modifican. Debida revisión y suscripción del formato dispuesto para las modificaciones al Plan Anual de Adquisiciones, para posterior publicación, una vez es aprobado por el Comité de Contratación. | O12: Dirección de Planeación Institucional | P12: Power BI: https://app.powerbi.com/view?r=eyJrIjoiYjdiMDRkZGUtNTgwOC00NjhkLWI0ODEtYTcyYTA5ZDY0OGJmIiwidCI6IjA3ZGE2N2EwLTFmNDMtNGU4Yy05NzdmLTVmODhiNjQ3MGVlNiIsImMiOjR9 Convocatorias Comité de Contratación Formato ABSF094- MODIFICACIONES AL PLAN ANUAL DE ADQUISICIONES | Q12: Preventivo | R12: =IF(Q12=Tablas!$R$3,"25%",IF(Q12=Tablas!$R$4,"15%",IF(Q12=Tablas!$R$5,"10%",))) -> 25% | S12: =IF(Q12=Tablas!$R$3,"Probabilidad",IF(Q12=Tablas!$R$4,"Probabilidad",IF(Q12=Tablas!$R$5,"Impacto",))) -> Probabilidad | T12: Manual | U12: =IF(T12=Tablas!$U$3,"25%",IF(T12=Tablas!$U$4,"15%",)) -> 15% | V12: =I12-(I12*(R12+U12)) -> 0.36 | W12: =K12 -> 80% | X12: =V12*W12 -> 0.288 | Y12: =IF(X12<=12%,"Bajo",IF(X12<=24%,"Medio",IF(X12<=40%,"Alto","Muy Alto"))) -> Alto | Z12: 1. Apropiación y adopción de valores y principios institucionales. 2. Desarrollo del reto de integridad actualizado con la gestión antisobormo. 3. Fortalecimiento del botón "Yo Denuncio". 4. Fortalecimiento de la cultura de integridad y transparencia. | AA12: Se realiza la revisión y actualización de los riesgos identificados por el proceso, así como los controles establecidos y se evidencia ejecución de los mismos por parte de proceso y no se ha identificado materialización de riegos de soborno.
B13: EPIP05 - Gestión del Banco Universitario de Programas y Proyectos de Inversión de la Universidad de Cundinamarca. | C13: Que un tercero interno ofrezca o prometa una dádiva para la priorización de proyectos de inversión sin las condiciones metodológicas requeridas por el Banco Universitario de Programas y Proyectos de la UCundinamarca. | D13: Gerente de Proyecto | E13: Funcionario de la Universidad de Cundinamarca | F13: Posible afectación reputacional por apropiación de recursos a proyectos de inversión sin el cumplimiento de requisitos. | G13: Deficiencia en las acciones de control implementadas que prevengan actuaciones o comportamientos en contravía de lo dispuesta en del Código Autonómico de la UCundinamarca Generación Siglo XXI. | H13: Media | I13: =IF(H13=Tablas!$D$7,"20%",IF(H13=Tablas!$D$6,"40%",IF(H13=Tablas!$D$5,"60%",IF(H13=Tablas!$D$4,"80%",IF(H13=Tablas!$D$3,"100%"))))) -> 60% | J13: Mayor | K13: =IF(J13=Tablas!$G$10,"20%",IF(J13=Tablas!$H$10,"40%",IF(J13=Tablas!$I$10,"60%",IF(J13=Tablas!$J$10,"80%",IF(J13=Tablas!$K$10,"100%"))))) -> 80% | L13: =I13*K13 -> 0.48 | M13: =IF(L13<=12%,"Bajo",IF(L13<=24%,"Medio",IF(L13<=40%,"Alto","Muy Alto"))) -> Muy Alto | N13: Validar con el Banco Universitario de Programas y proyectos de Inversión, la Dirección de Planeación Institucional y la Alta Dirección, la viabilidad presupuestal y prioridad de las propuestas de proyecto, garantizando así, su alineación estratégica y su impacto. | O13: Dirección de Planeación Institucional | P13: Registros de asistencia derivados del ejercicio de priorización de proyectos de inversión con la Dirección de Planeación Institucional y la Alta Dirección Muestra de análisis presupuestales suscritos de proyectos priorizados. | Q13: Preventivo | R13: =IF(Q13=Tablas!$R$3,"25%",IF(Q13=Tablas!$R$4,"15%",IF(Q13=Tablas!$R$5,"10%",))) -> 25% | S13: =IF(Q13=Tablas!$R$3,"Probabilidad",IF(Q13=Tablas!$R$4,"Probabilidad",IF(Q13=Tablas!$R$5,"Impacto",))) -> Probabilidad | T13: Manual | U13: =IF(T13=Tablas!$U$3,"25%",IF(T13=Tablas!$U$4,"15%",)) -> 15% | V13: =I13-(I13*(R13+U13)) -> 0.36 | W13: =K13 -> 80% | X13: =V13*W13 -> 0.288 | Y13: =IF(X13<=12%,"Bajo",IF(X13<=24%,"Medio",IF(X13<=40%,"Alto","Muy Alto"))) -> Alto | Z13: 1. Apropiación y adopción de valores y principios institucionales. 2. Desarrollo del reto de integridad actualizado con la gestión antisobormo. 3. Fortalecimiento del botón "Yo Denuncio". 4. Fortalecimiento de la cultura de integridad y transparencia. | AA13: Se realiza la revisión y actualización de los riesgos identificados por el proceso, así como los controles establecidos y se evidencia ejecución de los mismos por parte de proceso y no se ha identificado materialización de riegos de soborno.
B14: EPIP14 - Elaboración y seguimiento de planes Institucionales EPIP22 - Construcción y Seguimiento de Planes de Acción | C14: Que un tercero interno ofrezca o prometa una dádiva para que alterar los resultados de los indicadores trimestrales resultantes de los seguimientos del plan de acción anual. | D14: Gestor de Dirección de Planeación | E14: Funcionario de la Universidad de Cundinamarca | F14: Deterioro de la reputación institucional que afecta su capacidad y gobernanza. | G14: Deficiencia en las acciones de control implementadas que prevengan actuaciones o comportamientos en contravía de lo dispuesta en del Código Autonómico de la UCundinamarca Generación Siglo XXI. | H14: Media | I14: =IF(H14=Tablas!$D$7,"20%",IF(H14=Tablas!$D$6,"40%",IF(H14=Tablas!$D$5,"60%",IF(H14=Tablas!$D$4,"80%",IF(H14=Tablas!$D$3,"100%"))))) -> 60% | J14: Moderado | K14: =IF(J14=Tablas!$G$10,"20%",IF(J14=Tablas!$H$10,"40%",IF(J14=Tablas!$I$10,"60%",IF(J14=Tablas!$J$10,"80%",IF(J14=Tablas!$K$10,"100%"))))) -> 60% | L14: 0.36 | M14: Alto | N14: Las modificaciones y/o actualizaciones de las tareas del plan de acción deben contar con la aprobación de las dependencias líderes (Vicerrectoría Administrativa y Financiera, Vicerrectoría Académica y Secretaría General). Informes trimestrales presentados a la Comisión de Desempeño Institucional y al Comité SAC. | O14: Dirección de Planeación Institucional | P14: Correos electrónicos. Informe trimestral publicado en la página institucional. | Q14: Preventivo | R14: =IF(Q14=Tablas!$R$3,"25%",IF(Q14=Tablas!$R$4,"15%",IF(Q14=Tablas!$R$5,"10%",))) -> 25% | S14: =IF(Q14=Tablas!$R$3,"Probabilidad",IF(Q14=Tablas!$R$4,"Probabilidad",IF(Q14=Tablas!$R$5,"Impacto",))) -> Probabilidad | T14: Manual | U14: =IF(T14=Tablas!$U$3,"25%",IF(T14=Tablas!$U$4,"15%",)) -> 15% | V14: 0.36 | W14: 60% | X14: 0.216 | Y14: =IF(X14<=12%,"Bajo",IF(X14<=24%,"Medio",IF(X14<=40%,"Alto","Muy Alto"))) -> Medio | Z14: 1. Apropiación y adopción de valores y principios institucionales. 2. Desarrollo del reto de integridad actualizado con la gestión antisobormo. 3. Fortalecimiento del botón "Yo Denuncio". 4. Fortalecimiento de la cultura de integridad y transparencia. | AA14: Se realiza la revisión y actualización de los riesgos identificados por el proceso, así como los controles establecidos y se evidencia ejecución de los mismos por parte de proceso y no se ha identificado materialización de riegos de soborno.
B16: 13- 46.18
B18: Diagonal 18 No. 20-29 Fusagasugá – Cundinamarca Teléfono (601) 8281483 Línea Gratuita 018000180414 www.ucundinamarca.edu.co E-mail: info@ucundinamarca.edu.co NIT: 890.680.062-2
B19: Documento controlado por el Sistema de Gestión de la Calidad Asegúrese que corresponde a la última versión consultando el Portal Institucional

Sheet 4
D2: MACROPROCESO ESTRATÉGICO | Z2: CÓDIGO: ESG-ESG-GAS-r003
D3: PROCESO GESTIÓN DE SISTEMAS INTEGRADOS | Z3: VERSIÓN: 2
D4: GESTIÓN DEL RIESGO SISTEMA DE GESTIÓN ANTISOBORNO | Z4: VIGENCIA: 2024-08-09
Z5: PÁGINA: 6 de 29
B7: 13.
C8: Proceso responsable: | D8: =Contenido!F15 -> Proyectos Especiales y Relaciones Interinstitucionales | G8: Objetivo del Proceso: | H8: Promover y ejecutar proyectos con entidades públicas y/o privadas, nacionales e internacionales, mediante convenios y/o contratos interadministrativos, que permitan fortalecer la gestión de la Universidad de Cundinamarca a través de la generación de recursos financieros, transmisión de conocimientos a las comunidades y aprehensión para el mejoramiento académico. | Z8: Fecha de actualización: | AA8: =Contenido!G10 -> 9 de agosto de 2024.
B10: Procedimiento Asociado | C10: Posibles hechos de soborno (Descripción del riesgo) | D10: Rol del sobornador | E10: Organizaciones externas, funciones o cargos expuestos al hecho de soborno | F10: Riesgos de soborno (Efecto de la incertidumbre sobre los objetivos estratégicos) | G10: Riesgos de soborno (Efecto de la incertidumbre sobre los objetivos del SGAS) | H10: Probabilidad del riesgo inherente | J10: Impacto del riesgo inherente | L10: Nivel de riesgo inherente | M10: Valoración del nivel de riesgo inherente | N10: Controles actuales existentes | O10: Responsable del control | P10: Documentación | Q10: Control | T10: Implementación | V10: Probabilidad del riesgo residual | W10: Impacto del riesgo residual | X10: Nivel de riesgo residual | Y10: Valoración del nivel de riesgo residual | Z10: Controles adicionales requeridos | AA10: Observaciones 2a. Línea (Oficial Antisoborno) | AB10: Observaciones 3a. Línea (Dirección Control Interno)
H11: Probabilidad | I11: % | J11: Impacto | K11: % | Q11: Tipo | R11: % Peso | S11: Afectación | T11: Tipo | U11: % Peso
B12: EPRP01 – Gestión De Convenios Interinstitucionales | C12: Que el Gestor de la Dirección de Proyectos Especiales, solicite una dádiva y/o contraprestación para estructurar el análisis de conveniencia y direccionar las condiciones de contratación para el favorecimiento de terceros o de organismos cooperantes. | D12: Gestor de la Dirección de Proyectos Especiales asignado para la estructuración del análisis de conveniencia. | E12: Tercero / Entidad externa | F12: Deterioro de la imagen institucional de la UCundinamarca frente a la comunidad educativa y la ciudadania en general. Y afectar la credibilidad y buen nombre de la Universidad de Cundinamarca. | G12: Deficiencia en las acciones de control implementadas que prevengan actuaciones o comportamientos en contravía de lo dispuesta en del Código Autonómico de la UCundinamarca Generación Siglo XXI. | H12: Baja | I12: =IF(H12=Tablas!$D$7,"20%",IF(H12=Tablas!$D$6,"40%",IF(H12=Tablas!$D$5,"60%",IF(H12=Tablas!$D$4,"80%",IF(H12=Tablas!$D$3,"100%"))))) -> 40% | J12: Mayor | K12: =IF(J12=Tablas!$G$10,"20%",IF(J12=Tablas!$H$10,"40%",IF(J12=Tablas!$I$10,"60%",IF(J12=Tablas!$J$10,"80%",IF(J12=Tablas!$K$10,"100%"))))) -> 80% | L12: =I12*K12 -> 0.32 | M12: =IF(L12<=12%,"Bajo",IF(L12<=24%,"Medio",IF(L12<=40%,"Alto","Muy Alto"))) -> Alto | N12: EPRF010 - HOJA DE RUTA DE CONVENIOS - Listas de chequeo donde se establece a ser solicitada a los contratistas y cooperantes. Revisión cooperativa (área financiera y revisión jurídica). | O12: Dirección de Proyectos Especiales y Relaciones Interinstitucionales | P12: EPRF010 - HOJA DE RUTA DE CONVENIOS EPRF011 - ANALISIS DE CONVENIENCIA CONVENIO DE COOPERACION ESPECIAL. EPRF012 - ANALISIS DE CONVENIENCIA PARA LA CELEBRACION DE ORDEN DE PRESTACION DE SERVICIOS / ORDEN CONTRACTUAL DE SERVICIOS / CONTRATO DE PRESTACION DE SERVICIOS EPRF018 - EVALUACIÓN JURIDICA. EPRF019 - EVALUACION FINANCIERA EPRF031 - EVALUACION TECNICA Y ECONOMICA PARA ORDEN / CONTRATO DE PRESTACION DE SERVICIOS / SUMINISTROS / COMPRA/VENTA OPS / CPS / CS / OS / CCV / OCV. | Q12: Preventivo | R12: =IF(Q12=Tablas!$R$3,"25%",IF(Q12=Tablas!$R$4,"15%",IF(Q12=Tablas!$R$5,"10%",))) -> 25% | S12: =IF(Q12=Tablas!$R$3,"Probabilidad",IF(Q12=Tablas!$R$4,"Probabilidad",IF(Q12=Tablas!$R$5,"Impacto",))) -> Probabilidad | T12: Manual | U12: =IF(T12=Tablas!$U$3,"25%",IF(T12=Tablas!$U$4,"15%",)) -> 15% | V12: =I12-(I12*(R12+U12)) -> 0.24 | W12: =K12 -> 80% | X12: =V12*W12 -> 0.192 | Y12: =IF(X12<=12%,"Bajo",IF(X12<=24%,"Medio",IF(X12<=40%,"Alto","Muy Alto"))) -> Medio | Z12: 1. Apropiación y adopción de valores y principios institucionales. 2. Desarrollo del reto de integridad actualizado con la gestión antisobormo. | AA12: Se realiza la revisión y actualización de los riesgos identificados por el proceso, así como los controles establecidos y se evidencia ejecución de los mismos por parte de proceso y no se ha identificado materialización de riegos de soborno.
B13: EPRP01 – Gestión De Convenios Interinstitucionales | C13: Que algún funcionario de la Direccion de Proyectos Especiales ofrezca o prometa una dadiva para obtener un beneficio a cambio de que se realice, omita o retarde cualquier acto relacionado con un proyecto de indole transnacional. | D13: Funcionario de la dirección de Proyectos Especiales | E13: Entidades Extranjeras | F13: Deterioro de la imagen institucional de la UCundinamarca frente a la comunidad educativa y la ciudadania en general. Y afectar la credibilidad y buen nombre de la U Cundinamarca. | H13: Muy baja | I13: =IF(H13=Tablas!$D$7,"20%",IF(H13=Tablas!$D$6,"40%",IF(H13=Tablas!$D$5,"60%",IF(H13=Tablas!$D$4,"80%",IF(H13=Tablas!$D$3,"100%"))))) -> 20% | J13: Mayor | K13: =IF(J13=Tablas!$G$10,"20%",IF(J13=Tablas!$H$10,"40%",IF(J13=Tablas!$I$10,"60%",IF(J13=Tablas!$J$10,"80%",IF(J13=Tablas!$K$10,"100%"))))) -> 80% | L13: =I13*K13 -> 0.16 | M13: =IF(L13<=12%,"Bajo",IF(L13<=24%,"Medio",IF(L13<=40%,"Alto","Muy Alto"))) -> Medio | N13: EPRF010 - HOJA DE RUTA DE CONVENIOS - Listas de chequeo donde se establece a ser solicitada a los contratistas y cooperantes. Revisión cooperativa (área financiera y revisión jurídica). | O13: Dirección de Proyectos Especiales y Relaciones Interinstitucionales | P13: EPRF010 - HOJA DE RUTA DE CONVENIOS EPRF011 - ANALISIS DE CONVENIENCIA CONVENIO DE COOPERACION ESPECIAL. EPRF012 - ANALISIS DE CONVENIENCIA PARA LA CELEBRACION DE ORDEN DE PRESTACION DE SERVICIOS / ORDEN CONTRACTUAL DE SERVICIOS / CONTRATO DE PRESTACION DE SERVICIOS EPRF018 - EVALUACIÓN JURIDICA. EPRF019 - EVALUACION FINANCIERA EPRF031 - EVALUACION TECNICA Y ECONOMICA PARA ORDEN / CONTRATO DE PRESTACION DE SERVICIOS / SUMINISTROS / COMPRA/VENTA OPS / CPS / CS / OS / CCV / OCV. | Q13: Preventivo | S13: =IF(Q13=Tablas!$R$3,"Probabilidad",IF(Q13=Tablas!$R$4,"Probabilidad",IF(Q13=Tablas!$R$5,"Impacto",))) -> Probabilidad | T13: Manual | Z13: 1. Apropiación y adopción de valores y principios institucionales. 2. Desarrollo del reto de integridad actualizado con la gestión antisobormo.
B14: EPRP01 – Gestión De Convenios Interinstitucionales | C14: Que el Gestor de la Dirección de Proyectos Especiales, solicite una dádiva y/o contraprestación para omitir el cumplimiento de requisitos para la contratación de personal prestación de servicios y/o del Organismo Cooperante según corresponda. | D14: Gestor de la Dirección de Proyectos Especiales o persona designada. | E14: Tercero / Entidad externa | F14: Deterioro de la imagen institucional de la UCundinamarca frente a la comunidad educativa y la ciudadania en general. Y afectar la credibilidad y buen nombre de la Universidad de Cundinamarca. | G14: Deficiencia en las acciones de control implementadas que prevengan actuaciones o comportamientos en contravía de lo dispuesta en del Código Autonómico de la UCundinamarca Generación Siglo XXI. | H14: Baja | I14: =IF(H14=Tablas!$D$7,"20%",IF(H14=Tablas!$D$6,"40%",IF(H14=Tablas!$D$5,"60%",IF(H14=Tablas!$D$4,"80%",IF(H14=Tablas!$D$3,"100%"))))) -> 40% | J14: Mayor | K14: =IF(J14=Tablas!$G$10,"20%",IF(J14=Tablas!$H$10,"40%",IF(J14=Tablas!$I$10,"60%",IF(J14=Tablas!$J$10,"80%",IF(J14=Tablas!$K$10,"100%"))))) -> 80% | L14: =I14*K14 -> 0.32 | M14: =IF(L14<=12%,"Bajo",IF(L14<=24%,"Medio",IF(L14<=40%,"Alto","Muy Alto"))) -> Alto | N14: EPRF010 - HOJA DE RUTA DE CONVENIOS - Listas de chequeo donde se establece a ser solicitada a los contratistas y cooperantes. Revisión cooperativa (área financiera y revisión jurídica). | O14: Dirección de Proyectos Especiales y Relaciones Interinstitucionales | P14: EPRF010 - HOJA DE RUTA DE CONVENIOS EPRF011 - ANALISIS DE CONVENIENCIA CONVENIO DE COOPERACION ESPECIAL. EPRF012 - ANALISIS DE CONVENIENCIA PARA LA CELEBRACION DE ORDEN DE PRESTACION DE SERVICIOS / ORDEN CONTRACTUAL DE SERVICIOS / CONTRATO DE PRESTACION DE SERVICIOS EPRF018 - EVALUACIÓN JURIDICA. EPRF019 - EVALUACION FINANCIERA EPRF031 - EVALUACION TECNICA Y ECONOMICA PARA ORDEN / CONTRATO DE PRESTACION DE SERVICIOS / SUMINISTROS / COMPRA/VENTA OPS / CPS / CS / OS / CCV / OCV. | Q14: Preventivo | R14: =IF(Q14=Tablas!$R$3,"25%",IF(Q14=Tablas!$R$4,"15%",IF(Q14=Tablas!$R$5,"10%",))) -> 25% | S14: =IF(Q14=Tablas!$R$3,"Probabilidad",IF(Q14=Tablas!$R$4,"Probabilidad",IF(Q14=Tablas!$R$5,"Impacto",))) -> Probabilidad | T14: Manual | U14: =IF(T14=Tablas!$U$3,"25%",IF(T14=Tablas!$U$4,"15%",)) -> 15% | V14: =I14-(I14*(R14+U14)) -> 0.24 | W14: =K14 -> 80% | X14: =V14*W14 -> 0.192 | Y14: =IF(X14<=12%,"Bajo",IF(X14<=24%,"Medio",IF(X14<=40%,"Alto","Muy Alto"))) -> Medio | Z14: 1. Apropiación y adopción de valores y principios institucionales. 2. Desarrollo del reto de integridad actualizado con la gestión antisobormo. | AA14: Se realiza la revisión y actualización de los riesgos identificados por el proceso, así como los controles establecidos y se evidencia ejecución de los mismos por parte de proceso y no se ha identificado materialización de riegos de soborno.
B16: 13- 46.18
B18: Diagonal 18 No. 20-29 Fusagasugá – Cundinamarca Teléfono (601) 8281483 Línea Gratuita 018000180414 www.ucundinamarca.edu.co E-mail: info@ucundinamarca.edu.co NIT: 890.680.062-2
B20: Documento controlado por el Sistema de Gestión de la Calidad Asegúrese que corresponde a la última versión consultando el Portal Institucional

Sheet Tablas (hidden)
E2: Probabilidad: | N2: Probabilidad inherente: | P2: peso: | R2: Tipo de Control | U2: Tipo de Control
B3: Valoración | D3: Muy alta | E3: 1 | G3: =E3*$G$9 -> 0.2 | H3: =E3*$H$9 -> 0.4 | I3: =E3*$I$9 -> 0.6 | J3: =E3*$J$9 -> 0.8 | K3: =E3*$K$9 -> 1 | N3: Muy alta | O3: 5 | P3: 0.25 | R3: Preventivo | S3: 0.25 | U3: Automático | V3: 0.25
B4: 1 | D4: Alta | E4: 0.8 | G4: =E4*$G$9 -> 0.16 | H4: =E4*$H$9 -> 0.32 | I4: =E4*$I$9 -> 0.48 | J4: =E4*$J$9 -> 0.64 | K4: =E4*$K$9 -> 0.8 | N4: Alta | O4: 4 | P4: 10 | R4: Detectivo | S4: 0.15 | U4: Manual | V4: 0.15
B5: 2 | D5: Media | E5: 0.6 | G5: =E5*$G$9 -> 0.12 | H5: =E5*$H$9 -> 0.24 | I5: =E5*$I$9 -> 0.36 | J5: =E5*$J$9 -> 0.48 | K5: =E5*$K$9 -> 0.6 | N5: Medio | O5: 3 | R5: Correctivo | S5: 0.1
B6: 3 | D6: Baja | E6: 0.4 | G6: =E6*$G$9 -> 0.08 | H6: =E6*$H$9 -> 0.16 | I6: =E6*$I$9 -> 0.24 | J6: =E6*$J$9 -> 0.32 | K6: =E6*$K$9 -> 0.4 | N6: Baja | O6: 2
B7: 4 | D7: Muy baja | E7: 0.2 | G7: =E7*$G$9 -> 0.04 | H7: =E7*$H$9 -> 0.08 | I7: =E7*$I$9 -> 0.12 | J7: =E7*$J$9 -> 0.16 | K7: =E7*$K$9 -> 0.2 | N7: Muy baja | O7: 1
B8: 5
E9: Impacto: | G9: 0.2 | H9: 0.4 | I9: 0.6 | J9: 0.8 | K9: 1
G10: Leve | H10: Menor | I10: Moderado | J10: Mayor | K10: Catastrófico
E12: Probabilidad:
D13: 1 | E13: 0.2
D14: 2 | E14: 0.4
D15: 3 | E15: 0.6
D16: 4 | E16: 0.8
D17: 5 | E17: 1

Sheet 5
D2: MACROPROCESO ESTRATÉGICO | Z2: CÓDIGO: ESG-ESG-GAS-r003
D3: PROCESO GESTIÓN DE SISTEMAS INTEGRADOS | Z3: VERSIÓN: 2
D4: GESTIÓN DEL RIESGO SISTEMA DE GESTIÓN ANTISOBORNO | Z4: VIGENCIA: 2024-08-09
Z5: PÁGINA: 7 de 29
B7: 13.
C8: Proceso responsable: | D8: =Contenido!F16 -> Sistema de Gestión de la Calidad | G8: Objetivo del Proceso: | H8: Mantener y mejorar el Sistema de Gestión de la Calidad a través de la administración de la información documentada, gestión de los riesgos y oportunidades, medición y seguimiento a los Procesos de Gestión, la optimización de trámites y procesos y la adecuada planeación e implementación de los cambios. | Z8: Fecha de actualización: | AA8: =Contenido!G10 -> 9 de agosto de 2024.
B10: Procedimiento Asociado | C10: Posibles hechos de soborno (Descripción del riesgo) | D10: Rol del sobornador | E10: Organizaciones externas, funciones o cargos expuestos al hecho de soborno | F10: Riesgos de soborno (Efecto de la incertidumbre sobre los objetivos estratégicos) | G10: Riesgos de soborno (Efecto de la incertidumbre sobre los objetivos del SGAS) | H10: Probabilidad del riesgo inherente | J10: Impacto del riesgo inherente | L10: Nivel de riesgo inherente | M10: Valoración del nivel de riesgo inherente | N10: Controles actuales existentes | O10: Responsable del control | P10: Documentación | Q10: Control | T10: Implementación | V10: Probabilidad del riesgo residual | W10: Impacto del riesgo residual | X10: Nivel de riesgo residual | Y10: Valoración del nivel de riesgo residual | Z10: Controles adicionales requeridos | AA10: Observaciones 2a. Línea (Oficial Antisoborno) | AB10: Observaciones 3a. Línea (Dirección Control Interno)
H11: Probabilidad | I11: % | J11: Impacto | K11: % | Q11: Tipo | R11: % Peso | S11: Afectación | T11: Tipo | U11: % Peso
B12: ESGP01 – Administración de Información Documentada | C12: Que un tercero interno, ofrezca o prometa una dádiva para que sea gestionada una solicitud extemporanea en el modulo SAD. | D12: Gestor Oficina de Calidad | E12: Funcionarios de la Universidad de Cundinamarca / Gestor responsable del proceso | F12: Deterioro de la imagen institucional de la Universidad de Cundinamarca frente al personal administrativo que afecta su capacidad y gobernanza. | G12: Deficiencia en las acciones de control implementadas que prevengan actuaciones o comportamientos en contravía de lo dispuesta en del Código Autonómico de la UCundinamarca Generación Siglo XXI. | H12: Muy baja | I12: =IF(H12=Tablas!$D$7,"20%",IF(H12=Tablas!$D$6,"40%",IF(H12=Tablas!$D$5,"60%",IF(H12=Tablas!$D$4,"80%",IF(H12=Tablas!$D$3,"100%"))))) -> 20% | J12: Menor | K12: =IF(J12=Tablas!$G$10,"20%",IF(J12=Tablas!$H$10,"40%",IF(J12=Tablas!$I$10,"60%",IF(J12=Tablas!$J$10,"80%",IF(J12=Tablas!$K$10,"100%"))))) -> 40% | L12: =I12*K12 -> 0.08 | M12: =IF(L12<=12%,"Bajo",IF(L12<=24%,"Medio",IF(L12<=40%,"Alto","Muy Alto"))) -> Bajo | N12: Ejecutar las actividades de acuerdo con el procedimiento ESG-P01. | O12: Oficina de Calidad | P12: ESGP01 - Administración de Información Documentada. | Q12: Preventivo | R12: =IF(Q12=Tablas!$R$3,"25%",IF(Q12=Tablas!$R$4,"15%",IF(Q12=Tablas!$R$5,"10%",))) -> 25% | S12: =IF(Q12=Tablas!$R$3,"Probabilidad",IF(Q12=Tablas!$R$4,"Probabilidad",IF(Q12=Tablas!$R$5,"Impacto",))) -> Probabilidad | T12: Manual | U12: =IF(T12=Tablas!$U$3,"25%",IF(T12=Tablas!$U$4,"15%",)) -> 15% | V12: =I12-(I12*(R12+U12)) -> 0.12 | W12: =K12 -> 40% | X12: =V12*W12 -> 0.048 | Y12: =IF(X12<=12%,"Bajo",IF(X12<=24%,"Medio",IF(X12<=40%,"Alto","Muy Alto"))) -> Bajo | Z12: 1. Apropiación y adopción de valores y principios institucionales. 2. Desarrollo del reto de integridad actualizado con la gestión antisobormo. | AA12: Se realiza la revisión y actualización de los riesgos identificados por el proceso, así como los controles establecidos y se evidencia ejecución de los mismos por parte de proceso y no se ha identificado materialización de riegos de soborno
B13: ESGP01 – Administración de Información Documentada | C13: Que un tercero interno, ofrezca o prometa un favorecimiento para la alteración o ucultamiento de información documentada del desempeño de los procesos. (partes interesadas, contexto DOFA, matriz de riesgos y oportunidades, matriz de gestión del cambio, salidas no conformes, indicadores, planes de mejoramiento). | D13: Gestor Oficina de Calidad | E13: Funcionarios de la Universidad de Cundinamarca / Gestor responsable del proceso | F13: Deterioro de la imagen institucional de la Universidad de Cundinamarca frente al personal administrativo que afecta su capacidad y gobernanza. | G13: Deficiencia en las acciones de control implementadas que prevengan actuaciones o comportamientos en contravía de lo dispuesta en del Código Autonómico de la UCundinamarca Generación Siglo XXI. | H13: Muy baja | I13: =IF(H13=Tablas!$D$7,"20%",IF(H13=Tablas!$D$6,"40%",IF(H13=Tablas!$D$5,"60%",IF(H13=Tablas!$D$4,"80%",IF(H13=Tablas!$D$3,"100%"))))) -> 20% | J13: Menor | K13: =IF(J13=Tablas!$G$10,"20%",IF(J13=Tablas!$H$10,"40%",IF(J13=Tablas!$I$10,"60%",IF(J13=Tablas!$J$10,"80%",IF(J13=Tablas!$K$10,"100%"))))) -> 40% | L13: =I13*K13 -> 0.08 | M13: =IF(L13<=12%,"Bajo",IF(L13<=24%,"Medio",IF(L13<=40%,"Alto","Muy Alto"))) -> Bajo | N13: apoyo y acompañamiento en la actualización documental como segunda línea de defensa. 'Monitoreo y asegurabilidad de la tercera línea de defensa. Restricción de documentos únicamente para la visualización de los mismos. Todas las solicitudes deben estar copiados al área de calidad y al Director del Área. La información referente a salidas no conformes e indicadores, se llevan a la Comisión de Gestión. (Salidas no conformes, carácter informativo e indicadores de caracter aprobatorio, toma de decisiones y socialización de resultados). | O13: Oficina de Calidad | P13: Correo eléctronicos. Matrices y documento publicados en el Informes de salidas no conformes. | Q13: Preventivo | R13: =IF(Q13=Tablas!$R$3,"25%",IF(Q13=Tablas!$R$4,"15%",IF(Q13=Tablas!$R$5,"10%",))) -> 25% | S13: =IF(Q13=Tablas!$R$3,"Probabilidad",IF(Q13=Tablas!$R$4,"Probabilidad",IF(Q13=Tablas!$R$5,"Impacto",))) -> Probabilidad | T13: Manual | U13: =IF(T13=Tablas!$U$3,"25%",IF(T13=Tablas!$U$4,"15%",)) -> 15% | V13: =I13-(I13*(R13+U13)) -> 0.12 | W13: =K13 -> 40% | X13: =V13*W13 -> 0.048 | Y13: =IF(X13<=12%,"Bajo",IF(X13<=24%,"Medio",IF(X13<=40%,"Alto","Muy Alto"))) -> Bajo | Z13: 1. Apropiación y adopción de valores y principios institucionales. 2. Desarrollo del reto de integridad actualizado con la gestión antisobormo. | AA13: Se realiza la revisión y actualización de los riesgos identificados por el proceso, así como los controles establecidos y se evidencia ejecución de los mismos por parte de proceso y no se ha identificado materialización de riegos de soborno
B14: SCIP04 - Auditoría Interna | C14: Que un tercero interno o externo ofrezca o prometa una dádiva para influenciar en la estructuración de los estudios técnicos previos y posteriores emisiones de conceptos. (procesos de contratacion de auditorías y el Software de BPMN 2.0). | D14: Jefe Oficina del Sistema de Gestión de Calidad Gestor Oficina de Calidad | E14: Funcionarios de la Universidad de Cundinamarca / Gestor responsable del proceso | F14: Afectación de la cultura de la Universidad de Cundinamarca y la credibilidad en los servidores públicos o trabajadores de la UCundinamarca. | G14: Deficiencia en las acciones de control implementadas que prevengan actuaciones o comportamientos en contravía de lo dispuesta en del Código Autonómico de la UCundinamarca Generación Siglo XXI. | H14: Muy baja | I14: =IF(H14=Tablas!$D$7,"20%",IF(H14=Tablas!$D$6,"40%",IF(H14=Tablas!$D$5,"60%",IF(H14=Tablas!$D$4,"80%",IF(H14=Tablas!$D$3,"100%"))))) -> 20% | J14: Menor | K14: =IF(J14=Tablas!$G$10,"20%",IF(J14=Tablas!$H$10,"40%",IF(J14=Tablas!$I$10,"60%",IF(J14=Tablas!$J$10,"80%",IF(J14=Tablas!$K$10,"100%"))))) -> 40% | L14: 0.08 | M14: Bajo | N14: En la estructuración del proceso se tienen en cuentan los criterios establecidos en el manual de contratación, Manual de funciones y perfil del equipor auditor(internos / externos). Validación y revisisón de consdiciones de contratación de forma cooperativa (entre ellos la Dir. Juridica) para las solicitudes de compras Validación de requisitos para la contratación. | O14: Direcciónde Planeación Institucional Oficina de Calidad Jefe de Compras Director de Bienes y Servicios Direccción Juridica | P14: Resolución 206/2012 Manual de Contratación SCIM003 - MANUAL DE FUNCIONES Y PERFIL DEL EQUIPO AUDITOR. Anexo de especificaciones técnicas. Informe de concepto técnico. Contratos. | Q14: Preventivo | R14: =IF(Q14=Tablas!$R$3,"25%",IF(Q14=Tablas!$R$4,"15%",IF(Q14=Tablas!$R$5,"10%",))) -> 25% | S14: =IF(Q14=Tablas!$R$3,"Probabilidad",IF(Q14=Tablas!$R$4,"Probabilidad",IF(Q14=Tablas!$R$5,"Impacto",))) -> Probabilidad | T14: Manual | U14: =IF(T14=Tablas!$U$3,"25%",IF(T14=Tablas!$U$4,"15%",)) -> 15% | V14: 0.12 | W14: 40% | X14: 0.048 | Y14: =IF(X14<=12%,"Bajo",IF(X14<=24%,"Medio",IF(X14<=40%,"Alto","Muy Alto"))) -> Bajo | Z14: 1. Apropiación y adopción de valores y principios institucionales. 2. Desarrollo del reto de integridad actualizado con la gestión antisobormo. | AA14: Se realiza la revisión y actualización de los riesgos identificados por el proceso, así como los controles establecidos y se evidencia ejecución de los mismos por parte de proceso y no se ha identificado materialización de riegos de soborno
B16: 13- 46.18
B18: Diagonal 18 No. 20-29 Fusagasugá – Cundinamarca Teléfono (601) 8281483 Línea Gratuita 018000180414 www.ucundinamarca.edu.co E-mail: info@ucundinamarca.edu.co NIT: 890.680.062-2
B20: Documento controlado por el Sistema de Gestión de la Calidad Asegúrese que corresponde a la última versión consultando el Portal Institucional

Sheet 6
D2: MACROPROCESO ESTRATÉGICO | Z2: CÓDIGO: ESG-ESG-GAS-r003
D3: PROCESO GESTIÓN DE SISTEMAS INTEGRADOS | Z3: VERSIÓN: 2
D4: GESTIÓN DEL RIESGO SISTEMA DE GESTIÓN ANTISOBORNO | Z4: VIGENCIA: 2024-08-09
Z5: PÁGINA: 8 de 29
B7: 13.
C8: Proceso responsable: | D8: =Contenido!F17 -> Sistema de Gestión Ambiental | G8: Objetivo del Proceso: | H8: Fomentar una cultura ambiental mediante la implementación de la Política de Gestión Ambiental y sus objetivos, así como la ejecución del Plan Institucional de Gestión Ambiental-PIGA, los programas y proyectos que permitan apoyar la toma de decisiones estratégicas, el cumplimiento de la misión y la visión institucional, promoviendo seres humanos que convivan en equilibrio con la naturaleza. | Z8: Fecha de actualización: | AA8: =Contenido!G10 -> 9 de agosto de 2024.
B10: Procedimiento Asociado | C10: Posibles hechos de soborno (Descripción del riesgo) | D10: Rol del sobornador | E10: Organizaciones externas, funciones o cargos expuestos al hecho de soborno | F10: Riesgos de soborno (Efecto de la incertidumbre sobre los objetivos estratégicos) | G10: Riesgos de soborno (Efecto de la incertidumbre sobre los objetivos del SGAS) | H10: Probabilidad del riesgo inherente | J10: Impacto del riesgo inherente | L10: Nivel de riesgo inherente | M10: Valoración del nivel de riesgo inherente | N10: Controles actuales existentes | O10: Responsable del control | P10: Documentación | Q10: Control | T10: Implementación | V10: Probabilidad del riesgo residual | W10: Impacto del riesgo residual | X10: Nivel de riesgo residual | Y10: Valoración del nivel de riesgo residual | Z10: Controles adicionales requeridos | AA10: Observaciones 2a. Línea (Oficial Antisoborno) | AB10: Observaciones 3a. Línea (Dirección Control Interno)
H11: Probabilidad | I11: % | J11: Impacto | K11: % | Q11: Tipo | R11: % Peso | S11: Afectación | T11: Tipo | U11: % Peso
B12: AJUP08 – Identificación, Actualización y Seguimiento al cumplimiento de Requisitos Legales y Otros | C12: Que un Gestor ambiental o Funcionario ofrezca o reciba una dádiva en la gestión de trámites ambientales institucionales, fuera de los procedimientos. | D12: Entes de control (Autoridad Ambiental) Ente Certificador | E12: Tercero / Autoridad Ambiental o Funcionario a cargo del trámite | F12: Deterioro de la imagen institucional de la UCundinamarca frente a la comunidad educativa y la ciudadanía en general. Afectar la credibilidad y el buen nombre de la Universidad de Cundinamarca.. | G12: Deficiencia en las acciones de control implementadas que prevengan actuaciones o comportamientos en contravía de lo dispuesta en del Código Autonómico de la UCundinamarca Generación Siglo XXI. | H12: Media | I12: =IF(H12=Tablas!$D$7,"20%",IF(H12=Tablas!$D$6,"40%",IF(H12=Tablas!$D$5,"60%",IF(H12=Tablas!$D$4,"80%",IF(H12=Tablas!$D$3,"100%"))))) -> 60% | J12: Moderado | K12: =IF(J12=Tablas!$G$10,"20%",IF(J12=Tablas!$H$10,"40%",IF(J12=Tablas!$I$10,"60%",IF(J12=Tablas!$J$10,"80%",IF(J12=Tablas!$K$10,"100%"))))) -> 60% | L12: =I12*K12 -> 0.36 | M12: =IF(L12<=12%,"Bajo",IF(L12<=24%,"Medio",IF(L12<=40%,"Alto","Muy Alto"))) -> Alto | N12: 1. Actualización de la Matriz de identificación, actualización y seguimiento al cumplimeinto de requisitos legales y otros publicada en en el MOD, con socialización gradual en los procesos. 2. Notificación a la Alta Dirección, de la conformidad en el cumplimiento de requisitos legales y otros ambientales, identificados en la Matriz, la cual es realizada por un profesional ajeno al área técnica del SGA (Entidad Externa) 3. Seguimiento periodico a trámites ambientales locales en las sedes de la Unidades Regionales. | O12: Sistema de Gestión Ambiental | P12: Matriz de requisitos legales. Informe de cumplimiento de requisitoslegales y otros. ESG-SGA-R022 - Identificación y seguimiento de trámites ambientales. | Q12: Preventivo | R12: =IF(Q12=Tablas!$R$3,"25%",IF(Q12=Tablas!$R$4,"15%",IF(Q12=Tablas!$R$5,"10%",))) -> 25% | S12: =IF(Q12=Tablas!$R$3,"Probabilidad",IF(Q12=Tablas!$R$4,"Probabilidad",IF(Q12=Tablas!$R$5,"Impacto",))) -> Probabilidad | T12: Manual | U12: =IF(T12=Tablas!$U$3,"25%",IF(T12=Tablas!$U$4,"15%",)) -> 15% | V12: =I12-(I12*(R12+U12)) -> 0.36 | W12: =K12 -> 60% | X12: =V12*W12 -> 0.216 | Y12: =IF(X12<=12%,"Bajo",IF(X12<=24%,"Medio",IF(X12<=40%,"Alto","Muy Alto"))) -> Medio | Z12: 1. Apropiación y adopción de valores y principios institucionales. 2. Desarrollo del reto de integridad actualizado con la gestión antisobormo. 3. Fortalecimiento del botón "Yo Denuncio". 4. Fortalecimiento de la cultura de integridad y transparencia. | AA12: Se realiza la revisión y actualización de los riesgos identificados por el proceso, así como los controles establecidos pendiente evidencia ejecución de los mismos por parte de proceso adicional a ello no se ha identificado materialización de riegos de soborno.
B13: ESG-SGA-P02 – Supervisores e Interventores | C13: Que un tercero contratista ofrezca o prometa una dádiva para que se omita el cumplimiento de un requisito u obligación legal ambiental, asociado con el proceso contractual. | D13: Coordinación del Sistema de Gestión Ambiental (apoyo técnico a la supervisión) | E13: Proveedor o contratista/ Funcionario | F13: Deterioro de la imagen institucional de la UCundinamarca frente a la comunidad educativa y la ciudadanía en general. Afectar la credibilidad y el buen nombre de la Universidad de Cundinamarca.. | G13: Deficiencia en las acciones de control implementadas que prevengan actuaciones o comportamientos en contravía de lo dispuesta en del Código Autonómico de la UCundinamarca Generación Siglo XXI. | H13: Muy baja | I13: =IF(H13=Tablas!$D$7,"20%",IF(H13=Tablas!$D$6,"40%",IF(H13=Tablas!$D$5,"60%",IF(H13=Tablas!$D$4,"80%",IF(H13=Tablas!$D$3,"100%"))))) -> 20% | J13: Mayor | K13: =IF(J13=Tablas!$G$10,"20%",IF(J13=Tablas!$H$10,"40%",IF(J13=Tablas!$I$10,"60%",IF(J13=Tablas!$J$10,"80%",IF(J13=Tablas!$K$10,"100%"))))) -> 80% | L13: =I13*K13 -> 0.16 | M13: =IF(L13<=12%,"Bajo",IF(L13<=24%,"Medio",IF(L13<=40%,"Alto","Muy Alto"))) -> Medio | N13: 1. Criterios ambeintales para selecciòn y evaluaciòn de proveedores 2. Reunión de inicio de contrato con contratistas. 3. Informes de supervisión 4. Se realiza la evaluación y reevaluación a contratistas. | O13: Sistema de Gestión Ambiental | P13: Manual de contratistas Acta de reunión de inicio y registro de asistencia. Informe de supervisión. Formato de evaluación y reevaluación a contratistas. | Q13: Preventivo | R13: =IF(Q13=Tablas!$R$3,"25%",IF(Q13=Tablas!$R$4,"15%",IF(Q13=Tablas!$R$5,"10%",))) -> 25% | S13: =IF(Q13=Tablas!$R$3,"Probabilidad",IF(Q13=Tablas!$R$4,"Probabilidad",IF(Q13=Tablas!$R$5,"Impacto",))) -> Probabilidad | T13: Manual | U13: =IF(T13=Tablas!$U$3,"25%",IF(T13=Tablas!$U$4,"15%",)) -> 15% | V13: =I13-(I13*(R13+U13)) -> 0.12 | W13: =K13 -> 80% | X13: =V13*W13 -> 0.096 | Y13: =IF(X13<=12%,"Bajo",IF(X13<=24%,"Medio",IF(X13<=40%,"Alto","Muy Alto"))) -> Bajo | Z13: 1. Apropiación y adopción de valores y principios institucionales. 2. Desarrollo del reto de integridad actualizado con la gestión antisobormo. 3. Fortalecimiento del botón "Yo Denuncio". 4. Fortalecimiento de la cultura de integridad y transparencia. | AA13: Se realiza la revisión y actualización de los riesgos identificados por el proceso, así como los controles establecidos pendiente evidencia ejecución de los mismos por parte de proceso adicional a ello no se ha identificado materialización de riegos de soborno.
B15: 13- 46.18
B17: Diagonal 18 No. 20-29 Fusagasugá – Cundinamarca Teléfono (601) 8281483 Línea Gratuita 018000180414 www.ucundinamarca.edu.co E-mail: info@ucundinamarca.edu.co NIT: 890.680.062-2
B19: Documento controlado por el Sistema de Gestión de la Calidad Asegúrese que corresponde a la última versión consultando el Portal Institucional

Sheet 7
D2: MACROPROCESO ESTRATÉGICO | Z2: CÓDIGO: ESG-ESG-GAS-r003
D3: PROCESO GESTIÓN DE SISTEMAS INTEGRADOS | Z3: VERSIÓN: 2
D4: GESTIÓN DEL RIESGO SISTEMA DE GESTIÓN ANTISOBORNO | Z4: VIGENCIA: 2024-08-09
Z5: PÁGINA: 9 de 29
B7: 13.
C8: Proceso responsable: | D8: =Contenido!F18 -> Sistema de Gestión de Seguridad y Salud en el Trabajo | G8: Objetivo del Proceso: | H8: Gestionar los riesgos y peligros mediante la determinación e intervención de controles para prevenir accidentes y enfermedades laborales, fortaleciendo la cultura de autocuidado a través estrategias de promoción, prevención y mediación de mecanismos de consulta y participación. | Z8: Fecha de actualización: | AA8: =Contenido!G10 -> 9 de agosto de 2024.
B10: Procedimiento Asociado | C10: Posibles hechos de soborno (Descripción del riesgo) | D10: Rol del sobornador | E10: Organizaciones externas, funciones o cargos expuestos al hecho de soborno | F10: Riesgos de soborno (Efecto de la incertidumbre sobre los objetivos estratégicos) | G10: Riesgos de soborno (Efecto de la incertidumbre sobre los objetivos del SGAS) | H10: Probabilidad del riesgo inherente | J10: Impacto del riesgo inherente | L10: Nivel de riesgo inherente | M10: Valoración del nivel de riesgo inherente | N10: Controles actuales existentes | O10: Responsable del control | P10: Documentación | Q10: Control | T10: Implementación | V10: Probabilidad del riesgo residual | W10: Impacto del riesgo residual | X10: Nivel de riesgo residual | Y10: Valoración del nivel de riesgo residual | Z10: Controles adicionales requeridos | AA10: Observaciones 2a. Línea (Oficial Antisoborno) | AB10: Observaciones 3a. Línea (Dirección Control Interno)
H11: Probabilidad | I11: % | J11: Impacto | K11: % | Q11: Tipo | R11: % Peso | S11: Afectación | T11: Tipo | U11: % Peso
B12: ESG-SST-P01 – Sistema de Gestión de la Seguridad y Salud en el Trabajo | C12: Que un Funcionario del SG-SST ofrezca y/o prometa una dádiva para omitir o reportar situaciones de incumplimiento de los requisitos normativos asociados al SG - SST y que dependan de su control. | D12: Entes de Control Entes Certificadores | E12: Oficina de Control Interno / Entes externos de control | F12: Deterioro de la imagen institucional de la UCundinamarca frente al personal administrativo que afecta su capacidad y gobernanza. | G12: Deficiencia en las acciones de control implementadas que prevengan actuaciones o comportamientos en contravía de lo dispuesta en del Código Autonómico de la UCundinamarca Generación Siglo XXI. | H12: Media | I12: =IF(H12=Tablas!$D$7,"20%",IF(H12=Tablas!$D$6,"40%",IF(H12=Tablas!$D$5,"60%",IF(H12=Tablas!$D$4,"80%",IF(H12=Tablas!$D$3,"100%"))))) -> 60% | J12: Moderado | K12: =IF(J12=Tablas!$G$10,"20%",IF(J12=Tablas!$H$10,"40%",IF(J12=Tablas!$I$10,"60%",IF(J12=Tablas!$J$10,"80%",IF(J12=Tablas!$K$10,"100%"))))) -> 60% | L12: =I12*K12 -> 0.36 | M12: =IF(L12<=12%,"Bajo",IF(L12<=24%,"Medio",IF(L12<=40%,"Alto","Muy Alto"))) -> Alto | N12: Atención de requerimientos de entes de control, entes certificadores mediante canales oficiales institucionales. Atención y respuestas a solicitudes, requerimientos por resposables de los procesos asociados a los requisitos evaluados, participación interdisciplinaria en los procesos. | O12: Coordinación del SG - SST | P12: Comunicaciones oficiales por los canales insitutucionales dispuestos. Planes de Auditoría | Q12: Preventivo | R12: =IF(Q12=Tablas!$R$3,"25%",IF(Q12=Tablas!$R$4,"15%",IF(Q12=Tablas!$R$5,"10%",))) -> 25% | S12: =IF(Q12=Tablas!$R$3,"Probabilidad",IF(Q12=Tablas!$R$4,"Probabilidad",IF(Q12=Tablas!$R$5,"Impacto",))) -> Probabilidad | T12: Manual | U12: =IF(T12=Tablas!$U$3,"25%",IF(T12=Tablas!$U$4,"15%",)) -> 15% | V12: =I12-(I12*(R12+U12)) -> 0.36 | W12: =K12 -> 60% | X12: =V12*W12 -> 0.216 | Y12: =IF(X12<=12%,"Bajo",IF(X12<=24%,"Medio",IF(X12<=40%,"Alto","Muy Alto"))) -> Medio | Z12: 1. Apropiación y adopción de valores y principios institucionales. 2. Desarrollo del reto de integridad actualizado con la gestión antisobormo. | AA12: Se realiza la revisión y actualización de los riesgos identificados por el proceso, así como los controles establecidos y se evidencia ejecución de los mismos por parte de proceso y no se ha identificado materialización de riegos de soborno.
B13: ESG-SST-P01 – Sistema de Gestión de la Seguridad y Salud en el Trabajo | C13: Que un Funcionario ofrezca y/o prometa una dádiva para omitir o reportar accidentes de origen común, como accidente de origen laboral | D13: Gestores y Coordinación del SG- SST | E13: Gestores y Coordinación del SG- SST | F13: Deterioro de la imagen institucional de la UCundinamarca frente al personal administrativo que afecta su capacidad y gobernanza. | G13: Deficiencia en las acciones de control implementadas que prevengan actuaciones o comportamientos en contravía de lo dispuesta en del Código Autonómico de la UCundinamarca Generación Siglo XXI. | H13: Baja | I13: =IF(H13=Tablas!$D$7,"20%",IF(H13=Tablas!$D$6,"40%",IF(H13=Tablas!$D$5,"60%",IF(H13=Tablas!$D$4,"80%",IF(H13=Tablas!$D$3,"100%"))))) -> 40% | J13: Catastrófico | K13: =IF(J13=Tablas!$G$10,"20%",IF(J13=Tablas!$H$10,"40%",IF(J13=Tablas!$I$10,"60%",IF(J13=Tablas!$J$10,"80%",IF(J13=Tablas!$K$10,"100%"))))) -> 100% | L13: =I13*K13 -> 0.4 | M13: =IF(L13<=12%,"Bajo",IF(L13<=24%,"Medio",IF(L13<=40%,"Alto","Muy Alto"))) -> Alto | N13: Se realiza la debida investigación de acuerdo con la Guia establecida. Concepto de calificación de origen emitido por la ARL y EPS. | O13: Coordinación del SG - SST | P13: ESG-SST-G007 - REPORTE E INVESTIGACION DE INCIDENTES Y ACCIDENTES DE TRABAJO. ESG-SST-F033 - INVESTIGACION DE INCIDENTES O ACCIDENTES DE TRABAJO Concepto y reporte de la ARL de la accidentalidad. | Q13: Preventivo | R13: =IF(Q13=Tablas!$R$3,"25%",IF(Q13=Tablas!$R$4,"15%",IF(Q13=Tablas!$R$5,"10%",))) -> 25% | S13: =IF(Q13=Tablas!$R$3,"Probabilidad",IF(Q13=Tablas!$R$4,"Probabilidad",IF(Q13=Tablas!$R$5,"Impacto",))) -> Probabilidad | T13: Manual | U13: =IF(T13=Tablas!$U$3,"25%",IF(T13=Tablas!$U$4,"15%",)) -> 15% | V13: =I13-(I13*(R13+U13)) -> 0.24 | W13: =K13 -> 100% | X13: =V13*W13 -> 0.24 | Y13: =IF(X13<=12%,"Bajo",IF(X13<=24%,"Medio",IF(X13<=40%,"Alto","Muy Alto"))) -> Medio | Z13: 1. Apropiación y adopción de valores y principios institucionales. 2. Desarrollo del reto de integridad actualizado con la gestión antisobormo. | AA13: Se realiza la revisión y actualización de los riesgos identificados por el proceso, así como los controles establecidos y se evidencia ejecución de los mismos por parte de proceso y no se ha identificado materialización de riegos de soborno.
B14: ESG-SST-P02 -PROCEDIMIENTO DE EVALUACIONES MEDICAS OCUPACIONALES | C14: Que un Funcionario (Administrativo / Contratista OPS / Gestor del Conocimiento) a contratar ofrezca una dádiva para omitir el cumplimiento del requisito de éxamen médico. | D14: Coordinación del SG - SST | E14: Gestores y Coordinación del SG- SST | F14: Deterioro de la imagen institucional de la UCundinamarca frente al personal administrativo que afecta su capacidad y gobernanza. | G14: Deficiencia en las acciones de control implementadas que prevengan actuaciones o comportamientos en contravía de lo dispuesta en del Código Autonómico de la UCundinamarca Generación Siglo XXI. | H14: Muy baja | I14: =IF(H14=Tablas!$D$7,"20%",IF(H14=Tablas!$D$6,"40%",IF(H14=Tablas!$D$5,"60%",IF(H14=Tablas!$D$4,"80%",IF(H14=Tablas!$D$3,"100%"))))) -> 20% | J14: Moderado | K14: =IF(J14=Tablas!$G$10,"20%",IF(J14=Tablas!$H$10,"40%",IF(J14=Tablas!$I$10,"60%",IF(J14=Tablas!$J$10,"80%",IF(J14=Tablas!$K$10,"100%"))))) -> 60% | L14: 0.12 | M14: Bajo | N14: Verificación del cumplimiento del requisito del éxamen médico ocupacional en la plataforma de la IPS. Visto bueno de chequeo para la contratación. | O14: Coordinación del SG - SST | P14: Plataforma de la IPS. ATHF131 - CHECKLIST Y FICHA DE SELECCION PARA CONTRATACION DE PERSONAL A TERMINO FIJO OPS, DOCENTES OCASIONALES, PERSONAL ACADEMICO Y PERSONAL DE PLANTA | Q14: Preventivo | R14: =IF(Q14=Tablas!$R$3,"25%",IF(Q14=Tablas!$R$4,"15%",IF(Q14=Tablas!$R$5,"10%",))) -> 25% | S14: =IF(Q14=Tablas!$R$3,"Probabilidad",IF(Q14=Tablas!$R$4,"Probabilidad",IF(Q14=Tablas!$R$5,"Impacto",))) -> Probabilidad | T14: Manual | U14: =IF(T14=Tablas!$U$3,"25%",IF(T14=Tablas!$U$4,"15%",)) -> 15% | V14: 0.12 | W14: 60% | X14: 0.072 | Y14: =IF(X14<=12%,"Bajo",IF(X14<=24%,"Medio",IF(X14<=40%,"Alto","Muy Alto"))) -> Bajo | Z14: 1. Apropiación y adopción de valores y principios institucionales. 2. Desarrollo del reto de integridad actualizado con la gestión antisobormo. | AA14: Se realiza la revisión y actualización de los riesgos identificados por el proceso, así como los controles establecidos y se evidencia ejecución de los mismos por parte de proceso y no se ha identificado materialización de riegos de soborno.
B15: ESG-SST-P02 -PROCEDIMIENTO DE EVALUACIONES MEDICAS OCUPACIONALES | C15: Que un Funcionario (Administrativo / Gestor del Conocimiento / Contratista OPS) a contratar ofrezca una dádiva para omitir el cumplimiento del requisito de éxamen médico. | D15: IPS contratada para éxamenes médicos | E15: Gestores y Coordinación del SG- SST | F15: Deterioro de la imagen institucional de la UCundinamarca frente al personal administrativo que afecta su capacidad y gobernanza. | G15: Deficiencia en las acciones de control implementadas que prevengan actuaciones o comportamientos en contravía de lo dispuesta en del Código Autonómico de la UCundinamarca Generación Siglo XXI. | H15: Muy baja | I15: =IF(H15=Tablas!$D$7,"20%",IF(H15=Tablas!$D$6,"40%",IF(H15=Tablas!$D$5,"60%",IF(H15=Tablas!$D$4,"80%",IF(H15=Tablas!$D$3,"100%"))))) -> 20% | J15: Moderado | K15: =IF(J15=Tablas!$G$10,"20%",IF(J15=Tablas!$H$10,"40%",IF(J15=Tablas!$I$10,"60%",IF(J15=Tablas!$J$10,"80%",IF(J15=Tablas!$K$10,"100%"))))) -> 60% | L15: 0.12 | M15: Bajo | N15: 'Verificación del cumplimiento del requisito del éxamen médico ocupacional en la plataforma de la IPS. Revisión del certificado médico ocupacional emitido por la IPS. | O15: Coordinación del SG - SST | P15: Plataforma de la IPS. Certificado médica ocupacional | Q15: Preventivo | R15: =IF(Q15=Tablas!$R$3,"25%",IF(Q15=Tablas!$R$4,"15%",IF(Q15=Tablas!$R$5,"10%",))) -> 25% | S15: =IF(Q15=Tablas!$R$3,"Probabilidad",IF(Q15=Tablas!$R$4,"Probabilidad",IF(Q15=Tablas!$R$5,"Impacto",))) -> Probabilidad | T15: Manual | U15: =IF(T15=Tablas!$U$3,"25%",IF(T15=Tablas!$U$4,"15%",)) -> 15% | V15: 0.12 | W15: 60% | X15: 0.072 | Y15: Bajo | Z15: 1. Apropiación y adopción de valores y principios institucionales. 2. Desarrollo del reto de integridad actualizado con la gestión antisobormo. | AA15: Se realiza la revisión y actualización de los riesgos identificados por el proceso, así como los controles establecidos y se evidencia ejecución de los mismos por parte de proceso y no se ha identificado materialización de riegos de soborno.
B17: 13- 46.18
B19: Diagonal 18 No. 20-29 Fusagasugá – Cundinamarca Teléfono (601) 8281483 Línea Gratuita 018000180414 www.ucundinamarca.edu.co E-mail: info@ucundinamarca.edu.co NIT: 890.680.062-2
B21: Documento controlado por el Sistema de Gestión de la Calidad Asegúrese que corresponde a la última versión consultando el Portal Institucional

Sheet 8
D2: MACROPROCESO ESTRATÉGICO | Z2: CÓDIGO: ESG-ESG-GAS-r003
D3: PROCESO GESTIÓN DE SISTEMAS INTEGRADOS | Z3: VERSIÓN: 2
D4: GESTIÓN DEL RIESGO SISTEMA DE GESTIÓN ANTISOBORNO | Z4: VIGENCIA: 2024-08-09
Z5: PÁGINA: 10 de 29
B7: 13.
C8: Proceso responsable: | D8: =Contenido!F19 -> Sistema de Gestión de Seguridad de la Información | G8: Objetivo del Proceso: | H8: mplementar el Sistema de Gestión de Seguridad de la Información – SGSI y el Programa Integral de Gestión de Datos Personales - PIGDP, que permita establecer políticas, articular y gestionar directrices mediante controles de protección y resguardo para la protección de datos personales de Titulares, así como asegurar la confidencialidad, integridad y disponibilidad de la información como activo esencial de la institución. | Z8: Fecha de actualización: | AA8: =Contenido!G10 -> 9 de agosto de 2024.
B10: Procedimiento Asociado | C10: Posibles hechos de soborno (Descripción del riesgo) | D10: Rol del sobornador | E10: Organizaciones externas, funciones o cargos expuestos al hecho de soborno | F10: Riesgos de soborno (Efecto de la incertidumbre sobre los objetivos estratégicos) | G10: Riesgos de soborno (Efecto de la incertidumbre sobre los objetivos del SGAS) | H10: Probabilidad del riesgo inherente | J10: Impacto del riesgo inherente | L10: Nivel de riesgo inherente | M10: Valoración del nivel de riesgo inherente | N10: Controles actuales existentes | O10: Responsable del control | P10: Documentación | Q10: Control | T10: Implementación | V10: Probabilidad del riesgo residual | W10: Impacto del riesgo residual | X10: Nivel de riesgo residual | Y10: Valoración del nivel de riesgo residual | Z10: Controles adicionales requeridos | AA10: Observaciones 2a. Línea (Oficial Antisoborno) | AB10: Observaciones 3a. Línea (Dirección Control Interno)
H11: Probabilidad | I11: % | J11: Impacto | K11: % | Q11: Tipo | R11: % Peso | S11: Afectación | T11: Tipo | U11: % Peso
B12: ESG-SSI-PG01 - PROGRAMA INTEGRAL DE GESTION DE DATOS PERSONALES - PIGDP ESG-SSI-P03 - RECOLECCION Y ALMACENAMIENTO DE DATOS PERSONALES ESG-SSI-P05 - USO Y CIRCULACION DE DATOS PERSONALES ESG-SSI-P06 - SUPRESION DE DATOS PERSONALES ESG-SSI-P07 - TRANSFERENCIA INTERNACIONAL DE DATOS PERSONALES | C12: Que un tercero contratistas y/o externo, ofrezca o prometa una dádiva con el fin de acceder, usar, circular, suprimir y/o tranferir una base de datos que contiene datos de titulares con fines diferentes para los cuales fueron recolectados. | D12: Gestores administradores de bases de datos (públicos, privados, semiprivados y sensibles de los titulares o de los proveedores o contratistas que tienen vinculo con la UCundinamarca) | E12: Funcionario de la UCundinamarca, Tercero contratista ó Tercero externo | F12: Deterioro de la imagen institucional de la UCundinamarca frente a la comunidad educativa y la ciudadania en general. Afectar la credibilidad y el buen nombre de la Universidad de Cundinamarca. | G12: Deficiencia en las acciones de control implementadas que prevengan actuaciones o comportamientos en contravía de lo dispuesta en del Código Autonómico de la UCundinamarca Generación Siglo XXI. | H12: Baja | I12: =IF(H12=Tablas!$D$7,"20%",IF(H12=Tablas!$D$6,"40%",IF(H12=Tablas!$D$5,"60%",IF(H12=Tablas!$D$4,"80%",IF(H12=Tablas!$D$3,"100%"))))) -> 40% | J12: Mayor | K12: =IF(J12=Tablas!$G$10,"20%",IF(J12=Tablas!$H$10,"40%",IF(J12=Tablas!$I$10,"60%",IF(J12=Tablas!$J$10,"80%",IF(J12=Tablas!$K$10,"100%"))))) -> 80% | L12: =I12*K12 -> 0.32 | M12: =IF(L12<=12%,"Bajo",IF(L12<=24%,"Medio",IF(L12<=40%,"Alto","Muy Alto"))) -> Alto | N12: Implementación del control del Anexo A de la Norma ISO 27001:2022 6. Controles de Personas 6.2 Términos y condiciones del empleo. 6.6 Acuerdos de Confidencialidad o no Divulgación. Se tiene establecido el documento ESG-SSI-F002 ACUERDO DE CONFIDENCIALIDAD PARA MIEMBROS DEL TALENTO HUMANO, PASANTES Y MONITORES. Implementación del numeral 7.3 Toma de Conciencia y el control del Anexo A de la Norma ISO 27001:2022 6.3 Conciencia de seguridad de la información, educación y formación. Se tienen establecido realizar las jornadas de sensibilización en seguriddad y privacidad de la información de acuerdo al cronograma aprobado en la sesión ordinaria de la Comisión de Gestión, las cuales se estan realizando de manera presencial en sede, seccionales, extensiones y oficina de Bogotá. | O12: Sistema de Gestión de Seguridad de la Información - SGSI | P12: Resolución No. 091 "Por la cual se establecen los lineamientos de Protección de Datos Personales de los titulares de la Universidad de Cundinamarca” Resolución No. 092 “Por la cual adopta el Sistema de Gestión de Seguridad de la Información – SGSI y se establecen lineamientos, objetivos y alcance, en la Universidad de Cundinamarca” ESG-SSI-P08 – Implementación del Sistema de Gestión de Seguridad de la Información ESG-SSI-P15 – Gestión de Datos Personales ESG-SSI-M001 Manual de lineamientos de seguridad y privacidad de la información ESG-SSI-M004 Manual de roles y responsabilidades en seguridad y privacidad de la información ESG-SSI-PL01 – Plan Institucional de Sensibilización y Entrenamiento en Seguridad y Privacidad de la Información | Q12: Preventivo | R12: =IF(Q12=Tablas!$R$3,"25%",IF(Q12=Tablas!$R$4,"15%",IF(Q12=Tablas!$R$5,"10%",))) -> 25% | S12: =IF(Q12=Tablas!$R$3,"Probabilidad",IF(Q12=Tablas!$R$4,"Probabilidad",IF(Q12=Tablas!$R$5,"Impacto",))) -> Probabilidad | T12: Manual | U12: =IF(T12=Tablas!$U$3,"25%",IF(T12=Tablas!$U$4,"15%",)) -> 15% | V12: =I12-(I12*(R12+U12)) -> 0.24 | W12: =K12 -> 80% | X12: =V12*W12 -> 0.192 | Y12: =IF(X12<=12%,"Bajo",IF(X12<=24%,"Medio",IF(X12<=40%,"Alto","Muy Alto"))) -> Medio | Z12: Se realiza la revisión y actualización de los riesgos identificados por el proceso, así como los controles establecidos pendiente evidencia ejecución de los mismos por parte de proceso adicional a ello no se ha identificado materialización de riegos de soborno.
B13: ESG-SSI-P09 - GESTION DE INCIDENTES DE SEGURIDAD DE LA INFORMACION | C13: Que un funcionario reciba una dádiva para permitir la apertura de una brecha de seguridad, donde se permita el robo y/o secuestro de información administrativa y/o académica institucional. | D13: Funcionario y/o gestor de la Universidad de Cundinamarca | E13: Funcionario de la UCundinamarca, Tercero contratista ó Tercero externo | F13: Afectación de la cultura de la Ucundinamarca y la credibilidad de los servidores públicos o trabajadores de la Ucundinamarca. | G13: Deficiencia en las acciones de control implementadas que prevengan actuaciones o comportamientos en contravía de lo dispuesta en del Código Autonómico de la UCundinamarca Generación Siglo XXI. | H13: Muy baja | I13: =IF(H13=Tablas!$D$7,"20%",IF(H13=Tablas!$D$6,"40%",IF(H13=Tablas!$D$5,"60%",IF(H13=Tablas!$D$4,"80%",IF(H13=Tablas!$D$3,"100%"))))) -> 20% | J13: Mayor | K13: =IF(J13=Tablas!$G$10,"20%",IF(J13=Tablas!$H$10,"40%",IF(J13=Tablas!$I$10,"60%",IF(J13=Tablas!$J$10,"80%",IF(J13=Tablas!$K$10,"100%"))))) -> 80% | L13: 0.16 | M13: Medio | N13: Implementación del control del Anexo A de la Norma ISO 27001:2022 5. Controles Organizacionales 5.24 Planificación y preparación de la gestión de incidentes de seguridad de la información. 5.25 Evaluación y decisión sobre eventos de seguridad de la información. 5.26 Respuesta a incidentes de seguridad de la información. 5.27 Aprender de los incidentes de seguridad de la información. 5.28 Recopilación de evidencias. | O13: Sistema de Gestión de Seguridad de la Información - SGSI | P13: ESG-SSI-M004 - Manual de roles y responsabilidades en seguridad y privacidad de la información ESG-SSI-F033 - Declaración de Aplicabilidad ESG-SSI-P08 – Implementación del Sistema de Gestión de Seguridad de la Información ESG-SSI-P09 Gestión de Incidentes de Seguridad de la Información | Q13: Preventivo | R13: =IF(Q13=Tablas!$R$3,"25%",IF(Q13=Tablas!$R$4,"15%",IF(Q13=Tablas!$R$5,"10%",))) -> 25% | S13: =IF(Q13=Tablas!$R$3,"Probabilidad",IF(Q13=Tablas!$R$4,"Probabilidad",IF(Q13=Tablas!$R$5,"Impacto",))) -> Probabilidad | T13: Manual | U13: =IF(T13=Tablas!$U$3,"25%",IF(T13=Tablas!$U$4,"15%",)) -> 15% | V13: 0.12 | W13: 80% | X13: 0.096 | Y13: Bajo | Z13: Se realiza la revisión y actualización de los riesgos identificados por el proceso, así como los controles establecidos pendiente evidencia ejecución de los mismos por parte de proceso adicional a ello no se ha identificado materialización de riegos de soborno.
B14: ESG-SSI-P09 - GESTION DE INCIDENTES DE SEGURIDAD DE LA INFORMACION | C14: Que un tercero externo o interno omita los lineamientos establecidos desde la Alta Dirección en articulación con el SGSI y no reporte de manera oportuna, un evento o incidente de seguridad o privacidad de la información. | D14: Funcionario y/o gestor de la Universidad de Cundinamarca | E14: Funcionario de la UCundinamarca, Tercero contratista ó Tercero externo | F14: Afectación de la cultura de la Ucundinamarca y la credibilidad de los servidores públicos o trabajadores de la Ucundinamarca. | G14: Deficiencia en las acciones de control implementadas que prevengan actuaciones o comportamientos en contravía de lo dispuesta en del Código Autonómico de la UCundinamarca Generación Siglo XXI. | H14: Muy baja | I14: =IF(H14=Tablas!$D$7,"20%",IF(H14=Tablas!$D$6,"40%",IF(H14=Tablas!$D$5,"60%",IF(H14=Tablas!$D$4,"80%",IF(H14=Tablas!$D$3,"100%"))))) -> 20% | J14: Mayor | K14: =IF(J14=Tablas!$G$10,"20%",IF(J14=Tablas!$H$10,"40%",IF(J14=Tablas!$I$10,"60%",IF(J14=Tablas!$J$10,"80%",IF(J14=Tablas!$K$10,"100%"))))) -> 80% | L14: 0.16 | M14: Medio | N14: Implementación del control del Anexo A de la Norma ISO 27001:2022 5. Controles Organizacionales. 5.19 Seguridad de la información en las relaciones con proveedores. 5.20 Abordar la seguridad de la información dentro de los acuerdos con proovedores. 5.21 Gestión de seguridad de la información en cadena de suministro de la tecnología de la información y las telecomunicaciones (TIC). | O14: Sistema de Gestión de Seguridad de la Información - SGSI | P14: Resolución No. 091 ¨Por la cual se establecen los lineamientos de Protección de Datos Personales de los titulares de la Universidad de Cundinamarca” Resolución No. 092 “Por la cual adopta el Sistema de Gestión de Seguridad de la Información – SGSI y se establecen lineamientos, objetivos y alcance, en la Universidad de Cundinamarca” ESG- SSI- M001 - Manual de políticas de seguridad y privacidad de la información. ESG-SSI-M013 Manual lineamiento de seguridad de la información con relación a los proveedores y/o terceros ESG-SSI-F020 - Acuerdo de confidencialidad para proveedores y terceros | Q14: Preventivo | R14: =IF(Q14=Tablas!$R$3,"25%",IF(Q14=Tablas!$R$4,"15%",IF(Q14=Tablas!$R$5,"10%",))) -> 25% | S14: =IF(Q14=Tablas!$R$3,"Probabilidad",IF(Q14=Tablas!$R$4,"Probabilidad",IF(Q14=Tablas!$R$5,"Impacto",))) -> Probabilidad | T14: Manual | U14: =IF(T14=Tablas!$U$3,"25%",IF(T14=Tablas!$U$4,"15%",)) -> 15% | V14: 0.12 | W14: 80% | X14: 0.096 | Y14: Bajo | Z14: Se realiza la revisión y actualización de los riesgos identificados por el proceso, así como los controles establecidos pendiente evidencia ejecución de los mismos por parte de proceso adicional a ello no se ha identificado materialización de riegos de soborno.
B16: 13- 46.18
B18: Diagonal 18 No. 20-29 Fusagasugá – Cundinamarca Teléfono (601) 8281483 Línea Gratuita 018000180414 www.ucundinamarca.edu.co E-mail: info@ucundinamarca.edu.co NIT: 890.680.062-2
B20: Documento controlado por el Sistema de Gestión de la Calidad Asegúrese que corresponde a la última versión consultando el Portal Institucional

Sheet 9
D2: MACROPROCESO ESTRATÉGICO | Z2: CÓDIGO: ESG-ESG-GAS-r003
D3: PROCESO GESTIÓN DE SISTEMAS INTEGRADOS | Z3: VERSIÓN: 2
D4: GESTIÓN DEL RIESGO SISTEMA DE GESTIÓN ANTISOBORNO | Z4: VIGENCIA: 2024-08-09
Z5: PÁGINA: 3 de 29
B7: 13.
C8: Proceso responsable: | D8: =Contenido!F20 -> Sistema de Gestión de Antisoborno | G8: Objetivo del Proceso: | H8: Apropiar la postura transhumana basada en valores democráticos de transparencia civilidad y libertad adoptados por el MEDIT para prohibir, prevenir, detectar y sancionar todo tipo de acto de soborno, a través de estándares globales, translócales morales y éticos en el marco de la transparencia garantizando con ello la calidad universitaria bajo la legalidad e integridad. | Z8: Fecha de actualización: | AA8: =Contenido!G10 -> 9 de agosto de 2024.
B10: Procedimiento Asociado | C10: Posibles hechos de soborno (Descripción del riesgo) | D10: Rol del sobornador | E10: Organizaciones externas, funciones o cargos expuestos al hecho de soborno | F10: Riesgos de soborno (Efecto de la incertidumbre sobre los objetivos estratégicos) | G10: Riesgos de soborno (Efecto de la incertidumbre sobre los objetivos del SGAS) | H10: Probabilidad del riesgo inherente | J10: Impacto del riesgo inherente | L10: Nivel de riesgo inherente | M10: Valoración del nivel de riesgo inherente | N10: Controles actuales existentes | O10: Responsable del control | P10: Documentación | Q10: Control | T10: Implementación | V10: Probabilidad del riesgo residual | W10: Impacto del riesgo residual | X10: Nivel de riesgo residual | Y10: Valoración del nivel de riesgo residual | Z10: Controles adicionales requeridos | AA10: Observaciones 2a. Línea (Oficial Antisoborno) | AB10: Observaciones 3a. Línea (Dirección Control Interno)
H11: Probabilidad | I11: % | J11: Impacto | K11: % | Q11: Tipo | R11: % Peso | S11: Afectación | T11: Tipo | U11: % Peso
B12: ESG-GAS-P02 - PROCEDIMIENTO DE SISTEMA DE GESTION ANTISOBORNO | C12: Que se ofrezca una davida a los gestores del sistema de gestion antisoborno con el objetivo de para prevenir y evitar las acciones en contra de las investigaciones a realizar de acuerdo a las denuncias presentadas. | D12: Comunidad Universitarias / Funcionarios administrativos, academicos, estudiantes. | E12: Gestor del sistema de gestion antisoborno / | F12: Deterioro de la imagen institucional de la UCundinamarca frente a la comunidad educativa y la ciudadanía en general. Afectar la credibilidad y el buen nombre de la Universidad de Cundinamarca. | G12: Deficiencia en las acciones de control implementadas que prevengan actuaciones o comportamientos en contravía de lo dispuesta en del Código Autonómico de la UCundinamarca Generación Siglo XXI. | H12: Muy baja | I12: =IF(H12=Tablas!$D$7,"20%",IF(H12=Tablas!$D$6,"40%",IF(H12=Tablas!$D$5,"60%",IF(H12=Tablas!$D$4,"80%",IF(H12=Tablas!$D$3,"100%"))))) -> 20% | J12: Mayor | K12: =IF(J12=Tablas!$G$10,"20%",IF(J12=Tablas!$H$10,"40%",IF(J12=Tablas!$I$10,"60%",IF(J12=Tablas!$J$10,"80%",IF(J12=Tablas!$K$10,"100%"))))) -> 80% | L12: =I12*K12 -> 0.16 | M12: =IF(L12<=12%,"Bajo",IF(L12<=24%,"Medio",IF(L12<=40%,"Alto","Muy Alto"))) -> Medio | N12: Los canales establecidos para las denuncias son a través del Botón " Yo Denuncio", se registra a través del aplicativo SAIC, correo electrónico institucional del SGAS. | O12: Sistema de gestión antisoborno, oficina de atención al ciudadano | P12: Reporte aplicativo SAC. Correo electrónico institucional | Q12: Preventivo | R12: =IF(Q12=Tablas!$R$3,"25%",IF(Q12=Tablas!$R$4,"15%",IF(Q12=Tablas!$R$5,"10%",))) -> 25% | S12: =IF(Q12=Tablas!$R$3,"Probabilidad",IF(Q12=Tablas!$R$4,"Probabilidad",IF(Q12=Tablas!$R$5,"Impacto",))) -> Probabilidad | T12: Automático | U12: =IF(T12=Tablas!$U$3,"25%",IF(T12=Tablas!$U$4,"15%",)) -> 25% | V12: =I12-(I12*(R12+U12)) -> 0.1 | W12: =K12 -> 80% | X12: =V12*W12 -> 0.08 | Y12: =IF(X12<=12%,"Bajo",IF(X12<=24%,"Medio",IF(X12<=40%,"Alto","Muy Alto"))) -> Bajo | Z12: 1. Apropiación y adopción de valores y principios institucionales. 2. Desarrollo del reto de integridad actualizado con la gestión antisobormo. 3. Fortalecimiento del botón "Yo Denuncio". 4. Fortalecimiento de la cultura de integridad y transparencia. | AA12: Se realiza la revisión y actualización de los riesgos identificados por el proceso, así como los controles establecidos y se evidencia ejecución de los mismos por parte de proceso y no se ha identificado materialización de riegos de soborno.
B14: 13- 46.18
B16: Diagonal 18 No. 20-29 Fusagasugá – Cundinamarca Teléfono (601) 8281483 Línea Gratuita 018000180414 www.ucundinamarca.edu.co E-mail: info@ucundinamarca.edu.co NIT: 890.680.062-2
B18: Documento controlado por el Sistema de Gestión de la Calidad Asegúrese que corresponde a la última versión consultando el Portal Institucional

Sheet 10
D2: MACROPROCESO ESTRATÉGICO | Z2: CÓDIGO: ESG-ESG-GAS-r003
D3: PROCESO GESTIÓN DE SISTEMAS INTEGRADOS | Z3: VERSIÓN: 2
D4: GESTIÓN DEL RIESGO SISTEMA DE GESTIÓN ANTISOBORNO | Z4: VIGENCIA: 2024-08-09
Z5: PÁGINA: 4 de 29
B7: 13.
C8: Proceso responsable: | D8: =Contenido!F21 -> Admisiones y Registro | G8: Objetivo del Proceso: | H8: Administrar y controlar las actividades de Admisiones y Registro, para garantizar el cumplimiento de los requisitos y normas vigentes sobre la selección, admisión, permanencia, promoción y graduación de los estudiantes de la Universidad de Cundinamarca. | Z8: Fecha de actualización: | AA8: =Contenido!G10 -> 9 de agosto de 2024.
B10: Procedimiento Asociado | C10: Posibles hechos de soborno (Descripción del riesgo) | D10: Rol del sobornador | E10: Organizaciones externas, funciones o cargos expuestos al hecho de soborno | F10: Riesgos de soborno (Efecto de la incertidumbre sobre los objetivos estratégicos) | G10: Riesgos de soborno (Efecto de la incertidumbre sobre los objetivos del SGAS) | H10: Probabilidad del riesgo inherente | J10: Impacto del riesgo inherente | L10: Nivel de riesgo inherente | M10: Valoración del nivel de riesgo inherente | N10: Controles actuales existentes | O10: Responsable del control | P10: Documentación | Q10: Control | T10: Implementación | V10: Probabilidad del riesgo residual | W10: Impacto del riesgo residual | X10: Nivel de riesgo residual | Y10: Valoración del nivel de riesgo residual | Z10: Controles adicionales requeridos | AA10: Observaciones 2a. Línea (Oficial Antisoborno) | AB10: Observaciones 3a. Línea (Dirección Control Interno)
H11: Probabilidad | I11: % | J11: Impacto | K11: % | Q11: Tipo | R11: % Peso | S11: Afectación | T11: Tipo | U11: % Peso
B12: MARP02 – INSCRIPCIÓN Y SELECCIÓN DE ASPIRANTES | C12: El aspirante a un programa academico en cualquiera de sus modalidades de la UCundinamarca ofrece a un Funcionario de la Oficina de Admisiones y registro una dádiva para que este altere los resutados de la preselección teniendo en cuenta los resultados del ICFES en el proceso de admisión. | D12: Aspirantes de programas de pregrado de la UCundinamarca. | E12: Gestores Oficina de Admisiones y Registro. | F12: Afectación a la imagen y al buen nombre de la institución | G12: Deficiencia en las acciones de control implementadas que prevengan actuaciones o comportamientos en contravía de lo dispuesta en del Código Autonómico de la UCundinamarca Generación Siglo XXI. | H12: Muy baja | I12: =IF(H12=Tablas!$D$7,"20%",IF(H12=Tablas!$D$6,"40%",IF(H12=Tablas!$D$5,"60%",IF(H12=Tablas!$D$4,"80%",IF(H12=Tablas!$D$3,"100%"))))) -> 20% | J12: Moderado | K12: =IF(J12=Tablas!$G$10,"20%",IF(J12=Tablas!$H$10,"40%",IF(J12=Tablas!$I$10,"60%",IF(J12=Tablas!$J$10,"80%",IF(J12=Tablas!$K$10,"100%"))))) -> 60% | L12: =I12*K12 -> 0.12 | M12: =IF(L12<=12%,"Bajo",IF(L12<=24%,"Medio",IF(L12<=40%,"Alto","Muy Alto"))) -> Bajo | N12: Se envían archivos al ICFES para la consulta de los puntajes de los aspirantes. Cargue directo a la plataforma academusoft y esta genera el orden en el que quedan los aspirantes. | O12: Oficina de Admisiones y Registro | P12: Solictud al ICFES mediante la plataforma PRISMA y la respectiva respuesta a la solicitud por parte del ICFES. Aplicativo ACADEMUSOFT, funcionalidad resultados pruebas de estado / Reportes consulta resultados obtenidos. | Q12: Preventivo | R12: =IF(Q12=Tablas!$R$3,"25%",IF(Q12=Tablas!$R$4,"15%",IF(Q12=Tablas!$R$5,"10%",))) -> 25% | S12: =IF(Q12=Tablas!$R$3,"Probabilidad",IF(Q12=Tablas!$R$4,"Probabilidad",IF(Q12=Tablas!$R$5,"Impacto",))) -> Probabilidad | T12: Automático | U12: =IF(T12=Tablas!$U$3,"25%",IF(T12=Tablas!$U$4,"15%",)) -> 25% | V12: =I12-(I12*(R12+U12)) -> 0.1 | W12: =K12 -> 60% | X12: =V12*W12 -> 0.06 | Y12: =IF(X12<=12%,"Bajo",IF(X12<=24%,"Medio",IF(X12<=40%,"Alto","Muy Alto"))) -> Bajo | Z12: 1. Apropiación y adopción de valores y principios institucionales. 2. Desarrollo del reto de integridad actualizado con la gestión antisobormo. 3. Firma del formatos ESG-GAS-r007: Compromiso ANTICORRUPCIÓN Y ANTISOBORNO PARA MIEMBROS DEL TALENTO HUMANO, PASANTES Y MONITORES 4. Fortalecimiento de la cultura de integridad y transparencia. | AA12: Se realiza la revisión y actualización de los riesgos identificados por el proceso, así como los controles establecidos y se evidencia ejecución de los mismos por parte de proceso y no se ha identificado materialización de riegos de soborno.
B13: MARP02 – INSCRIPCIÓN Y SELECCIÓN DE ASPIRANTES | C13: Que el aspirante a un programa de pregrado y/o postgrado ofrezca una contraprestación con el fin de realizar la inscripción fuera de los tiempos establecidos en el calendario académico. | D13: Aspirantes de programas de pregrado de la UCundinamarca. | E13: Gestor de la Oficina de Admisiones y Registro Gestor Oficina de Tesorería Direcciones de Programa Oficina de Postgrados | F13: Afectación a la imagen y al buen nombre de la institución | G13: Deficiencia en las acciones de control implementadas que prevengan actuaciones o comportamientos en contravía de lo dispuesta en del Código Autonómico de la UCundinamarca Generación Siglo XXI. | H13: Muy baja | I13: =IF(H13=Tablas!$D$7,"20%",IF(H13=Tablas!$D$6,"40%",IF(H13=Tablas!$D$5,"60%",IF(H13=Tablas!$D$4,"80%",IF(H13=Tablas!$D$3,"100%"))))) -> 20% | J13: Mayor | K13: =IF(J13=Tablas!$G$10,"20%",IF(J13=Tablas!$H$10,"40%",IF(J13=Tablas!$I$10,"60%",IF(J13=Tablas!$J$10,"80%",IF(J13=Tablas!$K$10,"100%"))))) -> 80% | L13: =I13*K13 -> 0.16 | M13: =IF(L13<=12%,"Bajo",IF(L13<=24%,"Medio",IF(L13<=40%,"Alto","Muy Alto"))) -> Medio | N13: Parametrización del aplicativo de acuerdo con el calendario académico. Decisiones establecidas por el Consejo Académico. Correo remitido a Tesorería comunicando las fechas de inscripción. | O13: Oficina de Admisiones y Registro Oficina de Tesorería. | P13: Aplicativo ACADEMUSOFT. Correo remitido a Tesorería comunicando las fechas de inscripción. | Q13: Preventivo | R13: =IF(Q13=Tablas!$R$3,"25%",IF(Q13=Tablas!$R$4,"15%",IF(Q13=Tablas!$R$5,"10%",))) -> 25% | S13: =IF(Q13=Tablas!$R$3,"Probabilidad",IF(Q13=Tablas!$R$4,"Probabilidad",IF(Q13=Tablas!$R$5,"Impacto",))) -> Probabilidad | T13: Automático | U13: =IF(T13=Tablas!$U$3,"25%",IF(T13=Tablas!$U$4,"15%",)) -> 25% | V13: =I13-(I13*(R13+U13)) -> 0.1 | W13: =K13 -> 80% | X13: =V13*W13 -> 0.08 | Y13: =IF(X13<=12%,"Bajo",IF(X13<=24%,"Medio",IF(X13<=40%,"Alto","Muy Alto"))) -> Bajo | Z13: 1. Apropiación y adopción de valores y principios institucionales. 2. Desarrollo del reto de integridad actualizado con la gestión antisobormo. 3. Firma del formatos ESG-GAS-r007: Compromiso ANTICORRUPCIÓN Y ANTISOBORNO PARA MIEMBROS DEL TALENTO HUMANO, PASANTES Y MONITORES 4. Fortalecimiento de la cultura de integridad y transparencia. | AA13: Se realiza la revisión y actualización de los riesgos identificados por el proceso, así como los controles establecidos y se evidencia ejecución de los mismos por parte de proceso y no se ha identificado materialización de riegos de soborno.
B14: MARP05 - NOVEDADES EN DESARROLLO ACADEMICO | C14: Que el estudiante ofrezca una dádiva para tramitar una solicitud de validación, cancelación de núcleos temáticos, cancelación de semestre o retiro voluntario, reingreso, traslado o transferencia, la cual no ha sido debidamente aprobada. | D14: El Estudiante | E14: Gestor de la Oficina de Admisiones y Registro | F14: Afectación a la imagen y al buen nombre de la institución | G14: Deficiencia en las acciones de control implementadas que prevengan actuaciones o comportamientos en contravía de lo dispuesta en del Código Autonómico de la UCundinamarca Generación Siglo XXI. | H14: Baja | I14: =IF(H14=Tablas!$D$7,"20%",IF(H14=Tablas!$D$6,"40%",IF(H14=Tablas!$D$5,"60%",IF(H14=Tablas!$D$4,"80%",IF(H14=Tablas!$D$3,"100%"))))) -> 40% | J14: Catastrófico | K14: =IF(J14=Tablas!$G$10,"20%",IF(J14=Tablas!$H$10,"40%",IF(J14=Tablas!$I$10,"60%",IF(J14=Tablas!$J$10,"80%",IF(J14=Tablas!$K$10,"100%"))))) -> 100% | L14: 0.4 | M14: Alto | N14: Actas de Consejo de Facultad con las novedades solicitadas por parte de los estudiantes. Correos electrónicos con la aprobación de la novedad. Solicitud del estudiante por medio del aplicativo SIS. Validación de la aprobación de la novedad. | O14: Oficina de Admisiones y Registro. Coordinadores de Programa. | P14: Actas de Consejo de Facultad. Correos electrónicos. Solicitudes SIS. Novedad aplicada en el Sistema. | Q14: Preventivo | R14: =IF(Q14=Tablas!$R$3,"25%",IF(Q14=Tablas!$R$4,"15%",IF(Q14=Tablas!$R$5,"10%",))) -> 25% | S14: =IF(Q14=Tablas!$R$3,"Probabilidad",IF(Q14=Tablas!$R$4,"Probabilidad",IF(Q14=Tablas!$R$5,"Impacto",))) -> Probabilidad | T14: Manual | U14: =IF(T14=Tablas!$U$3,"25%",IF(T14=Tablas!$U$4,"15%",)) -> 15% | V14: 0.24 | W14: 100% | X14: 0.24 | Y14: =IF(X14<=12%,"Bajo",IF(X14<=24%,"Medio",IF(X14<=40%,"Alto","Muy Alto"))) -> Medio | Z14: 1. Apropiación y adopción de valores y principios institucionales. 2. Desarrollo del reto de integridad actualizado con la gestión antisobormo. 3. Firma del formatos ESG-GAS-r007: Compromiso ANTICORRUPCIÓN Y ANTISOBORNO PARA MIEMBROS DEL TALENTO HUMANO, PASANTES Y MONITORES 4. Fortalecimiento de la cultura de integridad y transparencia. | AA14: Se realiza la revisión y actualización de los riesgos identificados por el proceso, así como los controles establecidos y se evidencia ejecución de los mismos por parte de proceso y no se ha identificado materialización de riegos de soborno.
B15: MARP06 – GRADOS Y TITULOS ACADEMICOS | C15: Que el estudiante ofrezca una contraprestación a un gestor de la Oficina de Adminisiones y Registro para emitir un título académico sin cumplir los requisitos exigidos. | D15: El Estudiante | E15: Gestor de la Oficina de Admisiones y Registro | F15: Afectación a la imagen y al buen nombre de la institución | G15: Deficiencia en las acciones de control implementadas que prevengan actuaciones o comportamientos en contravía de lo dispuesta en del Código Autonómico de la UCundinamarca Generación Siglo XXI. | H15: Baja | I15: =IF(H15=Tablas!$D$7,"20%",IF(H15=Tablas!$D$6,"40%",IF(H15=Tablas!$D$5,"60%",IF(H15=Tablas!$D$4,"80%",IF(H15=Tablas!$D$3,"100%"))))) -> 40% | J15: Moderado | K15: =IF(J15=Tablas!$G$10,"20%",IF(J15=Tablas!$H$10,"40%",IF(J15=Tablas!$I$10,"60%",IF(J15=Tablas!$J$10,"80%",IF(J15=Tablas!$K$10,"100%"))))) -> 60% | L15: 0.24 | M15: Medio | N15: Generación automática de las actas de grado de los estudiantes registrados en la plataforma. Validación de la hoja de vida académica en físico y a través del aplicativo. Revisión de las actas de sustentación, y vistos buenos emitidos por los programas académicos. Cambio automático de situación "estudiante" a "graduado". Generación de actas por medio del aplicativo de manera consecutiva que contiene libro, folio y registro de diploma. | O15: Oficina de Admisiones y Registro Coordinadores de programas académicos | P15: Actas de Grado Hoja de vida académica Actas de sustentación de grado. Diplomas con consecutivo del libro y folio. | Q15: Preventivo | R15: =IF(Q15=Tablas!$R$3,"25%",IF(Q15=Tablas!$R$4,"15%",IF(Q15=Tablas!$R$5,"10%",))) -> 25% | S15: =IF(Q15=Tablas!$R$3,"Probabilidad",IF(Q15=Tablas!$R$4,"Probabilidad",IF(Q15=Tablas!$R$5,"Impacto",))) -> Probabilidad | T15: Manual | U15: =IF(T15=Tablas!$U$3,"25%",IF(T15=Tablas!$U$4,"15%",)) -> 15% | V15: 0.24 | W15: 60% | X15: 0.144 | Y15: Medio | Z15: 1. Apropiación y adopción de valores y principios institucionales. 2. Desarrollo del reto de integridad actualizado con la gestión antisobormo. 3. Firma del formatos ESG-GAS-r007: Compromiso ANTICORRUPCIÓN Y ANTISOBORNO PARA MIEMBROS DEL TALENTO HUMANO, PASANTES Y MONITORES 4. Fortalecimiento de la cultura de integridad y transparencia. | AA15: Se realiza la revisión y actualización de los riesgos identificados por el proceso, así como los controles establecidos y se evidencia ejecución de los mismos por parte de proceso y no se ha identificado materialización de riegos de soborno.
B16: MARP07 - SOLICITUD DE DOCUMENTOS | C16: Que un estudiante ofrezca una dádiva al gestor de la Oficina de Admisiones y Registro para que este expida una constancia ó certificación en la cual se altere el estado académico actual y real del solicitante, ó sin los requisitos para solicitar los documentos. | D16: El Estudiante | E16: Gestor de la Oficina de Admisiones y Registro | F16: Afectación a la imagen y al buen nombre de la institución | G16: Deficiencia en las acciones de control implementadas que prevengan actuaciones o comportamientos en contravía de lo dispuesta en del Código Autonómico de la UCundinamarca Generación Siglo XXI. | H16: Baja | I16: =IF(H16=Tablas!$D$7,"20%",IF(H16=Tablas!$D$6,"40%",IF(H16=Tablas!$D$5,"60%",IF(H16=Tablas!$D$4,"80%",IF(H16=Tablas!$D$3,"100%"))))) -> 40% | J16: Moderado | K16: =IF(J16=Tablas!$G$10,"20%",IF(J16=Tablas!$H$10,"40%",IF(J16=Tablas!$I$10,"60%",IF(J16=Tablas!$J$10,"80%",IF(J16=Tablas!$K$10,"100%"))))) -> 60% | L16: 0.24 | M16: Medio | N16: Verificación de la solicitud por medio del aplicativo SIS, la cual debe contener el recibo de pago. Verificación en la plataforma ACADEMUSOFT, del estado actual de la vinculación del solicitante con la UCundinamarca. Revisón y firma por parte del Jefe de la Oficina de Admisiones y Registro. | O16: Oficina de Admisiones y Registro | P16: Solicitud SIS. Recibo de pago. Documento firmado. | Q16: Preventivo | R16: =IF(Q16=Tablas!$R$3,"25%",IF(Q16=Tablas!$R$4,"15%",IF(Q16=Tablas!$R$5,"10%",))) -> 25% | S16: =IF(Q16=Tablas!$R$3,"Probabilidad",IF(Q16=Tablas!$R$4,"Probabilidad",IF(Q16=Tablas!$R$5,"Impacto",))) -> Probabilidad | T16: Manual | U16: =IF(T16=Tablas!$U$3,"25%",IF(T16=Tablas!$U$4,"15%",)) -> 15% | V16: 0.24 | W16: 60% | X16: 0.144 | Y16: Medio | Z16: 1. Apropiación y adopción de valores y principios institucionales. 2. Desarrollo del reto de integridad actualizado con la gestión antisobormo. 3. Firma del formatos ESG-GAS-r007: Compromiso ANTICORRUPCIÓN Y ANTISOBORNO PARA MIEMBROS DEL TALENTO HUMANO, PASANTES Y MONITORES 4. Fortalecimiento de la cultura de integridad y transparencia. | AA16: Se realiza la revisión y actualización de los riesgos identificados por el proceso, así como los controles establecidos y se evidencia ejecución de los mismos por parte de proceso y no se ha identificado materialización de riegos de soborno.
B18: 13- 46.18
B19: Diagonal 18 No. 20-29 Fusagasugá – Cundinamarca Teléfono (601) 8281483 Línea Gratuita 018000180414 www.ucundinamarca.edu.co E-mail: info@ucundinamarca.edu.co NIT: 890.680.062-2
B21: Documento controlado por el Sistema de Gestión de la Calidad Asegúrese que corresponde a la última versión consultando el Portal Institucional

Sheet 11
D2: MACROPROCESO ESTRATÉGICO | Z2: CÓDIGO: ESG-ESG-GAS-r003
D3: PROCESO GESTIÓN DE SISTEMAS INTEGRADOS | Z3: VERSIÓN: 2
D4: GESTIÓN DEL RIESGO SISTEMA DE GESTIÓN ANTISOBORNO | Z4: VIGENCIA: 2024-08-09
Z5: PÁGINA: 5 de 29
B7: 13.
C8: Proceso responsable: | D8: =Contenido!F22 -> Bienestar Universitario | G8: Objetivo del Proceso: | H8: Planear, promover y ejecutar programas que busquen el mejoramiento de la calidad de vida de la comunidad universitaria, contribuyendo al desarrollo humano y a la formación integral, a través de actividades deportivas, culturales, recreativas, de promoción y prevención, así como estrategias que busquen fortalecer la permanencia de los estudiantes que hacen parte de la comunidad. | Z8: Fecha de actualización: | AA8: =Contenido!G10 -> 9 de agosto de 2024.
B10: Procedimiento Asociado | C10: Posibles hechos de soborno (Descripción del riesgo) | D10: Rol del sobornador | E10: Organizaciones externas, funciones o cargos expuestos al hecho de soborno | F10: Riesgos de soborno (Efecto de la incertidumbre sobre los objetivos estratégicos) | G10: Riesgos de soborno (Efecto de la incertidumbre sobre los objetivos del SGAS) | H10: Probabilidad del riesgo inherente | J10: Impacto del riesgo inherente | L10: Nivel de riesgo inherente | M10: Valoración del nivel de riesgo inherente | N10: Controles actuales existentes | O10: Responsable del control | P10: Documentación | Q10: Control | T10: Implementación | V10: Probabilidad del riesgo residual | W10: Impacto del riesgo residual | X10: Nivel de riesgo residual | Y10: Valoración del nivel de riesgo residual | Z10: Controles adicionales requeridos | AA10: Observaciones 2a. Línea (Oficial Antisoborno) | AB10: Observaciones 3a. Línea (Dirección Control Interno)
H11: Probabilidad | I11: % | J11: Impacto | K11: % | Q11: Tipo | R11: % Peso | S11: Afectación | T11: Tipo | U11: % Peso
B12: MBUP01 – Permanencia De Los Estudiantes | C12: Que un proveedor ofrezca o prometa una dádiva para que se aprueben las condiciones sanitarias para la prestacion del servicio. | D12: Gestor de Salud de la Dirección de Bienestar Universitario | E12: Funcionario de la Oficina de Bienestar Universitario | F12: Reducción de la capacidad institucional para responder a las necesidades de la población en lo relacionado con el acceso y permanencia en la educación superior pública. | G12: Deficiencia en las acciones de control implementadas que prevengan actuaciones o comportamientos en contravía de lo dispuesta en del Código Autonómico de la UCundinamarca Generación Siglo XXI. | H12: Muy baja | I12: =IF(H12=Tablas!$D$7,"20%",IF(H12=Tablas!$D$6,"40%",IF(H12=Tablas!$D$5,"60%",IF(H12=Tablas!$D$4,"80%",IF(H12=Tablas!$D$3,"100%"))))) -> 20% | J12: Mayor | K12: =IF(J12=Tablas!$G$10,"20%",IF(J12=Tablas!$H$10,"40%",IF(J12=Tablas!$I$10,"60%",IF(J12=Tablas!$J$10,"80%",IF(J12=Tablas!$K$10,"100%"))))) -> 80% | L12: =I12*K12 -> 0.16 | M12: =IF(L12<=12%,"Bajo",IF(L12<=24%,"Medio",IF(L12<=40%,"Alto","Muy Alto"))) -> Medio | N12: Verificación de condiciones de las instalaciones físicas y sanitarias, condiciones de saneamiento, condiciones del área de preparacion de alimentos, equipos y utencilios, condiciones de manejo preparacion y servicio, personal manipulador, salud ocupacional. | O12: Dirección de Bienestar Universitario | P12: Formato MBUr 005 - Verificación de Condiciones. Formato MBUr 100 Visita de proveedores. | Q12: Preventivo | R12: =IF(Q12=Tablas!$R$3,"25%",IF(Q12=Tablas!$R$4,"15%",IF(Q12=Tablas!$R$5,"10%",))) -> 25% | S12: =IF(Q12=Tablas!$R$3,"Probabilidad",IF(Q12=Tablas!$R$4,"Probabilidad",IF(Q12=Tablas!$R$5,"Impacto",))) -> Probabilidad | T12: Manual | U12: =IF(T12=Tablas!$U$3,"25%",IF(T12=Tablas!$U$4,"15%",)) -> 15% | V12: =I12-(I12*(R12+U12)) -> 0.12 | W12: =K12 -> 80% | X12: =V12*W12 -> 0.096 | Y12: =IF(X12<=12%,"Bajo",IF(X12<=24%,"Medio",IF(X12<=40%,"Alto","Muy Alto"))) -> Bajo | Z12: 1. Apropiación y adopción de valores y principios institucionales. 2. Desarrollo del reto de integridad actualizado con la gestión antisobormo. 3. Fortalecimiento del botón "Yo Denuncio". 4. Fortalecimiento de la cultura de integridad y transparencia. | AA12: Se realiza la revisión y actualización de los riesgos identificados por el proceso, así como los controles establecidos y se evidencia ejecución de los mismos por parte de proceso y no se ha identificado materialización de riegos de soborno.
B13: MBUP01 – Permanencia De Los Estudiantes | C13: Que un estudiante ofrezca o prometa una dádiva para ser selecccionado en el programa de beneficios socioeconomicos con o sin cumplir con los requisitos exigidos en el aplicativo SIPSE. | D13: Gestor Dirección de Bienestar Universitario | E13: Funcionario de la Oficina de Bienestar Universitario | F13: Reducción de la capacidad institucional para responder a las necesidades de la población en lo relacionado con el acceso y permanencia en la educación superior pública. | G13: Deficiencia en las acciones de control implementadas que prevengan actuaciones o comportamientos en contravía de lo dispuesta en del Código Autonómico de la UCundinamarca Generación Siglo XXI. | H13: Muy baja | I13: =IF(H13=Tablas!$D$7,"20%",IF(H13=Tablas!$D$6,"40%",IF(H13=Tablas!$D$5,"60%",IF(H13=Tablas!$D$4,"80%",IF(H13=Tablas!$D$3,"100%"))))) -> 20% | J13: Mayor | K13: =IF(J13=Tablas!$G$10,"20%",IF(J13=Tablas!$H$10,"40%",IF(J13=Tablas!$I$10,"60%",IF(J13=Tablas!$J$10,"80%",IF(J13=Tablas!$K$10,"100%"))))) -> 80% | L13: =I13*K13 -> 0.16 | M13: =IF(L13<=12%,"Bajo",IF(L13<=24%,"Medio",IF(L13<=40%,"Alto","Muy Alto"))) -> Medio | N13: El aplicativo SIPSE está parametrizado para filtrar y arrojar los resultados conforme al cruce de requisitos establecidos en la Resolución 135/2005.(aceso restringido desde la Dirección de B.U). Análisis y depuración de los datos conforme a los reportes que arroja el aplicativo SIPSE para ser presentados ante el Comité de Puntaje. Se realiza la verificación de resultados de la convocatoria, los cuales son analizados por el Comité de puntaje creado bajo Resolución 135/2005, quien aprueba o desaprueba únicamente teniendo en cuenta el cumplimiento de los requisitos establecidos en la norma mencionada. | O13: Dirección de Bienestar Universitario | P13: Aplicativo SIPSE Acta del Comité de Puntaje, grabación de las sesiones. Resoluciones rectorales con los beneficiarios de los programas socioeconómicos. | Q13: Preventivo | R13: =IF(Q13=Tablas!$R$3,"25%",IF(Q13=Tablas!$R$4,"15%",IF(Q13=Tablas!$R$5,"10%",))) -> 25% | S13: =IF(Q13=Tablas!$R$3,"Probabilidad",IF(Q13=Tablas!$R$4,"Probabilidad",IF(Q13=Tablas!$R$5,"Impacto",))) -> Probabilidad | T13: Automático | U13: =IF(T13=Tablas!$U$3,"25%",IF(T13=Tablas!$U$4,"15%",)) -> 25% | V13: =I13-(I13*(R13+U13)) -> 0.1 | W13: =K13 -> 80% | X13: =V13*W13 -> 0.08 | Y13: =IF(X13<=12%,"Bajo",IF(X13<=24%,"Medio",IF(X13<=40%,"Alto","Muy Alto"))) -> Bajo | Z13: Parametrización del aplicativo SIPSE teniendo en cuenta aspectos especificos de los aspirantes. | AA13: Se realiza la revisión y actualización de los riesgos identificados por el proceso, así como los controles establecidos y se evidencia ejecución de los mismos por parte de proceso y no se ha identificado materialización de riegos de soborno.
B14: MBUP02 – Fortalecimiento De Aptitudes Y Actitudes Culturales, Deportivas Y Aprovechamiento Del Tiempo Libre | C14: Que un tercero interno ofrezca y/o prometa una dádiva con el fin de obtener un cupo en los eventos culturales y deportivos sin haber hecho parte de los debidos procesos formativos. | D14: Gestor Dirección de Bienestar Universitario | E14: Funcionario de la Oficina de Bienestar Universitario | F14: Deterioro de la reputación institucional que afecta su capacidad y gobernanza, perdida de credibilidad al interior y exterior de la Universidad | G14: Deficiencia en las acciones de control implementadas que prevengan actuaciones o comportamientos en contravía de lo dispuesta en del Código Autonómico de la UCundinamarca Generación Siglo XXI. | H14: Media | I14: =IF(H14=Tablas!$D$7,"20%",IF(H14=Tablas!$D$6,"40%",IF(H14=Tablas!$D$5,"60%",IF(H14=Tablas!$D$4,"80%",IF(H14=Tablas!$D$3,"100%"))))) -> 60% | J14: Catastrófico | K14: =IF(J14=Tablas!$G$10,"20%",IF(J14=Tablas!$H$10,"40%",IF(J14=Tablas!$I$10,"60%",IF(J14=Tablas!$J$10,"80%",IF(J14=Tablas!$K$10,"100%"))))) -> 100% | L14: 0.6 | M14: Muy Alto | N14: Selección de los participantes por parte de los instructores, conforme a los procesos formativos. Revisión del coordinador deportivo y cultural. Revisión cooperativa del cumplimiento de requisitos de los aspirantes a participar. (Dirección de B.U, Oficina de Admisiones y Registro). | O14: Dirección de Bienestar Universitario | P14: Listado de aspirantes seleccionados. Correos electrónicos. Planillas de inscripción de la plataforma HERCULES. - (ASCUN) | Q14: Preventivo | R14: =IF(Q14=Tablas!$R$3,"25%",IF(Q14=Tablas!$R$4,"15%",IF(Q14=Tablas!$R$5,"10%",))) -> 25% | S14: =IF(Q14=Tablas!$R$3,"Probabilidad",IF(Q14=Tablas!$R$4,"Probabilidad",IF(Q14=Tablas!$R$5,"Impacto",))) -> Probabilidad | T14: Manual | U14: =IF(T14=Tablas!$U$3,"25%",IF(T14=Tablas!$U$4,"15%",)) -> 15% | V14: 0.36 | W14: 100% | X14: 0.36 | Y14: =IF(X14<=12%,"Bajo",IF(X14<=24%,"Medio",IF(X14<=40%,"Alto","Muy Alto"))) -> Alto | Z14: 1. Apropiación y adopción de valores y principios institucionales. 2. Desarrollo del reto de integridad actualizado con la gestión antisobormo. 3. Fortalecimiento del botón "Yo Denuncio". 4. Fortalecimiento de la cultura de integridad y transparencia. | AA14: Se realiza la revisión y actualización de los riesgos identificados por el proceso, así como los controles establecidos y se evidencia ejecución de los mismos por parte de proceso y no se ha identificado materialización de riegos de soborno.
B16: 13- 46.18
B18: Diagonal 18 No. 20-29 Fusagasugá – Cundinamarca Teléfono (601) 8281483 Línea Gratuita 018000180414 www.ucundinamarca.edu.co E-mail: info@ucundinamarca.edu.co NIT: 890.680.062-2
B20: Documento controlado por el Sistema de Gestión de la Calidad Asegúrese que corresponde a la última versión consultando el Portal Institucional

Sheet 12
D2: MACROPROCESO ESTRATÉGICO | Z2: CÓDIGO: ESG-ESG-GAS-r003
D3: PROCESO GESTIÓN DE SISTEMAS INTEGRADOS | Z3: VERSIÓN: 2
D4: GESTIÓN DEL RIESGO SISTEMA DE GESTIÓN ANTISOBORNO | Z4: VIGENCIA: 2024-08-09
Z5: PÁGINA: 6 de 29
B7: 13.
C8: Proceso responsable: | D8: =Contenido!F23 -> Ciencia Tecnología e Innovación | G8: Objetivo del Proceso: | H8: Generar y transferir conocimiento científico relevante que aporte al desarrollo de la comunidad local, regional, nacional e internacional, a través de proyectos de investigación e innovación enmarcados en el Sistema Nacional de Ciencia, Tecnología e Innovación. | Z8: Fecha de actualización: | AA8: =Contenido!G10 -> 9 de agosto de 2024.
B10: Procedimiento Asociado | C10: Posibles hechos de soborno (Descripción del riesgo) | D10: Rol del sobornador | E10: Organizaciones externas, funciones o cargos expuestos al hecho de soborno | F10: Riesgos de soborno (Efecto de la incertidumbre sobre los objetivos estratégicos) | G10: Riesgos de soborno (Efecto de la incertidumbre sobre los objetivos del SGAS) | H10: Probabilidad del riesgo inherente | J10: Impacto del riesgo inherente | L10: Nivel de riesgo inherente | M10: Valoración del nivel de riesgo inherente | N10: Controles actuales existentes | O10: Responsable del control | P10: Documentación | Q10: Control | T10: Implementación | V10: Probabilidad del riesgo residual | W10: Impacto del riesgo residual | X10: Nivel de riesgo residual | Y10: Valoración del nivel de riesgo residual | Z10: Controles adicionales requeridos | AA10: Observaciones 2a. Línea (Oficial Antisoborno) | AB10: Observaciones 3a. Línea (Dirección Control Interno)
H11: Probabilidad | I11: % | J11: Impacto | K11: % | Q11: Tipo | R11: % Peso | S11: Afectación | T11: Tipo | U11: % Peso
B12: MCTP03 - Proyectos de Investigación | C12: Que el Docente Investigador ofrezca dávidas para que el profesional encargado de gestionar los pares evaluadores externos dé el visto bueno a su propuesta y sea seleccionada. | D12: Profesional designado de la Dirección de Investigación | E12: Profesional designado de la Dirección de Investigación | F12: Deterioro de la reputación institucional que afecta su gobernanza. | G12: Deficiencia en las acciones de control implementadas que prevengan actuaciones o comportamientos en contravía de lo dispuesta en del Código Autonómico de la UCundinamarca Generación Siglo XXI. | H12: Muy baja | I12: =IF(H12=Tablas!$D$7,"20%",IF(H12=Tablas!$D$6,"40%",IF(H12=Tablas!$D$5,"60%",IF(H12=Tablas!$D$4,"80%",IF(H12=Tablas!$D$3,"100%"))))) -> 20% | J12: Moderado | K12: =IF(J12=Tablas!$G$10,"20%",IF(J12=Tablas!$H$10,"40%",IF(J12=Tablas!$I$10,"60%",IF(J12=Tablas!$J$10,"80%",IF(J12=Tablas!$K$10,"100%"))))) -> 60% | L12: =I12*K12 -> 0.12 | M12: =IF(L12<=12%,"Bajo",IF(L12<=24%,"Medio",IF(L12<=40%,"Alto","Muy Alto"))) -> Bajo | N12: No es posible que el Docente Investigador conozca los pares ciegos. Se modifica el formato de presentación de propuesta del proyecto. Verificación de la no existencia de conflicto de interes entre los pares evaluadores y autores del proyecto. | O12: Dirección de Investigación | Q12: Preventivo | R12: =IF(Q12=Tablas!$R$3,"25%",IF(Q12=Tablas!$R$4,"15%",IF(Q12=Tablas!$R$5,"10%",))) -> 25% | S12: =IF(Q12=Tablas!$R$3,"Probabilidad",IF(Q12=Tablas!$R$4,"Probabilidad",IF(Q12=Tablas!$R$5,"Impacto",))) -> Probabilidad | T12: Manual | U12: =IF(T12=Tablas!$U$3,"25%",IF(T12=Tablas!$U$4,"15%",)) -> 15% | V12: =I12-(I12*(R12+U12)) -> 0.12 | W12: =K12 -> 60% | X12: =V12*W12 -> 0.072 | Y12: =IF(X12<=12%,"Bajo",IF(X12<=24%,"Medio",IF(X12<=40%,"Alto","Muy Alto"))) -> Bajo | Z12: 1. Apropiación y adopción de valores y principios institucionales. 2. Desarrollo del reto de integridad actualizado con la gestión antisobormo. 3. Fortalecimiento del botón "Yo Denuncio". 4. Fortalecimiento de la cultura de integridad y transparencia. | AA12: Se realiza la revisión y actualización de los riesgos identificados por el proceso no se remite actualización de los mismos para lo cual se mantienen, pendiente evidencia ejecución de los mismos por parte de proceso, adicional a ello no se ha identificado materialización de riegos de soborno.
B13: MCTP03 - Proyectos de Investigación | C13: Que el Docente Investigador ofrezca una contraprestación para que se alteren los resultados de las evaluaciones enviadas por los pares evaluadores. | D13: Gestor de la Dirección de Investigación | E13: Profesional designado de la Dirección de Investigación | F13: Deterioro de la reputación institucional que afecta su gobernanza. | G13: Deficiencia en las acciones de control implementadas que prevengan actuaciones o comportamientos en contravía de lo dispuesta en del Código Autonómico de la UCundinamarca Generación Siglo XXI. | H13: Muy baja | I13: =IF(H13=Tablas!$D$7,"20%",IF(H13=Tablas!$D$6,"40%",IF(H13=Tablas!$D$5,"60%",IF(H13=Tablas!$D$4,"80%",IF(H13=Tablas!$D$3,"100%"))))) -> 20% | J13: Moderado | K13: =IF(J13=Tablas!$G$10,"20%",IF(J13=Tablas!$H$10,"40%",IF(J13=Tablas!$I$10,"60%",IF(J13=Tablas!$J$10,"80%",IF(J13=Tablas!$K$10,"100%"))))) -> 60% | L13: =I13*K13 -> 0.12 | M13: =IF(L13<=12%,"Bajo",IF(L13<=24%,"Medio",IF(L13<=40%,"Alto","Muy Alto"))) -> Bajo | N13: Asignación aleatoria de proyectos de investigación a gestores de la Dirección de Investigación. Correos electronicos recibidos con las evaluaciones de los pares evaluadores. El Docente Investigador desconoce los resultados de la evaluación, hasta la publicación. | O13: Dirección de Investigación | P13: Formato de presentación de propuesta del proyecto. Evaluación de los pares MCTr 024 - EVALUACION DE PROYECTOS DE INVESTIGACION POR PARTE DE PARES EXTERNOS. MCTr - 036 - DECLARACION CONFLICTO DE INTERESES Y ACUERDO DE CONFIDENCIALIDAD PARA PARES EVALUADORES EXTERNOS. | Q13: Preventivo | R13: =IF(Q13=Tablas!$R$3,"25%",IF(Q13=Tablas!$R$4,"15%",IF(Q13=Tablas!$R$5,"10%",))) -> 25% | S13: =IF(Q13=Tablas!$R$3,"Probabilidad",IF(Q13=Tablas!$R$4,"Probabilidad",IF(Q13=Tablas!$R$5,"Impacto",))) -> Probabilidad | T13: Manual | U13: =IF(T13=Tablas!$U$3,"25%",IF(T13=Tablas!$U$4,"15%",)) -> 15% | V13: =I13-(I13*(R13+U13)) -> 0.12 | W13: =K13 -> 60% | X13: =V13*W13 -> 0.072 | Y13: =IF(X13<=12%,"Bajo",IF(X13<=24%,"Medio",IF(X13<=40%,"Alto","Muy Alto"))) -> Bajo | Z13: 1. Apropiación y adopción de valores y principios institucionales. 2. Desarrollo del reto de integridad actualizado con la gestión antisobormo. 3. Fortalecimiento del botón "Yo Denuncio". 4. Fortalecimiento de la cultura de integridad y transparencia. | AA13: Se realiza la revisión y actualización de los riesgos identificados por el proceso no se remite actualización de los mismos para lo cual se mantienen, pendiente evidencia ejecución de los mismos por parte de proceso, adicional a ello no se ha identificado materialización de riegos de soborno.
B14: MCTP03 - Proyectos de Investigación | C14: Que el Docente Investigador ofrezca una contraprestación para se cierre el proyecto de investigación sin la calidad mínima requerida en la entrega de los productos propuestos. | D14: Gestor de la Dirección de Investigación | E14: Profesional designado de la Dirección de Investigación | F14: Deterioro de la reputación institucional que afecta su gobernanza. | G14: Deficiencia en las acciones de control implementadas que prevengan actuaciones o comportamientos en contravía de lo dispuesta en del Código Autonómico de la UCundinamarca Generación Siglo XXI. | H14: Media | I14: =IF(H14=Tablas!$D$7,"20%",IF(H14=Tablas!$D$6,"40%",IF(H14=Tablas!$D$5,"60%",IF(H14=Tablas!$D$4,"80%",IF(H14=Tablas!$D$3,"100%"))))) -> 60% | J14: Moderado | K14: =IF(J14=Tablas!$G$10,"20%",IF(J14=Tablas!$H$10,"40%",IF(J14=Tablas!$I$10,"60%",IF(J14=Tablas!$J$10,"80%",IF(J14=Tablas!$K$10,"100%"))))) -> 60% | L14: 0.36 | M14: Alto | N14: Aval del Consejo de Facultad. Revisión del Informe final del proyecto de investigación con sus soportes. Aval del Comité para el Desarrollo de la Investigación. Acta de cierre del proyecto debidamente suscrita. | O14: Dirección de Investigación | P14: Base de datos compartida. Correos electrónicos. Cronograma de la convocatoria. Acta Comité para el Desarrollo de la Investigación. Publicación de los resultados de los proyectos. | Q14: Preventivo | R14: =IF(Q14=Tablas!$R$3,"25%",IF(Q14=Tablas!$R$4,"15%",IF(Q14=Tablas!$R$5,"10%",))) -> 25% | S14: =IF(Q14=Tablas!$R$3,"Probabilidad",IF(Q14=Tablas!$R$4,"Probabilidad",IF(Q14=Tablas!$R$5,"Impacto",))) -> Probabilidad | T14: Manual | U14: =IF(T14=Tablas!$U$3,"25%",IF(T14=Tablas!$U$4,"15%",)) -> 15% | V14: 0.36 | W14: 60% | X14: 0.216 | Y14: =IF(X14<=12%,"Bajo",IF(X14<=24%,"Medio",IF(X14<=40%,"Alto","Muy Alto"))) -> Medio | Z14: 1. Apropiación y adopción de valores y principios institucionales. 2. Desarrollo del reto de integridad actualizado con la gestión antisobormo. 3. Fortalecimiento del botón "Yo Denuncio". 4. Fortalecimiento de la cultura de integridad y transparencia. | AA14: Se realiza la revisión y actualización de los riesgos identificados por el proceso no se remite actualización de los mismos para lo cual se mantienen, pendiente evidencia ejecución de los mismos por parte de proceso, adicional a ello no se ha identificado materialización de riegos de soborno.
B15: MCTP04 - TRANSFERENCIA DE RESULTADOS DE INVESTIGACIÓN | C15: El Docente o Estudiante ofrezca una contraprestación para obtener el aval del Comité para el Desarrollo de la Investigación para la financiación de la transferencia de resultados de investigación (ponencias, artículos, eventos, entre otros). | D15: Gestor de la Dirección de Investigación | E15: Profesional designado de la Dirección de Investigación | F15: Deterioro de la reputación institucional que afecta su gobernanza. | G15: Deficiencia en las acciones de control implementadas que prevengan actuaciones o comportamientos en contravía de lo dispuesta en del Código Autonómico de la UCundinamarca Generación Siglo XXI. | H15: Baja | I15: =IF(H15=Tablas!$D$7,"20%",IF(H15=Tablas!$D$6,"40%",IF(H15=Tablas!$D$5,"60%",IF(H15=Tablas!$D$4,"80%",IF(H15=Tablas!$D$3,"100%"))))) -> 40% | J15: Moderado | K15: =IF(J15=Tablas!$G$10,"20%",IF(J15=Tablas!$H$10,"40%",IF(J15=Tablas!$I$10,"60%",IF(J15=Tablas!$J$10,"80%",IF(J15=Tablas!$K$10,"100%"))))) -> 60% | L15: 0.24 | M15: Medio | N15: Aval del Consejo de Facultad. Revisión del cumplimiento de los requisitos - MCTG02 - GUIA TRANSFERENCIA DE RESULTADOS DE INVESTIGACION. Aval del Comité para el Desarrollo de la Investigación. Aval del Consejo Académico en los casos que aplique. Acuerdo 006/2015. | O15: Dirección de Investigación Facultades Miembros del Comité para el Desarrollo de la Investigación. | P15: Acta ADOF010 - Modelo de acta de aval del Consejo de Facultad. Acta del Comité para el Desarrollo de la Investigación. Notificación vía correo electrónico con el aval del Consejo Académico. (Si aplica). | Q15: Preventivo | R15: =IF(Q15=Tablas!$R$3,"25%",IF(Q15=Tablas!$R$4,"15%",IF(Q15=Tablas!$R$5,"10%",))) -> 25% | S15: =IF(Q15=Tablas!$R$3,"Probabilidad",IF(Q15=Tablas!$R$4,"Probabilidad",IF(Q15=Tablas!$R$5,"Impacto",))) -> Probabilidad | T15: Manual | U15: =IF(T15=Tablas!$U$3,"25%",IF(T15=Tablas!$U$4,"15%",)) -> 15% | V15: 0.24 | W15: 60% | X15: 0.144 | Y15: Medio | Z15: 1. Apropiación y adopción de valores y principios institucionales. 2. Desarrollo del reto de integridad actualizado con la gestión antisobormo. 3. Fortalecimiento del botón "Yo Denuncio". 4. Fortalecimiento de la cultura de integridad y transparencia. | AA15: Se realiza la revisión y actualización de los riesgos identificados por el proceso no se remite actualización de los mismos para lo cual se mantienen, pendiente evidencia ejecución de los mismos por parte de proceso, adicional a ello no se ha identificado materialización de riegos de soborno.
B16: MCTP12 - EDITORIAL | C16: Que el Autor del manuscrito, ofrezca una dádiva para que este cumpla con los requisitos de la convocatoria editorial. | D16: Gestor de la Dirección de Investigación | E16: Profesional designado de la Dirección de Investigación | F16: Deterioro de la reputación institucional que afecta su gobernanza. | G16: Deficiencia en las acciones de control implementadas que prevengan actuaciones o comportamientos en contravía de lo dispuesta en del Código Autonómico de la UCundinamarca Generación Siglo XXI. | H16: Baja | I16: =IF(H16=Tablas!$D$7,"20%",IF(H16=Tablas!$D$6,"40%",IF(H16=Tablas!$D$5,"60%",IF(H16=Tablas!$D$4,"80%",IF(H16=Tablas!$D$3,"100%"))))) -> 40% | J16: Moderado | K16: =IF(J16=Tablas!$G$10,"20%",IF(J16=Tablas!$H$10,"40%",IF(J16=Tablas!$I$10,"60%",IF(J16=Tablas!$J$10,"80%",IF(J16=Tablas!$K$10,"100%"))))) -> 60% | L16: 0.24 | M16: Medio | N16: Digitalización de los formatos para la presentación de los manuscritos. Aprobación del Consejo de Facultad. Evaluación editorial digitalizada. Aprobación del Comité para el Desarrollo de la Investigación. | O16: Dirección de Investigación Facultades Miembros del Comité para el Desarrollo de la Investigación. | P16: PDF con la evaluación editorial PDF con la propuesta. Reporte TURNITIN Acta del Consejo de Facultad. Acta del Comité para el Desarrollo de la Investigación. | Q16: Preventivo | R16: =IF(Q16=Tablas!$R$3,"25%",IF(Q16=Tablas!$R$4,"15%",IF(Q16=Tablas!$R$5,"10%",))) -> 25% | S16: =IF(Q16=Tablas!$R$3,"Probabilidad",IF(Q16=Tablas!$R$4,"Probabilidad",IF(Q16=Tablas!$R$5,"Impacto",))) -> Probabilidad | T16: Manual | U16: =IF(T16=Tablas!$U$3,"25%",IF(T16=Tablas!$U$4,"15%",)) -> 15% | V16: 0.24 | W16: 60% | X16: 0.144 | Y16: Medio | Z16: 1. Apropiación y adopción de valores y principios institucionales. 2. Desarrollo del reto de integridad actualizado con la gestión antisobormo. 3. Fortalecimiento del botón "Yo Denuncio". 4. Fortalecimiento de la cultura de integridad y transparencia. | AA16: Se realiza la revisión y actualización de los riesgos identificados por el proceso no se remite actualización de los mismos para lo cual se mantienen, pendiente evidencia ejecución de los mismos por parte de proceso, adicional a ello no se ha identificado materialización de riegos de soborno.
B18: 13- 46.18
B20: Diagonal 18 No. 20-29 Fusagasugá – Cundinamarca Teléfono (601) 8281483 Línea Gratuita 018000180414 www.ucundinamarca.edu.co E-mail: info@ucundinamarca.edu.co NIT: 890.680.062-2
B22: Documento controlado por el Sistema de Gestión de la Calidad Asegúrese que corresponde a la última versión consultando el Portal Institucional

Sheet 13
D2: MACROPROCESO ESTRATÉGICO | Z2: CÓDIGO: ESG-ESG-GAS-r003
D3: PROCESO GESTIÓN DE SISTEMAS INTEGRADOS | Z3: VERSIÓN: 2
D4: GESTIÓN DEL RIESGO SISTEMA DE GESTIÓN ANTISOBORNO | Z4: VIGENCIA: 2024-08-09
Z5: PÁGINA: 7 de 29
B7: 13.
C8: Proceso responsable: | D8: =Contenido!F24 -> Dialogando con el Mundo | G8: Objetivo del Proceso: | H8: Promover el relacionamiento internacional de la Universidad de Cundinamarca con el mundo académico en ambientes globales, de modo que propicie la interacción de los profesores y estudiantes en redes y alianzas del conocimiento, en proyectos investigativos (ciencia, tecnología e innovación), voluntariado internacional, pasantías e intercambios y movilidad académica visualizada a través del currículo. | Z8: Fecha de actualización: | AA8: =Contenido!G10 -> 9 de agosto de 2024.
B10: Procedimiento Asociado | C10: Posibles hechos de soborno (Descripción del riesgo) | D10: Rol del sobornador | E10: Organizaciones externas, funciones o cargos expuestos al hecho de soborno | F10: Riesgos de soborno (Efecto de la incertidumbre sobre los objetivos estratégicos) | G10: Riesgos de soborno (Efecto de la incertidumbre sobre los objetivos del SGAS) | H10: Probabilidad del riesgo inherente | J10: Impacto del riesgo inherente | L10: Nivel de riesgo inherente | M10: Valoración del nivel de riesgo inherente | N10: Controles actuales existentes | O10: Responsable del control | P10: Documentación | Q10: Control | T10: Implementación | V10: Probabilidad del riesgo residual | W10: Impacto del riesgo residual | X10: Nivel de riesgo residual | Y10: Valoración del nivel de riesgo residual | Z10: Controles adicionales requeridos | AA10: Observaciones 2a. Línea (Oficial Antisoborno) | AB10: Observaciones 3a. Línea (Dirección Control Interno)
H11: Probabilidad | I11: % | J11: Impacto | K11: % | Q11: Tipo | R11: % Peso | S11: Afectación | T11: Tipo | U11: % Peso
B12: MDMP01 - Movilidad Académica Saliente | C12: Que un aspirante a un programa de movilidad académica ofrezca una contraprestación al Lider del proceso, para que este lo seleccione aún sin el cumpliento de los requisitos estipulados en los términos de referencia de la convocatoria vigente. | D12: Lider del proceso. | E12: Funcionario del proceso de Dialogando con el mundo | F12: Reducción de la capacidad institucional para responder a las necesidades de la población estudiantil. | G12: Deficiencia en las acciones de control implementadas que prevengan actuaciones o comportamientos en contravía de lo dispuesta en del Código Autonómico de la UCundinamarca Generación Siglo XXI. | H12: Baja | I12: =IF(H12=Tablas!$D$7,"20%",IF(H12=Tablas!$D$6,"40%",IF(H12=Tablas!$D$5,"60%",IF(H12=Tablas!$D$4,"80%",IF(H12=Tablas!$D$3,"100%"))))) -> 40% | J12: Moderado | K12: =IF(J12=Tablas!$G$10,"20%",IF(J12=Tablas!$H$10,"40%",IF(J12=Tablas!$I$10,"60%",IF(J12=Tablas!$J$10,"80%",IF(J12=Tablas!$K$10,"100%"))))) -> 60% | L12: =I12*K12 -> 0.24 | M12: =IF(L12<=12%,"Bajo",IF(L12<=24%,"Medio",IF(L12<=40%,"Alto","Muy Alto"))) -> Medio | N12: Verificación de requisitos de acuerdo al aplicativo, y a los términos de referencia. Aprobación del Consejo Académico del listado de preseleccionados. Publicación de la lista de preseleccionados, y lista de personas en espera, a traves del aplicativo SIS, debidamente suscrita dentro de los términos de referencia. Actas o adenda de Consejo de Facultad, con el aval de los preseleccionados y lista de espera, donde emiten el concepto de seleccionado no aprobado. | O12: Oficina de Dialogando con el Mundo | P12: MDMr001 - CONVOCATORIAS ACADEMICAS DIALOGANDO CON EL MUNDO. Acta de Consejos Académico Acta o adenda del Consejo de Facultad. | Q12: Preventivo | R12: =IF(Q12=Tablas!$R$3,"25%",IF(Q12=Tablas!$R$4,"15%",IF(Q12=Tablas!$R$5,"10%",))) -> 25% | S12: =IF(Q12=Tablas!$R$3,"Probabilidad",IF(Q12=Tablas!$R$4,"Probabilidad",IF(Q12=Tablas!$R$5,"Impacto",))) -> Probabilidad | T12: Manual | U12: =IF(T12=Tablas!$U$3,"25%",IF(T12=Tablas!$U$4,"15%",)) -> 15% | V12: =I12-(I12*(R12+U12)) -> 0.24 | W12: =K12 -> 60% | X12: =V12*W12 -> 0.144 | Y12: =IF(X12<=12%,"Bajo",IF(X12<=24%,"Medio",IF(X12<=40%,"Alto","Muy Alto"))) -> Medio | Z12: 1. Apropiación y adopción de valores y principios institucionales. 2. Desarrollo del reto de integridad actualizado con la gestión antisobormo. 3. Fortalecimiento del botón "Yo Denuncio". 4. Fortalecimiento de la cultura de integridad y transparenci | AA12: Se realiza la revisión y actualización de los riesgos identificados por el proceso, así como los controles establecidos y se evidencia ejecución de los mismos por parte de proceso y no se ha identificado materialización de riegos de soborno.
B14: 13- 46.18
B16: Diagonal 18 No. 20-29 Fusagasugá – Cundinamarca Teléfono (601) 8281483 Línea Gratuita 018000180414 www.ucundinamarca.edu.co E-mail: info@ucundinamarca.edu.co NIT: 890.680.062-2
B18: Documento controlado por el Sistema de Gestión de la Calidad Asegúrese que corresponde a la última versión consultando el Portal Institucional

Sheet 14
D2: MACROPROCESO ESTRATÉGICO | Z2: CÓDIGO: ESG-ESG-GAS-r003
D3: PROCESO GESTIÓN DE SISTEMAS INTEGRADOS | Z3: VERSIÓN: 2
D4: GESTIÓN DEL RIESGO SISTEMA DE GESTIÓN ANTISOBORNO | Z4: VIGENCIA: 2024-08-09
Z5: PÁGINA: 8 de 29
B7: 13.
C8: Proceso responsable: | D8: =Contenido!F25 -> Formación y Aprendizaje | G8: Objetivo del Proceso: | H8: Promover y ejecutar proyectos con entidades públicas y/o privadas, nacionales e internacionales, mediante convenios y/o contratos interadministrativos, que permitan fortalecer la gestión de la Universidad de Cundinamarca a través de la generación de recursos financieros, transmisión de conocimientos a las comunidades y aprehensión para el mejoramiento académico. | Z8: Fecha de actualización: | AA8: =Contenido!G10 -> 9 de agosto de 2024.
B10: Procedimiento Asociado | C10: Posibles hechos de soborno (Descripción del riesgo) | D10: Rol del sobornador | E10: Organizaciones externas, funciones o cargos expuestos al hecho de soborno | F10: Riesgos de soborno (Efecto de la incertidumbre sobre los objetivos estratégicos) | G10: Riesgos de soborno (Efecto de la incertidumbre sobre los objetivos del SGAS) | H10: Probabilidad del riesgo inherente | J10: Impacto del riesgo inherente | L10: Nivel de riesgo inherente | M10: Valoración del nivel de riesgo inherente | N10: Controles actuales existentes | O10: Responsable del control | P10: Documentación | Q10: Control | T10: Implementación | V10: Probabilidad del riesgo residual | W10: Impacto del riesgo residual | X10: Nivel de riesgo residual | Y10: Valoración del nivel de riesgo residual | Z10: Controles adicionales requeridos | AA10: Observaciones 2a. Línea (Oficial Antisoborno) | AB10: Observaciones 3a. Línea (Dirección Control Interno)
H11: Probabilidad | I11: % | J11: Impacto | K11: % | Q11: Tipo | R11: % Peso | S11: Afectación | T11: Tipo | U11: % Peso
B12: MFAP03 - ACOMPAÑAMIENTO EN LA FORMACIÓN Y APRENDIZAJE PARA LA VIDA, LOS VALORES DEMOCRÁTICOS, LA CIVILIDAD Y LA LIBERTAD. | C12: El Director/coordinador de un programa académico de pregrado o posgrado, ofrece y/o recibe de un gestor del conocimiento y el aprendizaje una dádiva para que esté registre la asistencia del gestor sin haber asistido a la experiencia de aprendizaje programada con los estudiantes. | D12: Gestor del conocimiento y el aprendizaje | E12: Decanos y/o Coordinadores de Programa Director del Instituto de Posgrados | F12: Deterioro de la imagen institucional de la UCundinamarca frente a la comunidad educativa y la ciudadanía en general. | G12: Deficiencia en las acciones de control implementadas que prevengan actuaciones o comportamientos en contravía de lo dispuesta en del Código Autonómico de la UCundinamarca Generación Siglo XXI. | H12: Muy baja | I12: =IF(H12=Tablas!$D$7,"20%",IF(H12=Tablas!$D$6,"40%",IF(H12=Tablas!$D$5,"60%",IF(H12=Tablas!$D$4,"80%",IF(H12=Tablas!$D$3,"100%"))))) -> 20% | J12: Moderado | K12: =IF(J12=Tablas!$G$10,"20%",IF(J12=Tablas!$H$10,"40%",IF(J12=Tablas!$I$10,"60%",IF(J12=Tablas!$J$10,"80%",IF(J12=Tablas!$K$10,"100%"))))) -> 60% | L12: =I12*K12 -> 0.12 | M12: =IF(L12<=12%,"Bajo",IF(L12<=24%,"Medio",IF(L12<=40%,"Alto","Muy Alto"))) -> Bajo | N12: Los Decanos de facultad y directores/coordinadores de programa realizaran seguimiento a la asistencia de los gestores del conocimiento mediante el módulo tu experiencia en línea. Los coordinadores de programa realizan el reporte de salidas no conformes en la Plataforma Institucional, cuando se presentan novedades con el cumplimiento del Acuerdo de Formación y Aprendizaje, mediante el diligenciamiento del formato MFAF062 - "Recueperación horas de actividad sincrónica con los estudiantes". | O12: Decanos y Coordinadores de programa. Director Instituto de Posgrados Oficina de Desarrollo Académico | P12: Reporte módulo tu experiencia en línea. Reporte de salidas no conformes realizadas en el semestre en Plataforma Institucional. | Q12: Preventivo | R12: =IF(Q12=Tablas!$R$3,"25%",IF(Q12=Tablas!$R$4,"15%",IF(Q12=Tablas!$R$5,"10%",))) -> 25% | S12: =IF(Q12=Tablas!$R$3,"Probabilidad",IF(Q12=Tablas!$R$4,"Probabilidad",IF(Q12=Tablas!$R$5,"Impacto",))) -> Probabilidad | T12: Manual | U12: =IF(T12=Tablas!$U$3,"25%",IF(T12=Tablas!$U$4,"15%",)) -> 15% | V12: =I12-(I12*(R12+U12)) -> 0.12 | W12: =K12 -> 60% | X12: =V12*W12 -> 0.072 | Y12: =IF(X12<=12%,"Bajo",IF(X12<=24%,"Medio",IF(X12<=40%,"Alto","Muy Alto"))) -> Bajo | Z12: 1. Apropiación y adopción de valores y principios institucionales. 2. Desarrollo del reto de integridad actualizado con la gestión antisobormo. 3. Fortalecimiento frente a la importancia del botón "Yo Denuncio". 4. Fortalecimiento de la cultura de integridad y transparencia. 5. Diligenciamiento del formato ESG-GAS-F007 "Compromiso Anticorrupción y antisoborno para miembros del talento humano, pasantes y monitores". | AA12: Se realiza la revisión y actualización de los riesgos identificados por el proceso, así como los controles establecidos y se evidencia ejecución de los mismos por parte de proceso y no se ha identificado materialización de riegos de soborno.
B13: MFAP03 - ACOMPAÑAMIENTO EN LA FORMACIÓN Y APRENDIZAJE PARA LA VIDA, LOS VALORES DEMOCRÁTICOS, LA CIVILIDAD Y LA LIBERTAD. | C13: Un estudiante ofrece y/o entrega una dádiva a un gestor del conocimiento y el aprendizaje para la modificación de los resultados esperados de aprendizaje - REA y/o calificaciones de programas académicos de pregrado o posgrado. | D13: Estudiante | E13: Gestor del conocimiento y el aprendizaje | F13: Deterioro de la imagen institucional de la UCundinamarca frente a la comunidad educativa y la ciudadanía en general. Afectar la credibilidad y el buen nombre de la Universidad de Cundinamarca. | G13: Deficiencia en las acciones de control implementadas que prevengan actuaciones o comportamientos en contravía de lo dispuesta en del Código Autonómico de la UCundinamarca Generación Siglo XXI. | H13: Muy baja | I13: =IF(H13=Tablas!$D$7,"20%",IF(H13=Tablas!$D$6,"40%",IF(H13=Tablas!$D$5,"60%",IF(H13=Tablas!$D$4,"80%",IF(H13=Tablas!$D$3,"100%"))))) -> 20% | J13: Mayor | K13: =IF(J13=Tablas!$G$10,"20%",IF(J13=Tablas!$H$10,"40%",IF(J13=Tablas!$I$10,"60%",IF(J13=Tablas!$J$10,"80%",IF(J13=Tablas!$K$10,"100%"))))) -> 80% | L13: =I13*K13 -> 0.16 | M13: =IF(L13<=12%,"Bajo",IF(L13<=24%,"Medio",IF(L13<=40%,"Alto","Muy Alto"))) -> Medio | N13: Desde el Campo Multidimensional de Aprendizaje se emiten alertas tempranas durante las semanas 4, 8, 12 y 16 del periodo académico, para el seguimiento frente al reporte del resultado esperado de aprendizaje. Reporte de las notas obtenidas por corte - programas no resignificados, emitida por la Oficina de Admisiones y Registro. | O13: Oficina de Desarrollo Académico Oficina de Educación Virtual y a Distancia Líderes de Campos de Aprendizaje Institucionales Directores/Coordinadores de programas | P13: Evidencias de emisión de alertas tempranas. Base de datos compartida por la Oficina de Educación Virtual y a Distancia | Q13: Preventivo | R13: =IF(Q13=Tablas!$R$3,"25%",IF(Q13=Tablas!$R$4,"15%",IF(Q13=Tablas!$R$5,"10%",))) -> 25% | S13: =IF(Q13=Tablas!$R$3,"Probabilidad",IF(Q13=Tablas!$R$4,"Probabilidad",IF(Q13=Tablas!$R$5,"Impacto",))) -> Probabilidad | T13: Manual | U13: =IF(T13=Tablas!$U$3,"25%",IF(T13=Tablas!$U$4,"15%",)) -> 15% | V13: =I13-(I13*(R13+U13)) -> 0.12 | W13: =K13 -> 80% | X13: =V13*W13 -> 0.096 | Y13: =IF(X13<=12%,"Bajo",IF(X13<=24%,"Medio",IF(X13<=40%,"Alto","Muy Alto"))) -> Bajo | Z13: 1. Apropiación y adopción de valores y principios institucionales. 2. Desarrollo del reto de integridad actualizado con la gestión antisobormo. 3. Fortalecimiento frente a la importancia del botón "Yo Denuncio". 4. Fortalecimiento de la cultura de integridad y transparencia. 5. Diligenciamiento del formato ESG-GAS-F007 "Compromiso Anticorrupción y antisoborno para miembros del talento humano, pasantes y monitores". | AA13: Se realiza la revisión y actualización de los riesgos identificados por el proceso, así como los controles establecidos y se evidencia ejecución de los mismos por parte de proceso y no se ha identificado materialización de riegos de soborno.
B14: MFAP03 - ACOMPAÑAMIENTO EN LA FORMACIÓN Y APRENDIZAJE PARA LA VIDA, LOS VALORES DEMOCRÁTICOS, LA CIVILIDAD Y LA LIBERTAD. | C14: Un estudiante ofrece y/o entrega una dádiva a para la aprobación de la opción de grado o trabajo de grado seleccionado para la finalización de su ruta de aprendizaje o plan de estudios. | D14: Estudiante | E14: Director de trabjo de grado Jurado de trabajo de grado Gestor del conocimiento y el aprendizaje asignado para el cargue de la nota | F14: Deterioro de la imagen institucional de la UCundinamarca frente a la comunidad educativa y la ciudadanía en general. Afectar la credibilidad y el buen nombre de la Universidad de Cundinamarca. | G14: Deficiencia en las acciones de control implementadas que prevengan actuaciones o comportamientos en contravía de lo dispuesta en del Código Autonómico de la UCundinamarca Generación Siglo XXI. | H14: Muy baja | I14: =IF(H14=Tablas!$D$7,"20%",IF(H14=Tablas!$D$6,"40%",IF(H14=Tablas!$D$5,"60%",IF(H14=Tablas!$D$4,"80%",IF(H14=Tablas!$D$3,"100%"))))) -> 20% | J14: Moderado | K14: =IF(J14=Tablas!$G$10,"20%",IF(J14=Tablas!$H$10,"40%",IF(J14=Tablas!$I$10,"60%",IF(J14=Tablas!$J$10,"80%",IF(J14=Tablas!$K$10,"100%"))))) -> 60% | L14: 0.12 | M14: Bajo | N14: El Director de trabajo de grado es quien realiza la verificación y aprobación del documento de la opción que desarrolla el estudiante para que este a su vez solicite al Comité de trabajos de grado la asignación del jurado de trabajo de grado. La aprobación de la opción de grado o trabajo de grado esta a cargo del Director de trabajo de grado, y la aprobación del Resultado Esperado de Aprendizaje (REA) es equivalente a tres cinco (3.5) producto de la valoración final de los jurados de la opción de trabajo grado que deberá incluirse en el Acta correspondiente. | O14: Comité de opciones de trabajo de grado de las diferentes facultades. | P14: Consolidado de Actas de sustentación - Oficina Admisiones y Registro Reporte del REA y/o calificaciones obtenidos en el campo de aprendizaje opción de grado y/o núcleo temático trabajo de grado. - Oficina Admisiones y Registro | Q14: Preventivo | R14: =IF(Q14=Tablas!$R$3,"25%",IF(Q14=Tablas!$R$4,"15%",IF(Q14=Tablas!$R$5,"10%",))) -> 25% | S14: =IF(Q14=Tablas!$R$3,"Probabilidad",IF(Q14=Tablas!$R$4,"Probabilidad",IF(Q14=Tablas!$R$5,"Impacto",))) -> Probabilidad | T14: Manual | U14: =IF(T14=Tablas!$U$3,"25%",IF(T14=Tablas!$U$4,"15%",)) -> 15% | V14: 0.12 | W14: 60% | X14: 0.072 | Y14: =IF(X14<=12%,"Bajo",IF(X14<=24%,"Medio",IF(X14<=40%,"Alto","Muy Alto"))) -> Bajo | Z14: 1. Apropiación y adopción de valores y principios institucionales. 2. Desarrollo del reto de integridad actualizado con la gestión antisobormo. 3. Fortalecimiento frente a la importancia del botón "Yo Denuncio". 4. Fortalecimiento de la cultura de integridad y transparencia. 5. Diligenciamiento del formato ESG-GAS-F007 "Compromiso Anticorrupción y antisoborno para miembros del talento humano, pasantes y monitores". | AA14: Se realiza la revisión y actualización de los riesgos identificados por el proceso, así como los controles establecidos y se evidencia ejecución de los mismos por parte de proceso y no se ha identificado materialización de riegos de soborno.
B15: MFAP09 - MONITORIAS | C15: Un estudiante que se postula para ser monitor de la Universidad de Cundinamarca, ofrece y/o entrega una dádiva a un líder de tipología con el fin de ser seleccionado sin el cumplimiento de los requisitos estipulados en la convocatoria y el acuerdo C.A No. 030 de 2022. | D15: Estudiante | E15: Líder tipología de monitorias | F15: Deterioro de la imagen institucional de la UCundinamarca frente a la comunidad educativa y la ciudadanía en general. Afectar la credibilidad y el buen nombre de la Universidad de Cundinamarca. | G15: Deficiencia en las acciones de control implementadas que prevengan actuaciones o comportamientos en contravía de lo dispuesta en del Código Autonómico de la UCundinamarca Generación Siglo XXI. | H15: Muy baja | I15: =IF(H15=Tablas!$D$7,"20%",IF(H15=Tablas!$D$6,"40%",IF(H15=Tablas!$D$5,"60%",IF(H15=Tablas!$D$4,"80%",IF(H15=Tablas!$D$3,"100%"))))) -> 20% | J15: Moderado | K15: =IF(J15=Tablas!$G$10,"20%",IF(J15=Tablas!$H$10,"40%",IF(J15=Tablas!$I$10,"60%",IF(J15=Tablas!$J$10,"80%",IF(J15=Tablas!$K$10,"100%"))))) -> 60% | L15: 0.12 | M15: Bajo | N15: Parametrización de la Plataforma Institucional. Verificación del cumplimiento de requisitos por parte de los Líderes de las tipologías de monitorías. (Acuerdo C.A No. 030 de 2022). Verificación de cumplimiento de los requisitos contemplados en las convocatorias publicadas en la página institucional. Verificación de la documentación desde la Dirección Jurídica. | O15: Oficina de Desarrollo Académico Lideres de las tipologías de monitorías. Dirección Jurídica. Dirección de Sistemas y Tecnología | P15: Convocatorias de monitores. Resolución de monitores en el marco del acuerdo No. 030 de 2022 Consolidado estudiantes inscritos a monitorías, aprobado por líder de tipología. | Q15: Preventivo | R15: =IF(Q15=Tablas!$R$3,"25%",IF(Q15=Tablas!$R$4,"15%",IF(Q15=Tablas!$R$5,"10%",))) -> 25% | S15: =IF(Q15=Tablas!$R$3,"Probabilidad",IF(Q15=Tablas!$R$4,"Probabilidad",IF(Q15=Tablas!$R$5,"Impacto",))) -> Probabilidad | T15: Manual | U15: =IF(T15=Tablas!$U$3,"25%",IF(T15=Tablas!$U$4,"15%",)) -> 15% | V15: 0.12 | W15: 60% | X15: 0.072 | Y15: Bajo | Z15: 1. Apropiación y adopción de valores y principios institucionales. 2. Desarrollo del reto de integridad actualizado con la gestión antisobormo. 3. Fortalecimiento frente a la importancia del botón "Yo Denuncio". 4. Fortalecimiento de la cultura de integridad y transparencia. 5. Diligenciamiento del formato ESG-GAS-F007 "Compromiso Anticorrupción y antisoborno para miembros del talento humano, pasantes y monitores". | AA15: Se realiza la revisión y actualización de los riesgos identificados por el proceso, así como los controles establecidos y se evidencia ejecución de los mismos por parte de proceso y no se ha identificado materialización de riegos de soborno.
B16: MFAP13 - PRÁCTICAS ACADÉMICAS Y/O EXPERIENCIAS FORMATIVAS | C16: Recibir una dadiva o beneficio personal por parte de un gestor del conocimiento y el aprendizaje para la modificación de una práctica académica y/o experiencia formativa sin el cumplimiento de lo estipulado en el Acuerdo C.A No. 034 de 2022. | D16: Gestor del conocimiento y el aprendizaje | E16: Facultades y coordinaciones de programas académicos | F16: Deterioro de la imagen institucional de la UCundinamarca frente a la comunidad educativa y la ciudadanía en general. Afectar la credibilidad y el buen nombre de la Universidad de Cundinamarca. Detrimento patrimonal que reduce la capacidad para alcanzar las metas físicas. | G16: Deficiencia en las acciones de control implementadas que prevengan actuaciones o comportamientos en contravía de lo dispuesta en del Código Autonómico de la UCundinamarca Generación Siglo XXI. | H16: Muy baja | I16: =IF(H16=Tablas!$D$7,"20%",IF(H16=Tablas!$D$6,"40%",IF(H16=Tablas!$D$5,"60%",IF(H16=Tablas!$D$4,"80%",IF(H16=Tablas!$D$3,"100%"))))) -> 20% | J16: Mayor | K16: =IF(J16=Tablas!$G$10,"20%",IF(J16=Tablas!$H$10,"40%",IF(J16=Tablas!$I$10,"60%",IF(J16=Tablas!$J$10,"80%",IF(J16=Tablas!$K$10,"100%"))))) -> 80% | L16: 0.16 | M16: Medio | N16: Los programas académicos remiten a la Oficina de Desarrollo Académico las Actas de Comité Curricular y Actas de Consejo de Facultad con la aprobación de las prácticas académicas y/o experiencias formativas a realizar durante la vigencia. Se realiza la publicación del cronograma anual de las prácticas académicas y/o experiencias formativas en la página web de la Universidad de Cundinamarca. El Comité de prácticas académicas y/o experiencias formativas revisa y aprueba o no los ajustes presentados en el marco del acuerdo No. 034 de 20222 antes de la realización de las mismas. | O16: Decanos y Coordinadores de programa. Oficina Desarrollo Académico. Comité de prácticas académicas y/o experiencias formativas. | P16: Consolidado Actas de Comité Curricular y/o Actas Consejo de Facultad. Cronograma anual de las prácticas académicas y/o experiencias formativas. Actas del Comité de prácticas académicas y/o experiencias formativas. | Q16: Preventivo | R16: =IF(Q16=Tablas!$R$3,"25%",IF(Q16=Tablas!$R$4,"15%",IF(Q16=Tablas!$R$5,"10%",))) -> 25% | S16: =IF(Q16=Tablas!$R$3,"Probabilidad",IF(Q16=Tablas!$R$4,"Probabilidad",IF(Q16=Tablas!$R$5,"Impacto",))) -> Probabilidad | T16: Manual | U16: =IF(T16=Tablas!$U$3,"25%",IF(T16=Tablas!$U$4,"15%",)) -> 15% | V16: 0.12 | W16: 80% | X16: 0.096 | Y16: Bajo | Z16: 1. Apropiación y adopción de valores y principios institucionales. 2. Desarrollo del reto de integridad actualizado con la gestión antisobormo. 3. Fortalecimiento frente a la importancia del botón "Yo Denuncio". 4. Fortalecimiento de la cultura de integridad y transparencia. 5. Diligenciamiento del formato ESG-GAS-F007 "Compromiso Anticorrupción y antisoborno para miembros del talento humano, pasantes y monitores". | AA16: Se realiza la revisión y actualización de los riesgos identificados por el proceso, así como los controles establecidos y se evidencia ejecución de los mismos por parte de proceso y no se ha identificado materialización de riegos de soborno.
B19: 13- 46.18
B20: Diagonal 18 No. 20-29 Fusagasugá – Cundinamarca Teléfono (601) 8281483 Línea Gratuita 018000180414 www.ucundinamarca.edu.co E-mail: info@ucundinamarca.edu.co NIT: 890.680.062-2
B22: Documento controlado por el Sistema de Gestión de la Calidad Asegúrese que corresponde a la última versión consultando el Portal Institucional

Sheet 15
D2: MACROPROCESO ESTRATÉGICO | Z2: CÓDIGO: ESG-ESG-GAS-r003
D3: PROCESO GESTIÓN DE SISTEMAS INTEGRADOS | Z3: VERSIÓN: 2
D4: GESTIÓN DEL RIESGO SISTEMA DE GESTIÓN ANTISOBORNO | Z4: VIGENCIA: 2024-08-09
Z5: PÁGINA: 9 de 29
B7: 13.
C8: Proceso responsable: | D8: =Contenido!F26 -> Graduados | G8: Objetivo del Proceso: | H8: Planear, promover y ejecutar los lineamientos establecidos en el Acuerdo 007 del 21 de mayo de 2020 por el cual se adopta la política de graduados de la Universidad de Cundinamarca. Con el fin de Fortalecer la identidad del graduado de la UCUNDINAMARCA promoviendo la participación en los procesos institucionales e identificar el impacto de su desempeño profesional para la transformación de la sociedad y para el mejoramiento de los programas académicos. | Z8: Fecha de actualización: | AA8: =Contenido!G10 -> 9 de agosto de 2024.
B10: Procedimiento Asociado | C10: Posibles hechos de soborno (Descripción del riesgo) | D10: Rol del sobornador | E10: Organizaciones externas, funciones o cargos expuestos al hecho de soborno | F10: Riesgos de soborno (Efecto de la incertidumbre sobre los objetivos estratégicos) | G10: Riesgos de soborno (Efecto de la incertidumbre sobre los objetivos del SGAS) | H10: Probabilidad del riesgo inherente | J10: Impacto del riesgo inherente | L10: Nivel de riesgo inherente | M10: Valoración del nivel de riesgo inherente | N10: Controles actuales existentes | O10: Responsable del control | P10: Documentación | Q10: Control | T10: Implementación | V10: Probabilidad del riesgo residual | W10: Impacto del riesgo residual | X10: Nivel de riesgo residual | Y10: Valoración del nivel de riesgo residual | Z10: Controles adicionales requeridos | AA10: Observaciones 2a. Línea (Oficial Antisoborno) | AB10: Observaciones 3a. Línea (Dirección Control Interno)
H11: Probabilidad | I11: % | J11: Impacto | K11: % | Q11: Tipo | R11: % Peso | S11: Afectación | T11: Tipo | U11: % Peso
B12: MGDP01 - Analítica académica para la Caracterización, el Seguimiento y el Desempeño del Graduado | C12: El egresado o candidato a grado ofrece una dádiva o contraprestación para que el gestor encargado de la revisión del diligenciamiento de la encuesta de caracterización de por aprobada la misma sin se que haya diligenciado la herramienta. | D12: Gestor Oficina de Graduados | E12: Funcionario de la Oficina de Graduados | F12: Deterioro de la imagen institucional de la UCundinamarca frente a la comunidad educativa y la ciudadanía en general. | G12: Deficiencia en las acciones de control implementadas que prevengan actuaciones o comportamientos en contravía de lo dispuesta en del Código Autonómico de la UCundinamarca Generación Siglo XXI. | H12: Muy baja | I12: =IF(H12=Tablas!$D$7,"20%",IF(H12=Tablas!$D$6,"40%",IF(H12=Tablas!$D$5,"60%",IF(H12=Tablas!$D$4,"80%",IF(H12=Tablas!$D$3,"100%"))))) -> 20% | J12: Moderado | K12: =IF(J12=Tablas!$G$10,"20%",IF(J12=Tablas!$H$10,"40%",IF(J12=Tablas!$I$10,"60%",IF(J12=Tablas!$J$10,"80%",IF(J12=Tablas!$K$10,"100%"))))) -> 60% | L12: =I12*K12 -> 0.12 | M12: =IF(L12<=12%,"Bajo",IF(L12<=24%,"Medio",IF(L12<=40%,"Alto","Muy Alto"))) -> Bajo | N12: Generación de reporte de diligenciamiento de la encuesta por medio de formulario Forms. Envío de base de datos a la Dirección de Sistemas para que desde allí se cargue la información a la Oficina de Admisiones y Registro. | O12: Oficina de Graduados | P12: Reporte del formulario forms. Correos eléctronicos de envío a la Dirección de Sistemas y Tecnología. | Q12: Preventivo | R12: =IF(Q12=Tablas!$R$3,"25%",IF(Q12=Tablas!$R$4,"15%",IF(Q12=Tablas!$R$5,"10%",))) -> 25% | S12: =IF(Q12=Tablas!$R$3,"Probabilidad",IF(Q12=Tablas!$R$4,"Probabilidad",IF(Q12=Tablas!$R$5,"Impacto",))) -> Probabilidad | T12: Manual | U12: =IF(T12=Tablas!$U$3,"25%",IF(T12=Tablas!$U$4,"15%",)) -> 15% | V12: =I12-(I12*(R12+U12)) -> 0.12 | W12: =K12 -> 60% | X12: =V12*W12 -> 0.072 | Y12: =IF(X12<=12%,"Bajo",IF(X12<=24%,"Medio",IF(X12<=40%,"Alto","Muy Alto"))) -> Bajo | Z12: 1. Apropiación y adopción de valores y principios institucionales. 2. Desarrollo del reto de integridad actualizado con la gestión antisobormo. | AA12: Se realiza la revisión y actualización de los riesgos identificados por el proceso, así como los controles establecidos y se evidencia ejecución de los mismos por parte de proceso y no se ha identificado materialización de riegos de soborno.
B13: MGDP02 - PARTICIPACION DE GRADUADOS EN EL CAMPO DE APRENDIZAJE CULTURAL Y EN EL CAMPO DE APRENDIZAJE INSTITUCIONAL EMPRENDIMIENTO E INNOVACION | C13: Que un gestor ofrezca una contraprestación a un graduado para dar información preferencial frente a oportunidades laborales. | D13: Graduados | E13: Funcionario de la Oficina de Graduados | F13: Deterioro de la imagen institucional de la UCundinamarca frente a la comunidad educativa y la ciudadanía en general. | G13: Deficiencia en las acciones de control implementadas que prevengan actuaciones o comportamientos en contravía de lo dispuesta en del Código Autonómico de la UCundinamarca Generación Siglo XXI. | H13: Muy baja | I13: =IF(H13=Tablas!$D$7,"20%",IF(H13=Tablas!$D$6,"40%",IF(H13=Tablas!$D$5,"60%",IF(H13=Tablas!$D$4,"80%",IF(H13=Tablas!$D$3,"100%"))))) -> 20% | J13: Moderado | K13: =IF(J13=Tablas!$G$10,"20%",IF(J13=Tablas!$H$10,"40%",IF(J13=Tablas!$I$10,"60%",IF(J13=Tablas!$J$10,"80%",IF(J13=Tablas!$K$10,"100%"))))) -> 60% | L13: =I13*K13 -> 0.12 | M13: =IF(L13<=12%,"Bajo",IF(L13<=24%,"Medio",IF(L13<=40%,"Alto","Muy Alto"))) -> Bajo | N13: Solicitud de envio de evidencias del envío de ofertas laborales a la comunidad de graduados. Segmentación efectiva de las ofertas laborales, para hacer la focalización del grupo de graduados a la cual está dirigida la oferta. | O13: Oficina de Graduados | P13: Correos enviados. Bases de datos de graduados. | Q13: Preventivo | R13: =IF(Q13=Tablas!$R$3,"25%",IF(Q13=Tablas!$R$4,"15%",IF(Q13=Tablas!$R$5,"10%",))) -> 25% | S13: =IF(Q13=Tablas!$R$3,"Probabilidad",IF(Q13=Tablas!$R$4,"Probabilidad",IF(Q13=Tablas!$R$5,"Impacto",))) -> Probabilidad | T13: Manual | U13: =IF(T13=Tablas!$U$3,"25%",IF(T13=Tablas!$U$4,"15%",)) -> 15% | V13: =I13-(I13*(R13+U13)) -> 0.12 | W13: =K13 -> 60% | X13: =V13*W13 -> 0.072 | Y13: =IF(X13<=12%,"Bajo",IF(X13<=24%,"Medio",IF(X13<=40%,"Alto","Muy Alto"))) -> Bajo | Z13: 1. Apropiación y adopción de valores y principios institucionales. 2. Desarrollo del reto de integridad actualizado con la gestión antisobormo. | AA13: Se realiza la revisión y actualización de los riesgos identificados por el proceso, así como los controles establecidos y se evidencia ejecución de los mismos por parte de proceso y no se ha identificado materialización de riegos de soborno.
B14: MGDP01 - Analítica académica para la Caracterización, el Seguimiento y el Desempeño del Graduado | C14: Que tercero ofrezca una dádiva o contraprestación para que le sean entregadas las bases de datos con información confidencial, de los graduados de la Universidad de Cundinamarca. | D14: Gestores, Funcionarios de la Oficina de Graduados | E14: Funcionario de la Oficina de Graduados | F14: Deterioro de la imagen institucional de la UCundinamarca frente a la comunidad educativa y la ciudadanía en general. | G14: Deficiencia en las acciones de control implementadas que prevengan actuaciones o comportamientos en contravía de lo dispuesta en del Código Autonómico de la UCundinamarca Generación Siglo XXI. | H14: Muy baja | I14: =IF(H14=Tablas!$D$7,"20%",IF(H14=Tablas!$D$6,"40%",IF(H14=Tablas!$D$5,"60%",IF(H14=Tablas!$D$4,"80%",IF(H14=Tablas!$D$3,"100%"))))) -> 20% | J14: Mayor | K14: =IF(J14=Tablas!$G$10,"20%",IF(J14=Tablas!$H$10,"40%",IF(J14=Tablas!$I$10,"60%",IF(J14=Tablas!$J$10,"80%",IF(J14=Tablas!$K$10,"100%"))))) -> 80% | L14: 0.16 | M14: Medio | N14: ESG-SSI-F006 - AUTORIZACION PARA EL TRATAMIENTO DE DATOS PERSONALES DE GRADUADOS. ESG-SSI-F002 - ACUERDO DE CONFIDENCIALIDAD PARA MIEMBROS DEL TALENTO HUMANO, PASANTES Y MONITORES. ESG-SSI-F020 - ACUERDO DE CONFIDENCIALIDAD PARA PROVEEDORES Y TERCEROS. Control de Debida Diligencia: verificación de la soilcitud (información precisa solicitada y fin). | O14: Oficina de Graduados | P14: Formatos ESG-SSI-F006, ESG-SSI-F002 y ESG-SSI-F020 diligenciados. Trazabilidad correos electrónicos. | Q14: Preventivo | R14: =IF(Q14=Tablas!$R$3,"25%",IF(Q14=Tablas!$R$4,"15%",IF(Q14=Tablas!$R$5,"10%",))) -> 25% | S14: =IF(Q14=Tablas!$R$3,"Probabilidad",IF(Q14=Tablas!$R$4,"Probabilidad",IF(Q14=Tablas!$R$5,"Impacto",))) -> Probabilidad | T14: Manual | U14: =IF(T14=Tablas!$U$3,"25%",IF(T14=Tablas!$U$4,"15%",)) -> 15% | V14: 0.12 | W14: 80% | X14: 0.096 | Y14: =IF(X14<=12%,"Bajo",IF(X14<=24%,"Medio",IF(X14<=40%,"Alto","Muy Alto"))) -> Bajo | Z14: 1. Apropiación y adopción de valores y principios institucionales. 2. Desarrollo del reto de integridad actualizado con la gestión antisobormo. | AA14: Se realiza la revisión y actualización de los riesgos identificados por el proceso, así como los controles establecidos y se evidencia ejecución de los mismos por parte de proceso y no se ha identificado materialización de riegos de soborno.
B16: 13- 46.18
B17: Diagonal 18 No. 20-29 Fusagasugá – Cundinamarca Teléfono (601) 8281483 Línea Gratuita 018000180414 www.ucundinamarca.edu.co E-mail: info@ucundinamarca.edu.co NIT: 890.680.062-2
B19: Documento controlado por el Sistema de Gestión de la Calidad Asegúrese que corresponde a la última versión consultando el Portal Institucional

Sheet 16
D2: MACROPROCESO ESTRATÉGICO | Z2: CÓDIGO: ESG-ESG-GAS-r003
D3: PROCESO GESTIÓN DE SISTEMAS INTEGRADOS | Z3: VERSIÓN: 2
D4: GESTIÓN DEL RIESGO SISTEMA DE GESTIÓN ANTISOBORNO | Z4: VIGENCIA: 2024-08-09
Z5: PÁGINA: 10 de 29
B7: 13.
C8: Proceso responsable: | D8: =Contenido!F27 -> Interacción Social Universitaria | G8: Objetivo del Proceso: | H8: Establecer una interacción e integración reciproca mediante la oferta académica de la Universidad, teniendo en cuenta las necesidades y expectativas de la comunidad en general, mediante un intercambio dinámico de información en las diferentes áreas del conocimiento, teniendo en cuenta el plan rectoral “Universidad de Cundinamarca Translocal Transmoderna”, esto mediante el frente 2 “Misión Trascendente” en donde se plantea que “La interacción social universitaria en adelante ISU- es el diálogo abierto, franco y constructivo con las comunidades, con el fin de resolver problemas del entorno social, cultural, económico y productivo; contribuyendo a la ciencia, la tecnología y la investigación. Por lo tanto, no se trata de ofrecer clases a la comunidad, sino la construcción y resolución de problemas en conjunto”. | Z8: Fecha de actualización: | AA8: =Contenido!G10 -> 9 de agosto de 2024.
B10: Procedimiento Asociado | C10: Posibles hechos de soborno (Descripción del riesgo) | D10: Rol del sobornador | E10: Organizaciones externas, funciones o cargos expuestos al hecho de soborno | F10: Riesgos de soborno (Efecto de la incertidumbre sobre los objetivos estratégicos) | G10: Riesgos de soborno (Efecto de la incertidumbre sobre los objetivos del SGAS) | H10: Probabilidad del riesgo inherente | J10: Impacto del riesgo inherente | L10: Nivel de riesgo inherente | M10: Valoración del nivel de riesgo inherente | N10: Controles actuales existentes | O10: Responsable del control | P10: Documentación | Q10: Control | T10: Implementación | V10: Probabilidad del riesgo residual | W10: Impacto del riesgo residual | X10: Nivel de riesgo residual | Y10: Valoración del nivel de riesgo residual | Z10: Controles adicionales requeridos | AA10: Observaciones 2a. Línea (Oficial Antisoborno) | AB10: Observaciones 3a. Línea (Dirección Control Interno)
H11: Probabilidad | I11: % | J11: Impacto | K11: % | Q11: Tipo | R11: % Peso | S11: Afectación | T11: Tipo | U11: % Peso
B12: MIUP05 - Educación Continuada | C12: Que un tercero ofrezca una dádiva para que este emita un certificado de participación, sin que esta persona haya asistido o aprobado un curso de educación continuada ofertado por la UCundinamarca. | D12: Gestor de ISU / Director de ISU | E12: Funcionario de la Dirección de Interacción Social Universitaria | F12: Deterioro de la reputación institucional que afecta su capacidad de gobernabilidad. | G12: Deficiencia en las acciones de control implementadas que prevengan actuaciones o comportamientos en contravía de lo dispuesta en del Código Autonómico de la UCundinamarca Generación Siglo XXI. | H12: Baja | I12: =IF(H12=Tablas!$D$7,"20%",IF(H12=Tablas!$D$6,"40%",IF(H12=Tablas!$D$5,"60%",IF(H12=Tablas!$D$4,"80%",IF(H12=Tablas!$D$3,"100%"))))) -> 40% | J12: Mayor | K12: =IF(J12=Tablas!$G$10,"20%",IF(J12=Tablas!$H$10,"40%",IF(J12=Tablas!$I$10,"60%",IF(J12=Tablas!$J$10,"80%",IF(J12=Tablas!$K$10,"100%"))))) -> 80% | L12: =I12*K12 -> 0.32 | M12: =IF(L12<=12%,"Bajo",IF(L12<=24%,"Medio",IF(L12<=40%,"Alto","Muy Alto"))) -> Alto | N12: Validación de informe, liquidación del proyecto y la asistencia. | O12: Gestor ISU / Dirección ISU | P12: Ficha técnica contenidos del programa de educación continuada. Informe final. Lista de asistencia. Evaluación del proyecto. Certificados de participación. | Q12: Preventivo | R12: =IF(Q12=Tablas!$R$3,"25%",IF(Q12=Tablas!$R$4,"15%",IF(Q12=Tablas!$R$5,"10%",))) -> 25% | S12: =IF(Q12=Tablas!$R$3,"Probabilidad",IF(Q12=Tablas!$R$4,"Probabilidad",IF(Q12=Tablas!$R$5,"Impacto",))) -> Probabilidad | T12: Manual | U12: =IF(T12=Tablas!$U$3,"25%",IF(T12=Tablas!$U$4,"15%",)) -> 15% | V12: =I12-(I12*(R12+U12)) -> 0.24 | W12: =K12 -> 80% | X12: =V12*W12 -> 0.192 | Y12: =IF(X12<=12%,"Bajo",IF(X12<=24%,"Medio",IF(X12<=40%,"Alto","Muy Alto"))) -> Medio | Z12: 1. Apropiación y adopción de valores y principios institucionales. 2. Desarrollo del reto de integridad actualizado con la gestión antisobormo. 3. Fortalecimiento del botón "Yo Denuncio". 4. Fortalecimiento de la cultura de integridad y transparencia. | AA12: Se realiza la revisión y actualización de los riesgos identificados por el proceso no se remite actualización de los mismos para lo cual se mantienen, pendiente evidencia ejecución de los mismos por parte de proceso, adicional a ello no se ha identificado materialización de riegos de soborno.
B13: MIUP06 - Convenios Marco y/o Acuerdos de Voluntades | C13: Que un tercero del sector externo interesado en suscribir un convenio ofrezca y prometa una dádiva o beneficio indebido a fin de influenciar inapropiadamente la suscripción de un convenio sin el cumplimiento de requisitos. | D13: Gestor de ISU / Director de ISU | E13: Funcionario de la Dirección de Interacción Social Universitaria | F13: Deterioro de la reputación institucional que afecta su capacidad de gobernabilidad. | G13: Deficiencia en las acciones de control implementadas que prevengan actuaciones o comportamientos en contravía de lo dispuesta en del Código Autonómico de la UCundinamarca Generación Siglo XXI. | H13: Baja | I13: =IF(H13=Tablas!$D$7,"20%",IF(H13=Tablas!$D$6,"40%",IF(H13=Tablas!$D$5,"60%",IF(H13=Tablas!$D$4,"80%",IF(H13=Tablas!$D$3,"100%"))))) -> 40% | J13: Moderado | K13: =IF(J13=Tablas!$G$10,"20%",IF(J13=Tablas!$H$10,"40%",IF(J13=Tablas!$I$10,"60%",IF(J13=Tablas!$J$10,"80%",IF(J13=Tablas!$K$10,"100%"))))) -> 60% | L13: =I13*K13 -> 0.24 | M13: =IF(L13<=12%,"Bajo",IF(L13<=24%,"Medio",IF(L13<=40%,"Alto","Muy Alto"))) -> Medio | N13: Verificación de requisitos para la suscripción de convenios. Recibir y revisar si la documentación cumple con los requisitos pertinentes. Revisión Jurídica y se socializa con la Entidad. Revisión de minuta remitida por la entidad. | O13: Dirección ISU | P13: MIUr036 - HOJA DE RUTA CONVENIOS. Correo electrónico. Minuta del convenio. | Q13: Preventivo | R13: =IF(Q13=Tablas!$R$3,"25%",IF(Q13=Tablas!$R$4,"15%",IF(Q13=Tablas!$R$5,"10%",))) -> 25% | S13: =IF(Q13=Tablas!$R$3,"Probabilidad",IF(Q13=Tablas!$R$4,"Probabilidad",IF(Q13=Tablas!$R$5,"Impacto",))) -> Probabilidad | T13: Manual | U13: =IF(T13=Tablas!$U$3,"25%",IF(T13=Tablas!$U$4,"15%",)) -> 15% | V13: =I13-(I13*(R13+U13)) -> 0.24 | W13: =K13 -> 60% | X13: =V13*W13 -> 0.144 | Y13: =IF(X13<=12%,"Bajo",IF(X13<=24%,"Medio",IF(X13<=40%,"Alto","Muy Alto"))) -> Medio | Z13: 1. Apropiación y adopción de valores y principios institucionales. 2. Desarrollo del reto de integridad actualizado con la gestión antisobormo. 3. Fortalecimiento del botón "Yo Denuncio". 4. Fortalecimiento de la cultura de integridad y transparencia. | AA13: Se realiza la revisión y actualización de los riesgos identificados por el proceso no se remite actualización de los mismos para lo cual se mantienen, pendiente evidencia ejecución de los mismos por parte de proceso, adicional a ello no se ha identificado materialización de riegos de soborno.
B14: MIUP09 - Voluntariado | C14: Que un voluntario ofrezca o prometa una dádiva para que sea expedida la certificación de participación sin haber cumplido con las horas y actividades del voluntariado. | D14: Lider de voluntariado | E14: Funcionario de la Dirección de Interacción Social Universitaria | F14: Deterioro de la reputación institucional que afecta su capacidad de gobernabilidad. | G14: Deficiencia en las acciones de control implementadas que prevengan actuaciones o comportamientos en contravía de lo dispuesta en del Código Autonómico de la UCundinamarca Generación Siglo XXI. | H14: Baja | I14: =IF(H14=Tablas!$D$7,"20%",IF(H14=Tablas!$D$6,"40%",IF(H14=Tablas!$D$5,"60%",IF(H14=Tablas!$D$4,"80%",IF(H14=Tablas!$D$3,"100%"))))) -> 40% | J14: Moderado | K14: =IF(J14=Tablas!$G$10,"20%",IF(J14=Tablas!$H$10,"40%",IF(J14=Tablas!$I$10,"60%",IF(J14=Tablas!$J$10,"80%",IF(J14=Tablas!$K$10,"100%"))))) -> 60% | L14: 0.24 | M14: Medio | N14: Verificación del informe del resultado de las actividades realizadas en el voluntariado. | O14: Lider de Voluntariado | P14: Informe y autoevaluación de voluntariado. | Q14: Preventivo | R14: =IF(Q14=Tablas!$R$3,"25%",IF(Q14=Tablas!$R$4,"15%",IF(Q14=Tablas!$R$5,"10%",))) -> 25% | S14: =IF(Q14=Tablas!$R$3,"Probabilidad",IF(Q14=Tablas!$R$4,"Probabilidad",IF(Q14=Tablas!$R$5,"Impacto",))) -> Probabilidad | T14: Manual | U14: =IF(T14=Tablas!$U$3,"25%",IF(T14=Tablas!$U$4,"15%",)) -> 15% | V14: 0.24 | W14: 60% | X14: 0.144 | Y14: =IF(X14<=12%,"Bajo",IF(X14<=24%,"Medio",IF(X14<=40%,"Alto","Muy Alto"))) -> Medio | Z14: 1. Apropiación y adopción de valores y principios institucionales. 2. Desarrollo del reto de integridad actualizado con la gestión antisobormo. 3. Fortalecimiento del botón "Yo Denuncio". 4. Fortalecimiento de la cultura de integridad y transparencia. | AA14: Se realiza la revisión y actualización de los riesgos identificados por el proceso no se remite actualización de los mismos para lo cual se mantienen, pendiente evidencia ejecución de los mismos por parte de proceso, adicional a ello no se ha identificado materialización de riegos de soborno.
B17: 13- 46.18
B18: Diagonal 18 No. 20-29 Fusagasugá – Cundinamarca Teléfono (601) 8281483 Línea Gratuita 018000180414 www.ucundinamarca.edu.co E-mail: info@ucundinamarca.edu.co NIT: 890.680.062-2
B20: Documento controlado por el Sistema de Gestión de la Calidad Asegúrese que corresponde a la última versión consultando el Portal Institucional

Sheet 17
D2: MACROPROCESO ESTRATÉGICO | Z2: CÓDIGO: ESG-ESG-GAS-r003
D3: PROCESO GESTIÓN DE SISTEMAS INTEGRADOS | Z3: VERSIÓN: 2
D4: GESTIÓN DEL RIESGO SISTEMA DE GESTIÓN ANTISOBORNO | Z4: VIGENCIA: 2024-08-09
Z5: PÁGINA: 9 de 29
B7: 13.
C8: Proceso responsable: | D8: =Contenido!F28 -> Apoyo Académico | G8: Objetivo del Proceso: | H8: Asegurar la prestación de espacios académicos, elementos educativos y la ejecución de los recursos asignados a la Unidad de Apoyo Académico, con el fin de contribuir al desarrollo de los procesos de la academia. | Z8: Fecha de actualización: | AA8: =Contenido!G10 -> 9 de agosto de 2024.
B10: Procedimiento Asociado | C10: Posibles hechos de soborno (Descripción del riesgo) | D10: Rol del sobornador | E10: Organizaciones externas, funciones o cargos expuestos al hecho de soborno | F10: Riesgos de soborno (Efecto de la incertidumbre sobre los objetivos estratégicos) | G10: Riesgos de soborno (Efecto de la incertidumbre sobre los objetivos del SGAS) | H10: Probabilidad del riesgo inherente | J10: Impacto del riesgo inherente | L10: Nivel de riesgo inherente | M10: Valoración del nivel de riesgo inherente | N10: Controles actuales existentes | O10: Responsable del control | P10: Documentación | Q10: Control | T10: Implementación | V10: Probabilidad del riesgo residual | W10: Impacto del riesgo residual | X10: Nivel de riesgo residual | Y10: Valoración del nivel de riesgo residual | Z10: Controles adicionales requeridos | AA10: Observaciones 2a. Línea (Oficial Antisoborno) | AB10: Observaciones 3a. Línea (Dirección Control Interno)
H11: Probabilidad | I11: % | J11: Impacto | K11: % | Q11: Tipo | R11: % Peso | S11: Afectación | T11: Tipo | U11: % Peso
B12: AAAP03 - CIRCULACION Y PRESTAMO | C12: Que el Gestor encargado reciba una contraprestación por parte de un Estudiante y Gestor del Conocimiento para poder llevar el material Pedagógico, equipo de computo y kindle sin registrar el préstamo en la plataforma institucional. | D12: Gestor Unidad de Apoyo Académico | E12: Gestores del Conocimiento Estudiantes y Administrativos | F12: Perdida de recursos y reinversión en bienes y elementos necesarios para el desarrollo misional de la UCundinamarca. | G12: Debilidades en la comprensión de los lineamientos establecidos del sistema de gestión antisoborno por parte del personal administrativo y académico de la universidad. | H12: Alta | I12: =IF(H12=Tablas!$D$7,"20%",IF(H12=Tablas!$D$6,"40%",IF(H12=Tablas!$D$5,"60%",IF(H12=Tablas!$D$4,"80%",IF(H12=Tablas!$D$3,"100%"))))) -> 80% | J12: Moderado | K12: =IF(J12=Tablas!$G$10,"20%",IF(J12=Tablas!$H$10,"40%",IF(J12=Tablas!$I$10,"60%",IF(J12=Tablas!$J$10,"80%",IF(J12=Tablas!$K$10,"100%"))))) -> 60% | L12: =I12*K12 -> 0.48 | M12: =IF(L12<=12%,"Bajo",IF(L12<=24%,"Medio",IF(L12<=40%,"Alto","Muy Alto"))) -> Muy Alto | N12: Gestor Bibliográfico KOHA cargue de préstamos Plataforma Institucional- SIS - Solicitud de compuadores para estudiantes debe contener el aval del coordinador del programa académico. AAAF010 - SOLICITUD DE PRESTAMO EXTERNO DE ELEMENTOS EDUCATIVOS. AAAF129 - COMODATO PARA PRESTAMO EXTERNO DE ELEMENTOS EDUCATIVOS. | O12: CGCA - Unidad de Apoyo Académico | P12: Plataforma Institucional SIS Gestor Bibliográfico KOHA AAAF010 - SOLICITUD DE PRESTAMO EXTERNO DE ELEMENTOS EDUCATIVOS. AAAF129 - COMODATO PARA PRESTAMO EXTERNO DE ELEMENTOS EDUCATIVOS. | Q12: Preventivo | R12: =IF(Q12=Tablas!$R$3,"25%",IF(Q12=Tablas!$R$4,"15%",IF(Q12=Tablas!$R$5,"10%",))) -> 25% | S12: =IF(Q12=Tablas!$R$3,"Probabilidad",IF(Q12=Tablas!$R$4,"Probabilidad",IF(Q12=Tablas!$R$5,"Impacto",))) -> Probabilidad | T12: Automático | U12: =IF(T12=Tablas!$U$3,"25%",IF(T12=Tablas!$U$4,"15%",)) -> 25% | V12: =I12-(I12*(R12+U12)) -> 0.4 | W12: =K12 -> 60% | X12: =V12*W12 -> 0.24 | Y12: =IF(X12<=12%,"Bajo",IF(X12<=24%,"Medio",IF(X12<=40%,"Alto","Muy Alto"))) -> Medio | Z12: 1. Apropiación y adopción de valores y principios institucionales. 2. Desarrollo del reto de integridad actualizado con la gestión antisobormo. 3. Fortalecimiento del botón "Yo Denuncio". 4. Fortalecimiento de la cultura de integridad y transparencia. 5. Aplicación del procedimiento de debida diligencia. | AA12: Se realiza la revisión y actualización de los riesgos identificados por el proceso, así como los controles establecidos y se evidencia ejecución de los mismos por parte de proceso y no se ha identificado materialización de riegos de soborno.
B13: AAAP03 - CIRCULACION Y PRESTAMO AAAP05 - PRESTAMO DE ESPACIOS ACADÉMICOS | C13: Un estudiante ofrece una contraprestación para que el gestor encargado no registre el estado en el que devuelve el material pedogico, equipo de computo, elementos académicos y kindle. | D13: Gestor Unidad de Apoyo Académico | E13: Gestores del Conocimiento Estudiantes y Administrativos | F13: Daño del elemento educativo Reinversión en bienes y elementos necesarios para el desarrollo académico. | G13: Debilidades en la comprensión de los lineamientos establecidos del sistema de gestión antisoborno por parte del personal administrativo y académico de la universidad. | H13: Baja | I13: =IF(H13=Tablas!$D$7,"20%",IF(H13=Tablas!$D$6,"40%",IF(H13=Tablas!$D$5,"60%",IF(H13=Tablas!$D$4,"80%",IF(H13=Tablas!$D$3,"100%"))))) -> 40% | J13: Mayor | K13: =IF(J13=Tablas!$G$10,"20%",IF(J13=Tablas!$H$10,"40%",IF(J13=Tablas!$I$10,"60%",IF(J13=Tablas!$J$10,"80%",IF(J13=Tablas!$K$10,"100%"))))) -> 80% | L13: =I13*K13 -> 0.32 | M13: =IF(L13<=12%,"Bajo",IF(L13<=24%,"Medio",IF(L13<=40%,"Alto","Muy Alto"))) -> Alto | N13: El gestor realiza el registro de la multa en el aplicativo dispuesto para tal fin y continua el cargue del préstamo Reporte novedad en el formato AAAF010 - SOLICITUD DE PRESTAMO EXTERNO DE ELEMENTOS EDUCATIVOS | O13: Unidad de Apoyo Académico | P13: Aplicativo de deudas academicas de la plataforma institucional. | Q13: Preventivo | R13: =IF(Q13=Tablas!$R$3,"25%",IF(Q13=Tablas!$R$4,"15%",IF(Q13=Tablas!$R$5,"10%",))) -> 25% | S13: =IF(Q13=Tablas!$R$3,"Probabilidad",IF(Q13=Tablas!$R$4,"Probabilidad",IF(Q13=Tablas!$R$5,"Impacto",))) -> Probabilidad | T13: Automático | U13: =IF(T13=Tablas!$U$3,"25%",IF(T13=Tablas!$U$4,"15%",)) -> 25% | V13: =I13-(I13*(R13+U13)) -> 0.2 | W13: =K13 -> 80% | X13: =V13*W13 -> 0.16 | Y13: =IF(X13<=12%,"Bajo",IF(X13<=24%,"Medio",IF(X13<=40%,"Alto","Muy Alto"))) -> Medio | Z13: 1. Apropiación y adopción de valores y principios institucionales. 2. Desarrollo del reto de integridad actualizado con la gestión antisobormo. 3. Fortalecimiento del botón "Yo Denuncio". 4. Fortalecimiento de la cultura de integridad y transparencia. | AA13: Se realiza la revisión y actualización de los riesgos identificados por el proceso, así como los controles establecidos y se evidencia ejecución de los mismos por parte de proceso y no se ha identificado materialización de riegos de soborno.
B14: AAAP05 - PRESTAMO DE ESPACIOS ACADÉMICOS | C14: Que el gestor encargado reciba una contraprestación para asignar un espacio académico con el fin de realizar actividades que no son afines con la misionalidad de la UCundinamarca. | D14: Gestor Unidad de Apoyo Académico | E14: Terceros Funcionarios de la Universidad | F14: Daño a los espacios Académicos y Deterioro de la imagen institucional que afecta la gestion y gobernanza | G14: Debilidades en la comprensión de los lineamientos establecidos del sistema de gestión antisoborno por parte del personal administrativo y académico de la universidad. | H14: Baja | I14: =IF(H14=Tablas!$D$7,"20%",IF(H14=Tablas!$D$6,"40%",IF(H14=Tablas!$D$5,"60%",IF(H14=Tablas!$D$4,"80%",IF(H14=Tablas!$D$3,"100%"))))) -> 40% | J14: Moderado | K14: =IF(J14=Tablas!$G$10,"20%",IF(J14=Tablas!$H$10,"40%",IF(J14=Tablas!$I$10,"60%",IF(J14=Tablas!$J$10,"80%",IF(J14=Tablas!$K$10,"100%"))))) -> 60% | L14: 0.24 | M14: Medio | N14: Solicitudes Plataforma Institucional aplicativo SIS, préstamos comunidad universitaria AAAF140 - Solicitud de prestamo de auditorio, donde el Vicerrector avala el prestamo del espacio académico (via correo electrónico), para préstamos de personal Externo | O14: Unidad de Apoyo Académico - Gestor Espacio Académico | P14: Plataforma Institucional aplicativo - SIS Formato AAAF140 - Solicitud de prestamo de auditorios. | Q14: Preventivo | R14: =IF(Q14=Tablas!$R$3,"25%",IF(Q14=Tablas!$R$4,"15%",IF(Q14=Tablas!$R$5,"10%",))) -> 25% | S14: =IF(Q14=Tablas!$R$3,"Probabilidad",IF(Q14=Tablas!$R$4,"Probabilidad",IF(Q14=Tablas!$R$5,"Impacto",))) -> Probabilidad | T14: Automático | U14: =IF(T14=Tablas!$U$3,"25%",IF(T14=Tablas!$U$4,"15%",)) -> 25% | V14: 0.2 | W14: 60% | X14: 0.12 | Y14: =IF(X14<=12%,"Bajo",IF(X14<=24%,"Medio",IF(X14<=40%,"Alto","Muy Alto"))) -> Bajo | Z14: 1. Apropiación y adopción de valores y principios institucionales. 2. Desarrollo del reto de integridad actualizado con la gestión antisobormo. 3. Fortalecimiento del botón "Yo Denuncio". 4. Fortalecimiento de la cultura de integridad y transparencia. 5. Aplicación del procedimiento de debida diligencia. | AA14: Se realiza la revisión y actualización de los riesgos identificados por el proceso así como los controles para su ejecución.
B15: AAAP05 - PRESTAMO DE ESPACIOS ACADÉMICOS | C15: Que el encargado del espacio académico reciba una contraprestación para no reportar el daño del espacio que estaba en prestamo. | D15: Gestor del Espacio Académico | E15: Terceros Gestor Encargado del Espacio | F15: Daño a los espacios Académicos , Reinversión en los bienes y elementos necesarios para llevar a cabo los procesos académicos | G15: Debilidades en la comprensión de los lineamientos establecidos del sistema de gestión antisoborno por parte del personal administrativo y académico de la universidad. | H15: Baja | I15: =IF(H15=Tablas!$D$7,"20%",IF(H15=Tablas!$D$6,"40%",IF(H15=Tablas!$D$5,"60%",IF(H15=Tablas!$D$4,"80%",IF(H15=Tablas!$D$3,"100%"))))) -> 40% | J15: Menor | K15: =IF(J15=Tablas!$G$10,"20%",IF(J15=Tablas!$H$10,"40%",IF(J15=Tablas!$I$10,"60%",IF(J15=Tablas!$J$10,"80%",IF(J15=Tablas!$K$10,"100%"))))) -> 40% | L15: 0.16 | M15: Medio | N15: AAAF016: Reporte de Novedad El gestor realiza el registro de la multa en el aplicativo dispuesto para tal fin y continua el cargue del préstamo Formato AAAF140 - Solicitud de prestamo de auditorios. | O15: Gestor encargado espacio académico | P15: AAAF016: Reporte de Novedad Reporte Aplicativo Deudas Académicas Formato AAAF140 - Solicitud de prestamo de auditorios. | Q15: Preventivo | R15: =IF(Q15=Tablas!$R$3,"25%",IF(Q15=Tablas!$R$4,"15%",IF(Q15=Tablas!$R$5,"10%",))) -> 25% | S15: =IF(Q15=Tablas!$R$3,"Probabilidad",IF(Q15=Tablas!$R$4,"Probabilidad",IF(Q15=Tablas!$R$5,"Impacto",))) -> Probabilidad | T15: Automático | U15: =IF(T15=Tablas!$U$3,"25%",IF(T15=Tablas!$U$4,"15%",)) -> 25% | V15: 0.2 | W15: 40% | X15: 0.08 | Y15: Bajo | Z15: 1. Apropiación y adopción de valores y principios institucionales. 2. Desarrollo del reto de integridad actualizado con la gestión antisobormo. 3. Fortalecimiento del botón "Yo Denuncio". 4. Fortalecimiento de la cultura de integridad y transparencia. 5. Aplicación del procedimiento de debida diligencia. | AA15: Se realiza la revisión y actualización de los riesgos identificados por el proceso así como los controles para su ejecución.
B16: AAAP10 - ADMINISTRACIÓN PRODUCTOS AGROPECUARIOS | C16: Los encargados de la Unidad Agroambiental reciben una contraprestación por vender los productos agropecuarios a un menor precio a lo establecido por el comité de Centro de Estudios Agroambientales | D16: Lider Unidad Agroambiental | E16: Terceros | F16: Debilitamiento de la cultura de la UCundinamarca hacia el logro de las metas planteadas | G16: Debilidades en la comprensión de los lineamientos establecidos del sistema de gestión antisoborno por parte del personal administrativo y académico de la universidad. | H16: Baja | I16: =IF(H16=Tablas!$D$7,"20%",IF(H16=Tablas!$D$6,"40%",IF(H16=Tablas!$D$5,"60%",IF(H16=Tablas!$D$4,"80%",IF(H16=Tablas!$D$3,"100%"))))) -> 40% | J16: Moderado | K16: =IF(J16=Tablas!$G$10,"20%",IF(J16=Tablas!$H$10,"40%",IF(J16=Tablas!$I$10,"60%",IF(J16=Tablas!$J$10,"80%",IF(J16=Tablas!$K$10,"100%"))))) -> 60% | L16: 0.24 | M16: Medio | N16: AAAF019-Reporte de producción Agricola AAAF036 - Producción de Leche AAAF079- Reporte de salida de productos Agropecuarios Recibo depago generado por Tesoreria para el pago de los productos | O16: Lider Unidades Agroambientales | P16: AAAF019-Reporte de producción Agricola AAAF036 - Producción de Leche AAAF079- Reporte de salida de productos Agropecuarios comprobante de pago | Q16: Preventivo | R16: =IF(Q16=Tablas!$R$3,"25%",IF(Q16=Tablas!$R$4,"15%",IF(Q16=Tablas!$R$5,"10%",))) -> 25% | S16: =IF(Q16=Tablas!$R$3,"Probabilidad",IF(Q16=Tablas!$R$4,"Probabilidad",IF(Q16=Tablas!$R$5,"Impacto",))) -> Probabilidad | T16: Manual | U16: =IF(T16=Tablas!$U$3,"25%",IF(T16=Tablas!$U$4,"15%",)) -> 15% | V16: 0.24 | W16: 60% | X16: 0.144 | Y16: Medio | Z16: 1. Apropiación y adopción de valores y principios institucionales. 2. Desarrollo del reto de integridad actualizado con la gestión antisobormo. 3. Fortalecimiento del botón "Yo Denuncio". 4. Fortalecimiento de la cultura de integridad y transparencia. 5. Aplicación del procedimiento de debida diligencia. | AA16: Se realiza la revisión y actualización de los riesgos identificados por el proceso así como los controles para su ejecución.
B18: 13- 46.18
B20: Diagonal 18 No. 20-29 Fusagasugá – Cundinamarca Teléfono (601) 8281483 Línea Gratuita 018000180414 www.ucundinamarca.edu.co E-mail: info@ucundinamarca.edu.co NIT: 890.680.062-2
B21: Documento controlado por el Sistema de Gestión de la Calidad Asegúrese que corresponde a la última versión consultando el Portal Institucional

Sheet 18
D2: MACROPROCESO ESTRATÉGICO | Z2: CÓDIGO: ESG-ESG-GAS-r003
D3: PROCESO GESTIÓN DE SISTEMAS INTEGRADOS | Z3: VERSIÓN: 2
D4: GESTIÓN DEL RIESGO SISTEMA DE GESTIÓN ANTISOBORNO | Z4: VIGENCIA: 2024-08-09
Z5: PÁGINA: 10 de 29
B7: 13.
C8: Proceso responsable: | D8: =Contenido!F29 -> Bienes y Servicios | G8: Objetivo del Proceso: | H8: Gestionar oportunamente la adquisición, ingreso, control, custodia y promoción de los bienes muebles e inmuebles y/o servicios y la administración, mantenimiento de la planta física y parque automotor con el fin de atender los requerimientos de los diferentes procesos enfocadas a optimizar el servicio a la comunidad académica. | Z8: Fecha de actualización: | AA8: =Contenido!G10 -> 9 de agosto de 2024.
B10: Procedimiento Asociado | C10: Posibles hechos de soborno (Descripción del riesgo) | D10: Rol del sobornador | E10: Organizaciones externas, funciones o cargos expuestos al hecho de soborno | F10: Riesgos de soborno (Efecto de la incertidumbre sobre los objetivos estratégicos) | G10: Riesgos de soborno (Efecto de la incertidumbre sobre los objetivos del SGAS) | H10: Probabilidad del riesgo inherente | J10: Impacto del riesgo inherente | L10: Nivel de riesgo inherente | M10: Valoración del nivel de riesgo inherente | N10: Controles actuales existentes | O10: Responsable del control | P10: Documentación | Q10: Control | T10: Implementación | V10: Probabilidad del riesgo residual | W10: Impacto del riesgo residual | X10: Nivel de riesgo residual | Y10: Valoración del nivel de riesgo residual | Z10: Controles adicionales requeridos | AA10: Observaciones 2a. Línea (Oficial Antisoborno) | AB10: Observaciones 3a. Línea (Dirección Control Interno)
H11: Probabilidad | I11: % | J11: Impacto | K11: % | Q11: Tipo | R11: % Peso | S11: Afectación | T11: Tipo | U11: % Peso
B12: ABSP05 - INGRESO, EGRESO, TRASLADOS Y DEVOLUCIONES DE LOS BIENES AL ALMACEN | C12: Que un proveedor prometa u ofrezca una dádiva para favorecer el ingreso de un bien y/o servicios que no cumplan con las especificaciones técnicas o cantidades de conformidad con el contrato. | D12: Supervisor / Funcionario de Almacén | E12: Socios de negocios / Banco de Proveedores | F12: Pérdida de la confianza institucional por la desviación de los objetivos estrategicos por el no cumplimiento de las metas del Plan de Desarrollo de la Universidad de Cundinamarca. | G12: Deficiencia en las acciones de control implementadas que prevengan actuaciones o comportamientos en contravía de lo dispuesta en del Código Autonómico de la UCundinamarca Generación Siglo XXI. | H12: Baja | I12: =IF(H12=Tablas!$D$7,"20%",IF(H12=Tablas!$D$6,"40%",IF(H12=Tablas!$D$5,"60%",IF(H12=Tablas!$D$4,"80%",IF(H12=Tablas!$D$3,"100%"))))) -> 40% | J12: Mayor | K12: =IF(J12=Tablas!$G$10,"20%",IF(J12=Tablas!$H$10,"40%",IF(J12=Tablas!$I$10,"60%",IF(J12=Tablas!$J$10,"80%",IF(J12=Tablas!$K$10,"100%"))))) -> 80% | L12: =I12*K12 -> 0.32 | M12: =IF(L12<=12%,"Bajo",IF(L12<=24%,"Medio",IF(L12<=40%,"Alto","Muy Alto"))) -> Alto | N12: Verificación fisica de los bienes y/o servicios entregados vs los bienes y/o servicios que están entregrando. - Se solicita el acompañamiento de los | O12: Almacen | P12: ABSr013 - RECEPCION DE BIENES DEVOLUTIVOS Y DE CONSUMO. | Q12: Preventivo | R12: =IF(Q12=Tablas!$R$3,"25%",IF(Q12=Tablas!$R$4,"15%",IF(Q12=Tablas!$R$5,"10%",))) -> 25% | S12: =IF(Q12=Tablas!$R$3,"Probabilidad",IF(Q12=Tablas!$R$4,"Probabilidad",IF(Q12=Tablas!$R$5,"Impacto",))) -> Probabilidad | T12: Manual | U12: =IF(T12=Tablas!$U$3,"25%",IF(T12=Tablas!$U$4,"15%",)) -> 15% | V12: =I12-(I12*(R12+U12)) -> 0.24 | W12: =K12 -> 80% | X12: =V12*W12 -> 0.192 | Y12: =IF(X12<=12%,"Bajo",IF(X12<=24%,"Medio",IF(X12<=40%,"Alto","Muy Alto"))) -> Medio | Z12: 1. Apropiación y adopción de valores y principios institucionales. 2. Desarrollo del reto de integridad actualizado con la gestión antisobormo. 3. Fortalecimiento del botón "Yo Denuncio". 4. Fortalecimiento de la cultura de integridad y transparencia. | AA12: Se realiza la revisión y actualización de los riesgos identificados por el proceso, así como los controles establecidos y se evidencia ejecución de los mismos por parte de proceso y no se ha identificado materialización de riegos de soborno.
B13: ABSP05 - INGRESO, EGRESO, TRASLADOS Y DEVOLUCIONES DE LOS BIENES AL ALMACEN | C13: Que un Funcionario del Almacén prometa u ofrezca una dádiva al Funcionario de la Dependencia responsable, con el fin de recibir un bien y/o servicio que no cuenta con las especificaciones técnicas o cantidades especificadas en el contrato. | D13: Funcionarios de la Universidad de Cundinamarca. | E13: Socios de negocios / Banco de Proveedores | F13: Pérdida de la confianza institucional por la desviación de los objetivos estrategicos por el no cumplimiento de las metas del Plan de Desarrollo de la Universidad de Cundinamarca. | G13: Deficiencia en las acciones de control implementadas que prevengan actuaciones o comportamientos en contravía de lo dispuesta en del Código Autonómico de la UCundinamarca Generación Siglo XXI. | H13: Muy baja | I13: =IF(H13=Tablas!$D$7,"20%",IF(H13=Tablas!$D$6,"40%",IF(H13=Tablas!$D$5,"60%",IF(H13=Tablas!$D$4,"80%",IF(H13=Tablas!$D$3,"100%"))))) -> 20% | J13: Mayor | K13: =IF(J13=Tablas!$G$10,"20%",IF(J13=Tablas!$H$10,"40%",IF(J13=Tablas!$I$10,"60%",IF(J13=Tablas!$J$10,"80%",IF(J13=Tablas!$K$10,"100%"))))) -> 80% | L13: =I13*K13 -> 0.16 | M13: =IF(L13<=12%,"Bajo",IF(L13<=24%,"Medio",IF(L13<=40%,"Alto","Muy Alto"))) -> Medio | N13: Todos los bienes y servicios que ingresan al Almacén, tienen su respectiva salida. Verificación física del bien y/o servicio de quien recibe. | O13: Almacen | P13: ABSr014 - SOLICITUD ELEMENTOS DE CONSUMO Y DEVOLUTIVOS. ABSr022 - EGRESO DE ELEMENTOS DE CONSUMO Y/O DEVOLUTIVOS. | Q13: Preventivo | R13: =IF(Q13=Tablas!$R$3,"25%",IF(Q13=Tablas!$R$4,"15%",IF(Q13=Tablas!$R$5,"10%",))) -> 25% | S13: =IF(Q13=Tablas!$R$3,"Probabilidad",IF(Q13=Tablas!$R$4,"Probabilidad",IF(Q13=Tablas!$R$5,"Impacto",))) -> Probabilidad | T13: Manual | U13: =IF(T13=Tablas!$U$3,"25%",IF(T13=Tablas!$U$4,"15%",)) -> 15% | V13: =I13-(I13*(R13+U13)) -> 0.12 | W13: =K13 -> 80% | X13: =V13*W13 -> 0.096 | Y13: =IF(X13<=12%,"Bajo",IF(X13<=24%,"Medio",IF(X13<=40%,"Alto","Muy Alto"))) -> Bajo | Z13: 1. Apropiación y adopción de valores y principios institucionales. 2. Desarrollo del reto de integridad actualizado con la gestión antisobormo. 3. Fortalecimiento del botón "Yo Denuncio". 4. Fortalecimiento de la cultura de integridad y transparencia. | AA13: Se realiza la revisión y actualización de los riesgos identificados por el proceso, así como los controles establecidos y se evidencia ejecución de los mismos por parte de proceso y no se ha identificado materialización de riegos de soborno.
B14: ABSP15 - ADQUISICIÓN DE BIENES, SERVICIOS U OBRAS INVITACIÓN PRIVADA E INVITACIÓN PÚBLICA | C14: Que un tercero nacional o transnacional ofrezca o prometa una dádiva para favorecer la estructuración de los estudios previos. | D14: Gestores y/o líderes de procesos | E14: Funcionario de la Universidad de Cundinamarca (Supervisor o apoyo a la Supervisión del contrato) | F14: Pérdida de la confianza institucional por la desviación de los objetivos estrategicos por el no cumplimiento de las metas del Plan de Desarrollo de la Universidad de Cundinamarca. | G14: Deficiencia en las acciones de control implementadas que prevengan actuaciones o comportamientos en contravía de lo dispuesta en del Código Autonómico de la UCundinamarca Generación Siglo XXI. | H14: Muy baja | I14: =IF(H14=Tablas!$D$7,"20%",IF(H14=Tablas!$D$6,"40%",IF(H14=Tablas!$D$5,"60%",IF(H14=Tablas!$D$4,"80%",IF(H14=Tablas!$D$3,"100%"))))) -> 20% | J14: Mayor | K14: =IF(J14=Tablas!$G$10,"20%",IF(J14=Tablas!$H$10,"40%",IF(J14=Tablas!$I$10,"60%",IF(J14=Tablas!$J$10,"80%",IF(J14=Tablas!$K$10,"100%"))))) -> 80% | L14: 0.16 | M14: Medio | N14: Se establecen lineamientos para la elaboración de estudios previos. | O14: Dirección de Bienes y Servicios | P14: ABSG004 - GUIA DE ESTUDIOS PREVIOS PARA LA ADQUISICION DE BIENES, SERVICIOS U OBRAS | Q14: Preventivo | R14: =IF(Q14=Tablas!$R$3,"25%",IF(Q14=Tablas!$R$4,"15%",IF(Q14=Tablas!$R$5,"10%",))) -> 25% | S14: =IF(Q14=Tablas!$R$3,"Probabilidad",IF(Q14=Tablas!$R$4,"Probabilidad",IF(Q14=Tablas!$R$5,"Impacto",))) -> Probabilidad | T14: Manual | U14: =IF(T14=Tablas!$U$3,"25%",IF(T14=Tablas!$U$4,"15%",)) -> 15% | V14: 0.12 | W14: 80% | X14: 0.096 | Y14: =IF(X14<=12%,"Bajo",IF(X14<=24%,"Medio",IF(X14<=40%,"Alto","Muy Alto"))) -> Bajo | Z14: 1. Apropiación y adopción de valores y principios institucionales. 2. Desarrollo del reto de integridad actualizado con la gestión antisobormo. 3. Fortalecimiento del botón "Yo Denuncio". 4. Fortalecimiento de la cultura de integridad y transparencia. | AA14: Se realiza la revisión y actualización de los riesgos identificados por el proceso, así como los controles establecidos y se evidencia ejecución de los mismos por parte de proceso y no se ha identificado materialización de riegos de soborno.
B15: ABSP15 - ADQUISICIÓN DE BIENES, SERVICIOS U OBRAS INVITACIÓN PRIVADA E INVITACIÓN PÚBLICA | C15: Que un tercero nacional o transnacional ofrezca o prometa una dádiva para favorecer la estructuración en los términos de la invitación pública y/o privada. | D15: Director de Bienes y Servicios, Jefe Oficina de Compras y/o Gestor, Dirección Jurídica y/o Asesor. | E15: Funcionario y/o contratista de la UCundinamarca | F15: Pérdida de la confianza institucional por la desviación de los objetivos estrategicos por el no cumplimiento de las metas del Plan de Desarrollo de la Universidad de Cundinamarca. | G15: Deficiencia en las acciones de control implementadas que prevengan actuaciones o comportamientos en contravía de lo dispuesta en del Código Autonómico de la UCundinamarca Generación Siglo XXI. | H15: Muy baja | I15: =IF(H15=Tablas!$D$7,"20%",IF(H15=Tablas!$D$6,"40%",IF(H15=Tablas!$D$5,"60%",IF(H15=Tablas!$D$4,"80%",IF(H15=Tablas!$D$3,"100%"))))) -> 20% | J15: Mayor | K15: =IF(J15=Tablas!$G$10,"20%",IF(J15=Tablas!$H$10,"40%",IF(J15=Tablas!$I$10,"60%",IF(J15=Tablas!$J$10,"80%",IF(J15=Tablas!$K$10,"100%"))))) -> 80% | L15: 0.16 | M15: Medio | N15: Revisión cooperativa de los estudios previos (ABSr001 y ABSr097) por medio de la Plataforma Institucional. | O15: Dirección Jurídica (Funcionamiento e inversión). Dirección de Planeación Institucional (inversión). Dirección de Bienes y Servicios Jefatura Oficina de Compras (Funcionamiento e Inversión). | P15: ABS aprobado. | Q15: Preventivo | R15: =IF(Q15=Tablas!$R$3,"25%",IF(Q15=Tablas!$R$4,"15%",IF(Q15=Tablas!$R$5,"10%",))) -> 25% | S15: =IF(Q15=Tablas!$R$3,"Probabilidad",IF(Q15=Tablas!$R$4,"Probabilidad",IF(Q15=Tablas!$R$5,"Impacto",))) -> Probabilidad | T15: Manual | U15: =IF(T15=Tablas!$U$3,"25%",IF(T15=Tablas!$U$4,"15%",)) -> 15% | V15: 0.12 | W15: 80% | X15: 0.096 | Y15: Bajo | Z15: 1. Apropiación y adopción de valores y principios institucionales. 2. Desarrollo del reto de integridad actualizado con la gestión antisobormo. 3. Fortalecimiento del botón "Yo Denuncio". 4. Fortalecimiento de la cultura de integridad y transparencia. | AA15: Se realiza la revisión y actualización de los riesgos identificados por el proceso, así como los controles establecidos y se evidencia ejecución de los mismos por parte de proceso y no se ha identificado materialización de riegos de soborno.
B16: ABSP15 - ADQUISICIÓN DE BIENES, SERVICIOS U OBRAS INVITACIÓN PRIVADA E INVITACIÓN PÚBLICA | C16: Que un tercero nacional o transnacional ofrezca o prometa una dádiva para favorecer la estructuración en los términos de la invitación pública y/o privada. | D16: Director de Bienes y Servicios, Jefe Oficina de Compras y/o Gestor, Dirección Jurídica y/o Asesor. | E16: Funcionario de la Universidad de Cundinamarca. | F16: Pérdida de la confianza institucional por la desviación de los objetivos estrategicos por el no cumplimiento de las metas del Plan de Desarrollo de la Universidad de Cundinamarca. | G16: Deficiencia en las acciones de control implementadas que prevengan actuaciones o comportamientos en contravía de lo dispuesta en del Código Autonómico de la UCundinamarca Generación Siglo XXI. | H16: Muy baja | I16: =IF(H16=Tablas!$D$7,"20%",IF(H16=Tablas!$D$6,"40%",IF(H16=Tablas!$D$5,"60%",IF(H16=Tablas!$D$4,"80%",IF(H16=Tablas!$D$3,"100%"))))) -> 20% | J16: Mayor | K16: =IF(J16=Tablas!$G$10,"20%",IF(J16=Tablas!$H$10,"40%",IF(J16=Tablas!$I$10,"60%",IF(J16=Tablas!$J$10,"80%",IF(J16=Tablas!$K$10,"100%"))))) -> 80% | L16: 0.16 | M16: Medio | N16: Revisión cooperativa de los términos de la invitación pública y/o privada por medio del aplicativo dispuesto. | O16: Dirección Jurídica Dirección de Bienes y Servicios Jefatura Oficina de Compras | P16: Términos de Invitación Pública aprobados. | Q16: Preventivo | R16: =IF(Q16=Tablas!$R$3,"25%",IF(Q16=Tablas!$R$4,"15%",IF(Q16=Tablas!$R$5,"10%",))) -> 25% | S16: =IF(Q16=Tablas!$R$3,"Probabilidad",IF(Q16=Tablas!$R$4,"Probabilidad",IF(Q16=Tablas!$R$5,"Impacto",))) -> Probabilidad | T16: Manual | U16: =IF(T16=Tablas!$U$3,"25%",IF(T16=Tablas!$U$4,"15%",)) -> 15% | V16: 0.12 | W16: 80% | X16: 0.096 | Y16: Bajo | Z16: 1. Apropiación y adopción de valores y principios institucionales. 2. Desarrollo del reto de integridad actualizado con la gestión antisobormo. 3. Fortalecimiento del botón "Yo Denuncio". 4. Fortalecimiento de la cultura de integridad y transparencia. | AA16: Se realiza la revisión y actualización de los riesgos identificados por el proceso, así como los controles establecidos y se evidencia ejecución de los mismos por parte de proceso y no se ha identificado materialización de riegos de soborno.
B17: ABSP15 - ADQUISICIÓN DE BIENES, SERVICIOS U OBRAS INVITACIÓN PRIVADA E INVITACIÓN PÚBLICA | C17: Que un tercero nacional o transnacional ofrezca o prometa una dádiva para favorecerlo en la evaluación de la propuesta presentada. | D17: Director de Bienes y Servicios, Jefe Oficina de Compras y/o Gestor, Dirección Jurídica y/o Asesor, Área Técnica y SG-SST. | E17: Funcionarios y/o Contratistas de la universidad de Cundinamarca | F17: Deterioro de la reputación institucional que afecta su capacidad de gobernabilidad. | G17: Deficiencia en las acciones de control implementadas que prevengan actuaciones o comportamientos en contravía de lo dispuesta en del Código Autonómico de la UCundinamarca Generación Siglo XXI. | H17: Muy baja | I17: =IF(H17=Tablas!$D$7,"20%",IF(H17=Tablas!$D$6,"40%",IF(H17=Tablas!$D$5,"60%",IF(H17=Tablas!$D$4,"80%",IF(H17=Tablas!$D$3,"100%"))))) -> 20% | J17: Mayor | K17: =IF(J17=Tablas!$G$10,"20%",IF(J17=Tablas!$H$10,"40%",IF(J17=Tablas!$I$10,"60%",IF(J17=Tablas!$J$10,"80%",IF(J17=Tablas!$K$10,"100%"))))) -> 80% | L17: 0.16 | M17: Medio | N17: Recepción de propuestas y demás información en el desarrollo del proceso por un único canal digital auditable (correo electrónico), que garantiza la disponiblidad, confidencialidad e integridad. Revisión de las evaluaciones realizadas por las áreas responsables. Presentación del proceso de inivitación, ante el Comité de Contratación. | O17: Dirección de Bienes y Servicios Dirección de Sistemas y Tecnología (servicios de TI)Dirección Jurídica Dirección Financiera Área Técnica evaluadora Dirección de Bienes y servicios Jefatura Oficina de Compras y gestor. Comité de Contratación. | P17: Informe de recepcion de propuestas. 'Evaluaciones de requisitos habilitantes (técnica, jurídica y financiera) Evaluación de factores que otorgan puntaje 'Acta de Comité de Contratación. 'ABSF007 - APROBACION DE GARANTIAS 'ABSG004 - GUIA DE ESTUDIOS PREVIOS PARA LA ADQUISICION DE BIENES, SERVICIOS U OBRAS | Q17: Preventivo | R17: =IF(Q17=Tablas!$R$3,"25%",IF(Q17=Tablas!$R$4,"15%",IF(Q17=Tablas!$R$5,"10%",))) -> 25% | S17: =IF(Q17=Tablas!$R$3,"Probabilidad",IF(Q17=Tablas!$R$4,"Probabilidad",IF(Q17=Tablas!$R$5,"Impacto",))) -> Probabilidad | T17: Manual | U17: =IF(T17=Tablas!$U$3,"25%",IF(T17=Tablas!$U$4,"15%",)) -> 15% | V17: 0.12 | W17: 80% | X17: 0.096 | Y17: Bajo | Z17: 1. Apropiación y adopción de valores y principios institucionales. 2. Desarrollo del reto de integridad actualizado con la gestión antisobormo. 3. Fortalecimiento del botón "Yo Denuncio". 4. Fortalecimiento de la cultura de integridad y transparencia. | AA17: Se realiza la revisión y actualización de los riesgos identificados por el proceso, así como los controles establecidos y se evidencia ejecución de los mismos por parte de proceso y no se ha identificado materialización de riegos de soborno.
B18: ABSP15 - ADQUISICIÓN DE BIENES, SERVICIOS U OBRAS INVITACIÓN PRIVADA E INVITACIÓN PÚBLICA | C18: Que el contratista nacional o transnacional seleccionado ofrezca o prometa una dádiva para aprobar las pólizas sin cumplir con lo dispuesto en el Art. 28 de la Resolución 206/2012. | D18: Director jurídico, asesor jurídico, Jefe Oficina de Compras o Gestor de compras. | E18: Funcionarios y/o Contratistas de la universidad de Cundinamarca | F18: Pérdida de la confianza institucional por la desviación de los objetivos estrategicos por el no cumplimiento de las metas del Plan de Desarrollo de la Universidad de Cundinamarca. | G18: Deficiencia en las acciones de control implementadas que prevengan actuaciones o comportamientos en contravía de lo dispuesta en del Código Autonómico de la UCundinamarca Generación Siglo XXI. | H18: Muy baja | I18: =IF(H18=Tablas!$D$7,"20%",IF(H18=Tablas!$D$6,"40%",IF(H18=Tablas!$D$5,"60%",IF(H18=Tablas!$D$4,"80%",IF(H18=Tablas!$D$3,"100%"))))) -> 20% | J18: Mayor | K18: =IF(J18=Tablas!$G$10,"20%",IF(J18=Tablas!$H$10,"40%",IF(J18=Tablas!$I$10,"60%",IF(J18=Tablas!$J$10,"80%",IF(J18=Tablas!$K$10,"100%"))))) -> 80% | L18: 0.16 | M18: Medio | N18: Validación y revisión de las pólizas entregadas por el contratista. | O18: Dirección Jurídica (Funcionamiento e inversión). Dirección de Planeación Institucional (inversión). Dirección de Bienes y Servicios Jefatura Oficina de Compras (Funcionamiento e Inversión). | P18: ABSr097 aprobado. | Q18: Preventivo | R18: =IF(Q18=Tablas!$R$3,"25%",IF(Q18=Tablas!$R$4,"15%",IF(Q18=Tablas!$R$5,"10%",))) -> 25% | S18: =IF(Q18=Tablas!$R$3,"Probabilidad",IF(Q18=Tablas!$R$4,"Probabilidad",IF(Q18=Tablas!$R$5,"Impacto",))) -> Probabilidad | T18: Manual | U18: =IF(T18=Tablas!$U$3,"25%",IF(T18=Tablas!$U$4,"15%",)) -> 15% | V18: 0.12 | W18: 80% | X18: 0.096 | Y18: Bajo | Z18: 1. Apropiación y adopción de valores y principios institucionales. 2. Desarrollo del reto de integridad actualizado con la gestión antisobormo. 3. Fortalecimiento del botón "Yo Denuncio". 4. Fortalecimiento de la cultura de integridad y transparencia. | AA18: Se realiza la revisión y actualización de los riesgos identificados por el proceso, así como los controles establecidos y se evidencia ejecución de los mismos por parte de proceso y no se ha identificado materialización de riegos de soborno.
B19: ABSP01 - ADQUISICIÓN DE BIENES, SERVICIOS U OBRAS CONTRATACIÓN DIRECTA | C19: Que un tercero nacional o transnacional ofrezca o prometa una dádiva para favorecer la estructuración de los estudios previos. | D19: Gestores y/o líderes de procesos | E19: Funcionarios y/o Contratistas de la universidad de Cundinamarca | F19: Pérdida de la confianza institucional por la desviación de los objetivos estrategicos por el no cumplimiento de las metas del Plan de Desarrollo de la Universidad de Cundinamarca. | G19: Deficiencia en las acciones de control implementadas que prevengan actuaciones o comportamientos en contravía de lo dispuesta en del Código Autonómico de la UCundinamarca Generación Siglo XXI. | H19: Muy baja | I19: =IF(H19=Tablas!$D$7,"20%",IF(H19=Tablas!$D$6,"40%",IF(H19=Tablas!$D$5,"60%",IF(H19=Tablas!$D$4,"80%",IF(H19=Tablas!$D$3,"100%"))))) -> 20% | J19: Mayor | K19: =IF(J19=Tablas!$G$10,"20%",IF(J19=Tablas!$H$10,"40%",IF(J19=Tablas!$I$10,"60%",IF(J19=Tablas!$J$10,"80%",IF(J19=Tablas!$K$10,"100%"))))) -> 80% | L19: 0.16 | M19: Medio | N19: Se establecen lineamientos para la elaboración de estudios previos. | O19: Dirección de Bienes y Servicios Dirección de Sistemas y Tecnología (servicios de TI) Dirección Jurídica Dirección Financiera Área Técnica evaluadora Dirección de Bienes y servicios Jefatura Oficina de Compras y gestor. | P19: Informe de recepcion de propuestas. Concepto técnico y económico. Resultado de subsanabilidad. | Q19: Preventivo | R19: =IF(Q19=Tablas!$R$3,"25%",IF(Q19=Tablas!$R$4,"15%",IF(Q19=Tablas!$R$5,"10%",))) -> 25% | S19: =IF(Q19=Tablas!$R$3,"Probabilidad",IF(Q19=Tablas!$R$4,"Probabilidad",IF(Q19=Tablas!$R$5,"Impacto",))) -> Probabilidad | T19: Manual | U19: =IF(T19=Tablas!$U$3,"25%",IF(T19=Tablas!$U$4,"15%",)) -> 15% | V19: 0.12 | W19: 80% | X19: 0.096 | Y19: Bajo | Z19: 1. Apropiación y adopción de valores y principios institucionales. 2. Desarrollo del reto de integridad actualizado con la gestión antisobormo. 3. Fortalecimiento del botón "Yo Denuncio". 4. Fortalecimiento de la cultura de integridad y transparencia. | AA19: Se realiza la revisión y actualización de los riesgos identificados por el proceso, así como los controles establecidos y se evidencia ejecución de los mismos por parte de proceso y no se ha identificado materialización de riegos de soborno.
B20: ABSP01 - ADQUISICIÓN DE BIENES, SERVICIOS U OBRAS CONTRATACIÓN DIRECTA | C20: Que un tercero nacional o transnacional ofrezca o prometa una dádiva para favorecer la estructuración en los términos de la solicitud de cotización. | D20: Director de Bienes y Servicios, Jefe Oficina de Compras y/o Gestor, Dirección Jurídica y/o Asesor. | E20: Funcionarios y/o Contratistas de la universidad de Cundinamarca | F20: Pérdida de la confianza institucional por la desviación de los objetivos estrategicos por el no cumplimiento de las metas del Plan de Desarrollo de la Universidad de Cundinamarca. | G20: Deficiencia en las acciones de control implementadas que prevengan actuaciones o comportamientos en contravía de lo dispuesta en del Código Autonómico de la UCundinamarca Generación Siglo XXI. | H20: Muy baja | I20: =IF(H20=Tablas!$D$7,"20%",IF(H20=Tablas!$D$6,"40%",IF(H20=Tablas!$D$5,"60%",IF(H20=Tablas!$D$4,"80%",IF(H20=Tablas!$D$3,"100%"))))) -> 20% | J20: Mayor | K20: =IF(J20=Tablas!$G$10,"20%",IF(J20=Tablas!$H$10,"40%",IF(J20=Tablas!$I$10,"60%",IF(J20=Tablas!$J$10,"80%",IF(J20=Tablas!$K$10,"100%"))))) -> 80% | L20: 0.16 | M20: Medio | N20: Revisión cooperativa del estudio previo (ABSr097) por medio de la Plataforma Institucional. | O20: Dirección Jurídica | P20: ABSF007 - APROBACION DE GARANTIAS. | Q20: Preventivo | R20: =IF(Q20=Tablas!$R$3,"25%",IF(Q20=Tablas!$R$4,"15%",IF(Q20=Tablas!$R$5,"10%",))) -> 25% | S20: =IF(Q20=Tablas!$R$3,"Probabilidad",IF(Q20=Tablas!$R$4,"Probabilidad",IF(Q20=Tablas!$R$5,"Impacto",))) -> Probabilidad | T20: Manual | U20: =IF(T20=Tablas!$U$3,"25%",IF(T20=Tablas!$U$4,"15%",)) -> 15% | V20: 0.12 | W20: 80% | X20: 0.096 | Y20: Bajo | Z20: 1. Apropiación y adopción de valores y principios institucionales. 2. Desarrollo del reto de integridad actualizado con la gestión antisobormo. 3. Fortalecimiento del botón "Yo Denuncio". 4. Fortalecimiento de la cultura de integridad y transparencia. | AA20: Se realiza la revisión y actualización de los riesgos identificados por el proceso, así como los controles establecidos y se evidencia ejecución de los mismos por parte de proceso y no se ha identificado materialización de riegos de soborno.
B21: ABSP01 - ADQUISICIÓN DE BIENES, SERVICIOS U OBRAS CONTRATACIÓN DIRECTA | C21: Que un tercero nacional o transnacional ofrezca o prometa una dádiva para favorecerlo en la evaluación técnica y económica de la cotización presentada. | D21: Director de Bienes y Servicios, Jefe Oficina de Compras y/o Gestor, Dirección Jurídica y/o Asesor, Área Técnica y SG-SST. | E21: Funcionarios y/o Contratistas de la universidad de Cundinamarca | F21: Pérdida de la confianza institucional por la desviación de los objetivos estrategicos por el no cumplimiento de las metas del Plan de Desarrollo de la Universidad de Cundinamarca. | G21: Deficiencia en las acciones de control implementadas que prevengan actuaciones o comportamientos en contravía de lo dispuesta en del Código Autonómico de la UCundinamarca Generación Siglo XXI. | H21: Muy baja | I21: =IF(H21=Tablas!$D$7,"20%",IF(H21=Tablas!$D$6,"40%",IF(H21=Tablas!$D$5,"60%",IF(H21=Tablas!$D$4,"80%",IF(H21=Tablas!$D$3,"100%"))))) -> 20% | J21: Mayor | K21: =IF(J21=Tablas!$G$10,"20%",IF(J21=Tablas!$H$10,"40%",IF(J21=Tablas!$I$10,"60%",IF(J21=Tablas!$J$10,"80%",IF(J21=Tablas!$K$10,"100%"))))) -> 80% | L21: 0.16 | M21: Medio | N21: Recepción de cotizaciones y demás información en el desarrollo del proceso por un único canal digital auditable (correo electrónico), que garantiza la disponiblidad, confidencialidad e integridad de la información. Revisión de la evaluación técnica y económica realizada por las áreas responsables | O21: Area tecnica Jefatura Oficina de Compras y gestor. | P21: ABSF089-INFORME FINAL O PERIODICO DE SUPERVISION Registro plataforma Integradoc. | Q21: Preventivo | R21: =IF(Q21=Tablas!$R$3,"25%",IF(Q21=Tablas!$R$4,"15%",IF(Q21=Tablas!$R$5,"10%",))) -> 25% | S21: =IF(Q21=Tablas!$R$3,"Probabilidad",IF(Q21=Tablas!$R$4,"Probabilidad",IF(Q21=Tablas!$R$5,"Impacto",))) -> Probabilidad | T21: Manual | U21: =IF(T21=Tablas!$U$3,"25%",IF(T21=Tablas!$U$4,"15%",)) -> 15% | V21: 0.12 | W21: 80% | X21: 0.096 | Y21: Bajo | Z21: 1. Apropiación y adopción de valores y principios institucionales. 2. Desarrollo del reto de integridad actualizado con la gestión antisobormo. 3. Fortalecimiento del botón "Yo Denuncio". 4. Fortalecimiento de la cultura de integridad y transparencia. | AA21: Se realiza la revisión y actualización de los riesgos identificados por el proceso, así como los controles establecidos y se evidencia ejecución de los mismos por parte de proceso y no se ha identificado materialización de riegos de soborno.
B22: ABSP01 - ADQUISICIÓN DE BIENES, SERVICIOS U OBRAS CONTRATACIÓN DIRECTA | C22: Que el contratista nacional o transnacional seleccionado ofrezca o prometa una dádiva para aprobar las pólizas sin cumplir con lo dispuesto en el Art. 28 de la Resolución 206/2012. | D22: Director jurídico, asesor jurídico, Jefe Oficina de Compras o Gestor de compras. | E22: Funcionarios y/o Contratistas de la universidad de Cundinamarca | F22: Pérdida de la confianza institucional por la desviación de los objetivos estrategicos por el no cumplimiento de las metas del Plan de Desarrollo de la Universidad de Cundinamarca. | G22: Deficiencia en las acciones de control implementadas que prevengan actuaciones o comportamientos en contravía de lo dispuesta en del Código Autonómico de la UCundinamarca Generación Siglo XXI. | H22: Muy baja | I22: =IF(H22=Tablas!$D$7,"20%",IF(H22=Tablas!$D$6,"40%",IF(H22=Tablas!$D$5,"60%",IF(H22=Tablas!$D$4,"80%",IF(H22=Tablas!$D$3,"100%"))))) -> 20% | J22: Mayor | K22: =IF(J22=Tablas!$G$10,"20%",IF(J22=Tablas!$H$10,"40%",IF(J22=Tablas!$I$10,"60%",IF(J22=Tablas!$J$10,"80%",IF(J22=Tablas!$K$10,"100%"))))) -> 80% | L22: 0.16 | M22: Medio | N22: Validación y revisión de las pólizas entregadas por el contratista. | O22: Dirección Jurídica. Jefatura Oficina de Compras o gestor de compras. | P22: ABSF007 - APROBACION DE GARANTIAS. | Q22: Preventivo | R22: =IF(Q22=Tablas!$R$3,"25%",IF(Q22=Tablas!$R$4,"15%",IF(Q22=Tablas!$R$5,"10%",))) -> 25% | S22: =IF(Q22=Tablas!$R$3,"Probabilidad",IF(Q22=Tablas!$R$4,"Probabilidad",IF(Q22=Tablas!$R$5,"Impacto",))) -> Probabilidad | T22: Manual | U22: =IF(T22=Tablas!$U$3,"25%",IF(T22=Tablas!$U$4,"15%",)) -> 15% | V22: 0.12 | W22: 80% | X22: 0.096 | Y22: Bajo | Z22: 1. Apropiación y adopción de valores y principios institucionales. 2. Desarrollo del reto de integridad actualizado con la gestión antisobormo. 3. Fortalecimiento del botón "Yo Denuncio". 4. Fortalecimiento de la cultura de integridad y transparencia. | AA22: Se realiza la revisión y actualización de los riesgos identificados por el proceso, así como los controles establecidos y se evidencia ejecución de los mismos por parte de proceso y no se ha identificado materialización de riegos de soborno.
B23: ABSP18-SUPERVISORES E INTERVENTORES | C23: Que un proveedor/contratista nacional o transnacional prometa u ofrezca una dádiva para favorecer el recibo a satisfaccion de un bien y/o servicios que no cumplan con las especificaciones técnicas o cantidades de conformidad con el contrato (aplicaria en los casos de los bienes y/o servicios que no requieren ingreso a almacen). | D23: Supervisor e interventor | E23: Funcionarios y/o Contratistas de la universidad de Cundinamarca | F23: Pérdida de la confianza institucional por la desviación de los objetivos estrategicos por el no cumplimiento de las metas del Plan de Desarrollo de la Universidad de Cundinamarca. | G23: Deficiencia en las acciones de control implementadas que prevengan actuaciones o comportamientos en contravía de lo dispuesta en del Código Autonómico de la UCundinamarca Generación Siglo XXI. | H23: Muy baja | I23: =IF(H23=Tablas!$D$7,"20%",IF(H23=Tablas!$D$6,"40%",IF(H23=Tablas!$D$5,"60%",IF(H23=Tablas!$D$4,"80%",IF(H23=Tablas!$D$3,"100%"))))) -> 20% | J23: Mayor | K23: =IF(J23=Tablas!$G$10,"20%",IF(J23=Tablas!$H$10,"40%",IF(J23=Tablas!$I$10,"60%",IF(J23=Tablas!$J$10,"80%",IF(J23=Tablas!$K$10,"100%"))))) -> 80% | L23: 0.16 | M23: Medio | N23: Informe de supervision donde se evidencia el desarrollo de la ejecucion del contrato. Notificacion del contrato al superior jerarquico del supervisor. | O23: Supervisor del contrato. Oficina de compras (Estructura modelo de informe y verifica el expediente final). | P23: ABSF089-INFORME FINAL O PERIODICO DE SUPERVISION. Registro plataforma Integradoc. | Q23: Preventivo | R23: =IF(Q23=Tablas!$R$3,"25%",IF(Q23=Tablas!$R$4,"15%",IF(Q23=Tablas!$R$5,"10%",))) -> 25% | S23: =IF(Q23=Tablas!$R$3,"Probabilidad",IF(Q23=Tablas!$R$4,"Probabilidad",IF(Q23=Tablas!$R$5,"Impacto",))) -> Probabilidad | T23: Manual | U23: =IF(T23=Tablas!$U$3,"25%",IF(T23=Tablas!$U$4,"15%",)) -> 15% | V23: 0.12 | W23: 80% | X23: 0.096 | Y23: Bajo | Z23: 1. Apropiación y adopción de valores y principios institucionales. 2. Desarrollo del reto de integridad actualizado con la gestión antisobormo. 3. Fortalecimiento del botón "Yo Denuncio". 4. Fortalecimiento de la cultura de integridad y transparencia. | AA23: Se realiza la revisión y actualización de los riesgos identificados por el proceso, así como los controles establecidos y se evidencia ejecución de los mismos por parte de proceso y no se ha identificado materialización de riegos de soborno.
B24: ABSP10- ADMINISTRACIÓN Y MANTENIMIENTO DEL PARQUE AUTOMOTOR | C24: Que un funcionario o tercero externo ofrezca, prometa o entregue una dávida para incluir supuestos daños y reparaciones a los vehículos enviados a mantenimiento preventivo y/o correctivo. | D24: Operario y conductor de los vehículos | E24: Funcionarios y/o Contratistas de la universidad de Cundinamarca | F24: Pérdida de la confianza institucional por la desviación de los objetivos estrategicos por el no cumplimiento de las metas del Plan de Desarrollo de la Universidad de Cundinamarca. | G24: Deficiencia en las acciones de control implementadas que prevengan actuaciones o comportamientos en contravía de lo dispuesta en del Código Autonómico de la UCundinamarca Generación Siglo XXI. | H24: Muy baja | I24: =IF(H24=Tablas!$D$7,"20%",IF(H24=Tablas!$D$6,"40%",IF(H24=Tablas!$D$5,"60%",IF(H24=Tablas!$D$4,"80%",IF(H24=Tablas!$D$3,"100%"))))) -> 20% | J24: Mayor | K24: =IF(J24=Tablas!$G$10,"20%",IF(J24=Tablas!$H$10,"40%",IF(J24=Tablas!$I$10,"60%",IF(J24=Tablas!$J$10,"80%",IF(J24=Tablas!$K$10,"100%"))))) -> 80% | L24: 0.16 | M24: Medio | N24: Diligenciamiento del formato de solicitud de mantenimiento. Inspección preoperacional previa puesta en marcha del vehiculo. | O24: Oficina de recursos físicos | P24: SOLICITUD DE MANTENIMIENTO PARA VEHICULOS AUTOMOTORES Y/O MAQUINARIA Formulario Forms - Reporte de la inspección preoperacional | Q24: Preventivo | R24: =IF(Q24=Tablas!$R$3,"25%",IF(Q24=Tablas!$R$4,"15%",IF(Q24=Tablas!$R$5,"10%",))) -> 25% | S24: =IF(Q24=Tablas!$R$3,"Probabilidad",IF(Q24=Tablas!$R$4,"Probabilidad",IF(Q24=Tablas!$R$5,"Impacto",))) -> Probabilidad | T24: Manual | U24: =IF(T24=Tablas!$U$3,"25%",IF(T24=Tablas!$U$4,"15%",)) -> 15% | V24: 0.12 | W24: 80% | X24: 0.096 | Y24: Bajo | Z24: 1. Apropiación y adopción de valores y principios institucionales. 2. Desarrollo del reto de integridad actualizado con la gestión antisobormo. 3. Fortalecimiento del botón "Yo Denuncio". 4. Fortalecimiento de la cultura de integridad y transparencia. | AA24: Se realiza la revisión y actualización de los riesgos identificados por el proceso, así como los controles establecidos y se evidencia ejecución de los mismos por parte de proceso y no se ha identificado materialización de riegos de soborno.
B25: ABSP10- ADMINISTRACIÓN Y MANTENIMIENTO DEL PARQUE AUTOMOTOR 'ABSG001 - PLAN ESTRATEGICO DE SEGURIDAD VIAL. | C25: Que un conductor ofreza o prometa una dádiva para que se altere el resultado de las pruebas de alcoholemia realizadas antes de iniciar labores, o para que no se les practique la misma. | D25: Proveedor de aplicación de pruebas de alcoholemia Cordinador del Sistema de Gestión de Seguridad y Salud en el Trabajo - SST | E25: Funcionarios y/o Contratistas de la universidad de Cundinamarca | F25: Pérdida de la confianza institucional por la desviación de los objetivos estrategicos por el no cumplimiento de las metas del Plan de Desarrollo de la Universidad de Cundinamarca. | G25: Deficiencia en las acciones de control implementadas que prevengan actuaciones o comportamientos en contravía de lo dispuesta en del Código Autonómico de la UCundinamarca Generación Siglo XXI. | H25: Muy baja | I25: =IF(H25=Tablas!$D$7,"20%",IF(H25=Tablas!$D$6,"40%",IF(H25=Tablas!$D$5,"60%",IF(H25=Tablas!$D$4,"80%",IF(H25=Tablas!$D$3,"100%"))))) -> 20% | J25: Mayor | K25: =IF(J25=Tablas!$G$10,"20%",IF(J25=Tablas!$H$10,"40%",IF(J25=Tablas!$I$10,"60%",IF(J25=Tablas!$J$10,"80%",IF(J25=Tablas!$K$10,"100%"))))) -> 80% | L25: 0.16 | M25: Medio | N25: En la implementación del Plan Estratégico de Seguridad Vial, se establece la prohibición de conducir bajo los efectos del alcohol. Programa de Cero Tolerancia a la conducción bajo efectos del Alcohol y Sustancias Psicoactivas.(practicas de pruebas de alcoholemia). Reporte de los resultados de las pruebas de alcoholemia (SG - SST) | O25: Oficina de recursos físicos Sistema de Gestión de Seguridad y Salud en el Trabajo - SST | P25: ABSG001 - PLAN ESTRATEGICO DE SEGURIDAD VIAL. Resultados por plataforma del proveedor que realiza las pruebas de alcoholemia. Reporte de resultados. (SG- SST) | Q25: Preventivo | R25: =IF(Q25=Tablas!$R$3,"25%",IF(Q25=Tablas!$R$4,"15%",IF(Q25=Tablas!$R$5,"10%",))) -> 25% | S25: =IF(Q25=Tablas!$R$3,"Probabilidad",IF(Q25=Tablas!$R$4,"Probabilidad",IF(Q25=Tablas!$R$5,"Impacto",))) -> Probabilidad | T25: Manual | U25: =IF(T25=Tablas!$U$3,"25%",IF(T25=Tablas!$U$4,"15%",)) -> 15% | V25: 0.12 | W25: 80% | X25: 0.096 | Y25: Bajo | Z25: 1. Apropiación y adopción de valores y principios institucionales. 2. Desarrollo del reto de integridad actualizado con la gestión antisobormo. 3. Fortalecimiento del botón "Yo Denuncio". 4. Fortalecimiento de la cultura de integridad y transparencia. | AA25: Se realiza la revisión y actualización de los riesgos identificados por el proceso, así como los controles establecidos y se evidencia ejecución de los mismos por parte de proceso y no se ha identificado materialización de riegos de soborno.
B26: ABSP10- ADMINISTRACIÓN Y MANTENIMIENTO DEL PARQUE AUTOMOTOR | C26: Posible afectación económica y reputacional por la perdida o uso inadecuado del combustible y/o repuestos de vehículos asignados para los vehículos oficiales de la Universidad de Cundinamarca | D26: Funcionarios de la Universidad de Cundinamarca o Terceros | E26: Operarios de vehículos | F26: 1. Deterioro de la reputación institucional que afecta su capacidad de gobernabilidad. 2. Detrimento patrimonial que reduce la capacidad para el cumplimiento de metas físicas. | G26: Deficiencia en las acciones de control implementadas que prevengan actuaciones o comportamientos en contravía de lo dispuesta en del Código Autonómico de la UCundinamarca Generación Siglo XXI. | H26: Baja | I26: =IF(H26=Tablas!$D$7,"20%",IF(H26=Tablas!$D$6,"40%",IF(H26=Tablas!$D$5,"60%",IF(H26=Tablas!$D$4,"80%",IF(H26=Tablas!$D$3,"100%"))))) -> 40% | J26: Mayor | K26: =IF(J26=Tablas!$G$10,"20%",IF(J26=Tablas!$H$10,"40%",IF(J26=Tablas!$I$10,"60%",IF(J26=Tablas!$J$10,"80%",IF(J26=Tablas!$K$10,"100%"))))) -> 80% | L26: 0.32 | M26: Alto | N26: Suscripción contrato de suministro de combustible a través de la tienda virtual del Estado Colombiano "Colombia Compra Eficiente". (depende de los acuerdos marco de la vigencia). Uso de chip para suministro de combustible. | O26: Jefe de Recursos Físicos y Servicios Generales o su delegado. (Sede) Director de Unidad Regional o su delegado. (Seccionales, extensiones) | P26: Boucher de tanqueo con el número de placa del vehículo - historico de tanqueo por chip, verificando la fecha y hora del consumo de combustible. Firma de la orden de compra, para combustible. | Q26: Preventivo | R26: =IF(Q26=Tablas!$R$3,"25%",IF(Q26=Tablas!$R$4,"15%",IF(Q26=Tablas!$R$5,"10%",))) -> 25% | S26: =IF(Q26=Tablas!$R$3,"Probabilidad",IF(Q26=Tablas!$R$4,"Probabilidad",IF(Q26=Tablas!$R$5,"Impacto",))) -> Probabilidad | T26: Manual | U26: =IF(T26=Tablas!$U$3,"25%",IF(T26=Tablas!$U$4,"15%",)) -> 15% | V26: 0.24 | W26: 80% | X26: 0.192 | Y26: Medio | Z26: 1. Apropiación y adopción de valores y principios institucionales. 2. Desarrollo del reto de integridad actualizado con la gestión antisobormo. 3. Fortalecimiento del botón "Yo Denuncio". 4. Fortalecimiento de la cultura de integridad y transparencia. | AA26: Se realiza la revisión y actualización de los riesgos identificados por el proceso, así como los controles establecidos y se evidencia ejecución de los mismos por parte de proceso y no se ha identificado materialización de riegos de soborno.
B27: ABSP10- ADMINISTRACIÓN Y MANTENIMIENTO DEL PARQUE AUTOMOTOR | C27: Que un funcionario o tercero externo ofrezca, prometa o entregue una dávida para incluir supuestos daños y reparaciones a los vehículos enviados a mantenimiento preventivo y/o correctivo. | D27: Contratista servicio de mantenimiento parque automotor. | E27: Operarios de vehículos y gestor encargado de la administración del parque automotor. | F27: 1. Deterioro de la reputación institucional que afecta su capacidad de gobernabilidad. 2. Detrimento patrimonial que reduce la capacidad para el cumplimiento de metas físicas. | G27: Deficiencia en las acciones de control implementadas que prevengan actuaciones o comportamientos en contravía de lo dispuesta en del Código Autonómico de la UCundinamarca Generación Siglo XXI. | H27: Baja | I27: =IF(H27=Tablas!$D$7,"20%",IF(H27=Tablas!$D$6,"40%",IF(H27=Tablas!$D$5,"60%",IF(H27=Tablas!$D$4,"80%",IF(H27=Tablas!$D$3,"100%"))))) -> 40% | J27: Mayor | K27: =IF(J27=Tablas!$G$10,"20%",IF(J27=Tablas!$H$10,"40%",IF(J27=Tablas!$I$10,"60%",IF(J27=Tablas!$J$10,"80%",IF(J27=Tablas!$K$10,"100%"))))) -> 80% | L27: 0.32 | M27: Alto | N27: Antes de cada uso, el operario debe realizar una inspección preoperacional del vehículo, verificando frenos, luces, niveles de fluidos y estado de las llantas. Cualquier anomalía detectada debe reportarse inmediatamente en el formulario de inspección preoperacional. El jefe de recursos físicos o su delegado realizará un seguimiento diario de estos reportes y, en caso de identificar alguna irregularidad, ordenará el traslado del vehículo al taller para su diagnóstico y reparación. Para solicitar este servicio, el operario deberá completar el formato ABSF119 – SOLICITUD DE MANTENIMIENTO PARA VEHICULOS AUTOMOTORES Y/O MAQUINARIA, el cual deberá ser aprobado por el gestor y el jefe de Recursos Físicos y Servicios Generales. | O27: Jefe de Recursos Físicos y Servicios Generales o su delegado. (Sede) Director de Unidad Regional o su delegado. (Seccionales, extensiones) | P27: Solicitud de mantenimiento para vehiculos automotores y/o maquinaria. Bitacora seguimiento inspecciones preoperacionales. Formulario Forms - Reporte de la inspección preoperacional. | Q27: Preventivo | R27: =IF(Q27=Tablas!$R$3,"25%",IF(Q27=Tablas!$R$4,"15%",IF(Q27=Tablas!$R$5,"10%",))) -> 25% | S27: =IF(Q27=Tablas!$R$3,"Probabilidad",IF(Q27=Tablas!$R$4,"Probabilidad",IF(Q27=Tablas!$R$5,"Impacto",))) -> Probabilidad | T27: Manual | U27: =IF(T27=Tablas!$U$3,"25%",IF(T27=Tablas!$U$4,"15%",)) -> 15% | V27: 0.24 | W27: 80% | X27: 0.192 | Y27: Medio | Z27: 1. Apropiación y adopción de valores y principios institucionales. 2. Desarrollo del reto de integridad actualizado con la gestión antisobormo. 3. Fortalecimiento del botón "Yo Denuncio". 4. Fortalecimiento de la cultura de integridad y transparencia. | AA27: Se realiza la revisión y actualización de los riesgos identificados por el proceso, así como los controles establecidos y se evidencia ejecución de los mismos por parte de proceso y no se ha identificado materialización de riegos de soborno.
B28: ABSP09 - MANTENIMIENTO PLANTA FISICA | C28: Posible favorecimiento a terceros en la adquisición de bienes y servicios relacionados con el mantenimiento de la planta física de la Universidad. | D28: Terceros | E28: Jefe de Recursos Físicos y Servicios Generales. Director de Unidad Regional. Funcionarios de Recursos Físicos y Servicios Generales. | F28: Reducción de la capacidad institucional para responder a las necesidades de la población en los relacionado con el acceso a la educación pública. | G28: Deficiencia en las acciones de control implementadas que prevengan actuaciones o comportamientos en contravía de lo dispuesta en del Código Autonómico de la UCundinamarca Generación Siglo XXI. | H28: Baja | I28: =IF(H28=Tablas!$D$7,"20%",IF(H28=Tablas!$D$6,"40%",IF(H28=Tablas!$D$5,"60%",IF(H28=Tablas!$D$4,"80%",IF(H28=Tablas!$D$3,"100%"))))) -> 40% | J28: Mayor | K28: =IF(J28=Tablas!$G$10,"20%",IF(J28=Tablas!$H$10,"40%",IF(J28=Tablas!$I$10,"60%",IF(J28=Tablas!$J$10,"80%",IF(J28=Tablas!$K$10,"100%"))))) -> 80% | L28: 0.32 | M28: Alto | N28: Al iniciar la vigencia académica, el Jefe de Recursos Físicos y Servicios Generales, el Director Regional, o sus delegados, documentan la inspección de la planta física en el formato (ABSr080). A partir de esta inspección, se proyecta el cronograma de mantenimiento (ABSr097), donde se planifican las necesidades identificadas, incluyendo las actividades que requieren servicios tercerizados, los cuales son supervisados mediante los correspondientes Informes de Supervisión para Servicios Contratados. | O28: Jefe de Recursos Físicos y Servicios Generales o su delegado. (Sede) Director de Unidad Regional o su delegado. (Seccionales, extensiones) | P28: ABSr097-Cronograma de la Planta Física. Informes de supervisión servicios de mantenimiento contratados. | Q28: Preventivo | R28: =IF(Q28=Tablas!$R$3,"25%",IF(Q28=Tablas!$R$4,"15%",IF(Q28=Tablas!$R$5,"10%",))) -> 25% | S28: =IF(Q28=Tablas!$R$3,"Probabilidad",IF(Q28=Tablas!$R$4,"Probabilidad",IF(Q28=Tablas!$R$5,"Impacto",))) -> Probabilidad | T28: Manual | U28: =IF(T28=Tablas!$U$3,"25%",IF(T28=Tablas!$U$4,"15%",)) -> 15% | V28: 0.24 | W28: 80% | X28: 0.192 | Y28: Medio | Z28: 1. Apropiación y adopción de valores y principios institucionales. 2. Desarrollo del reto de integridad actualizado con la gestión antisobormo. 3. Fortalecimiento del botón "Yo Denuncio". 4. Fortalecimiento de la cultura de integridad y transparencia.
B30: 13- 46.18
B32: Diagonal 18 No. 20-29 Fusagasugá – Cundinamarca Teléfono (601) 8281483 Línea Gratuita 018000180414 www.ucundinamarca.edu.co E-mail: info@ucundinamarca.edu.co NIT: 890.680.062-2
B34: Documento controlado por el Sistema de Gestión de la Calidad Asegúrese que corresponde a la última versión consultando el Portal Institucional

Sheet 19
D2: MACROPROCESO ESTRATÉGICO | Z2: CÓDIGO: ESG-ESG-GAS-r003
D3: PROCESO GESTIÓN DE SISTEMAS INTEGRADOS | Z3: VERSIÓN: 2
D4: GESTIÓN DEL RIESGO SISTEMA DE GESTIÓN ANTISOBORNO | Z4: VIGENCIA: 2024-08-09
Z5: PÁGINA: 3 de 29
B7: 13.
C8: Proceso responsable: | D8: =Contenido!F30 -> Documental | G8: Objetivo del Proceso: | H8: Contribuir a un Gobierno Digital Universitario mediante la administración de los documentos de la Universidad de Cundinamarca, desde su inicio hasta su disposición final, a través de las tablas de retención, valoración documental e inventarios documentales, ejecutando acciones para mantener actualizados los archivos de gestión, central e histórico. | Z8: Fecha de actualización: | AA8: =Contenido!G10 -> 9 de agosto de 2024.
B10: Procedimiento Asociado | C10: Posibles hechos de soborno (Descripción del riesgo) | D10: Rol del sobornador | E10: Organizaciones externas, funciones o cargos expuestos al hecho de soborno | F10: Riesgos de soborno (Efecto de la incertidumbre sobre los objetivos estratégicos) | G10: Riesgos de soborno (Efecto de la incertidumbre sobre los objetivos del SGAS) | H10: Probabilidad del riesgo inherente | J10: Impacto del riesgo inherente | L10: Nivel de riesgo inherente | M10: Valoración del nivel de riesgo inherente | N10: Controles actuales existentes | O10: Responsable del control | P10: Documentación | Q10: Control | T10: Implementación | V10: Probabilidad del riesgo residual | W10: Impacto del riesgo residual | X10: Nivel de riesgo residual | Y10: Valoración del nivel de riesgo residual | Z10: Controles adicionales requeridos | AA10: Observaciones 2a. Línea (Oficial Antisoborno) | AB10: Observaciones 3a. Línea (Dirección Control Interno)
H11: Probabilidad | I11: % | J11: Impacto | K11: % | Q11: Tipo | R11: % Peso | S11: Afectación | T11: Tipo | U11: % Peso
B12: ADOP04 - RECEPCION, ORGANIZACIÓN Y ALMACENAMIENTO DE LOS DOCUMENTOS EN EL ARCHIVO CENTRAL | C12: Que un Funcionario prometa u ofrezca una dádiva para entregar un acervo documental diferente al relacionado en el FUID. | D12: Funcionario UCundinamarca / Gestor Documental del Proceso | E12: Gestor responsable de recibir la transferencia | F12: Debilitamiento de la cultura de la UCundinamarca hacia el logro de las metas planteadas | G12: Debilidades en la comprensión de los lineamientos establecidos del sistema de gestión antisoborno por parte del personal administrativo y académico de la universidad. | H12: Media | I12: =IF(H12=Tablas!$D$7,"20%",IF(H12=Tablas!$D$6,"40%",IF(H12=Tablas!$D$5,"60%",IF(H12=Tablas!$D$4,"80%",IF(H12=Tablas!$D$3,"100%"))))) -> 60% | J12: Moderado | K12: =IF(J12=Tablas!$G$10,"20%",IF(J12=Tablas!$H$10,"40%",IF(J12=Tablas!$I$10,"60%",IF(J12=Tablas!$J$10,"80%",IF(J12=Tablas!$K$10,"100%"))))) -> 60% | L12: =I12*K12 -> 0.36 | M12: =IF(L12<=12%,"Bajo",IF(L12<=24%,"Medio",IF(L12<=40%,"Alto","Muy Alto"))) -> Alto | N12: Verificación Formato FUID vs documentos entregados. Formato de inventario documental diligienciado por parte del gestor documental del archivo de gestión. Verificación del gestor del archivo central. | O12: Jefatura de archivo y correspondencia | P12: ADOF021 - INVENTARIO UNICO DOCUMENTAL | Q12: Preventivo | R12: =IF(Q12=Tablas!$R$3,"25%",IF(Q12=Tablas!$R$4,"15%",IF(Q12=Tablas!$R$5,"10%",))) -> 25% | S12: =IF(Q12=Tablas!$R$3,"Probabilidad",IF(Q12=Tablas!$R$4,"Probabilidad",IF(Q12=Tablas!$R$5,"Impacto",))) -> Probabilidad | T12: Manual | U12: =IF(T12=Tablas!$U$3,"25%",IF(T12=Tablas!$U$4,"15%",)) -> 15% | V12: =I12-(I12*(R12+U12)) -> 0.36 | W12: =K12 -> 60% | X12: =V12*W12 -> 0.216 | Y12: =IF(X12<=12%,"Bajo",IF(X12<=24%,"Medio",IF(X12<=40%,"Alto","Muy Alto"))) -> Medio | Z12: 1. Apropiación y adopción de valores y principios institucionales. 2. Desarrollo del reto de integridad actualizado con la gestión antisobormo. 3. Fortalecimiento del botón "Yo Denuncio". 4. Fortalecimiento de la cultura de integridad y transparencia. | AA12: Se realiza la revisión y actualización de los riesgos identificados por el proceso, así como los controles establecidos y se evidencia ejecución de los mismos por parte de proceso y no se ha identificado materialización de riegos de soborno.
B13: ADOP04 - RECEPCION, ORGANIZACIÓN Y ALMACENAMIENTO DE LOS DOCUMENTOS EN EL ARCHIVO CENTRAL | C13: Que un tercero interno / externo ofrezca una dádiva para obtener información de una dependencia o un funcionario de la UCundinamarca. | D13: Funcionario del Archivo de la Ucundinamarca | E13: Gestor de la Jefatura de Archivo y Correspondencia | F13: Deterioro de la reputación institucional que afecta su capacidad de gestión. | G13: Debilidades en la comprensión de los lineamientos establecidos del sistema de gestión antisoborno por parte del personal administrativo y académico de la universidad. | H13: Muy baja | I13: =IF(H13=Tablas!$D$7,"20%",IF(H13=Tablas!$D$6,"40%",IF(H13=Tablas!$D$5,"60%",IF(H13=Tablas!$D$4,"80%",IF(H13=Tablas!$D$3,"100%"))))) -> 20% | J13: Catastrófico | K13: =IF(J13=Tablas!$G$10,"20%",IF(J13=Tablas!$H$10,"40%",IF(J13=Tablas!$I$10,"60%",IF(J13=Tablas!$J$10,"80%",IF(J13=Tablas!$K$10,"100%"))))) -> 100% | L13: =I13*K13 -> 0.2 | M13: =IF(L13<=12%,"Bajo",IF(L13<=24%,"Medio",IF(L13<=40%,"Alto","Muy Alto"))) -> Medio | N13: Solicitudes de información por medio de correo electrónico. Digitalización de la Información en el aplicativo Sharepoint el cual se configuran los permisos y accesos limitados. | O13: Jefatura de archivo y correspondencia | P13: Correos electrónicos. | Q13: Correctivo | R13: =IF(Q13=Tablas!$R$3,"25%",IF(Q13=Tablas!$R$4,"15%",IF(Q13=Tablas!$R$5,"10%",))) -> 10% | S13: =IF(Q13=Tablas!$R$3,"Probabilidad",IF(Q13=Tablas!$R$4,"Probabilidad",IF(Q13=Tablas!$R$5,"Impacto",))) -> Impacto | T13: Manual | U13: =IF(T13=Tablas!$U$3,"25%",IF(T13=Tablas!$U$4,"15%",)) -> 15% | V13: =I13-(I13*(R13+U13)) -> 0.15 | W13: =K13 -> 100% | X13: =V13*W13 -> 0.15 | Y13: =IF(X13<=12%,"Bajo",IF(X13<=24%,"Medio",IF(X13<=40%,"Alto","Muy Alto"))) -> Medio | Z13: 1. Apropiación y adopción de valores y principios institucionales. 2. Desarrollo del reto de integridad actualizado con la gestión antisobormo. 3. Fortalecimiento del botón "Yo Denuncio". 4. Fortalecimiento de la cultura de integridad y transparencia. | AA13: Se realiza la revisión y actualización de los riesgos identificados por el proceso, así como los controles establecidos y se evidencia ejecución de los mismos por parte de proceso y no se ha identificado materialización de riegos de soborno.
B14: ADOP07 - CONSULTA Y PRESTAMO DE DOCUMENTOS | C14: Que un Funcionario prometa u ofrezca una dádiva para alterar, sustraer, hurtar o manipular archivos físicos del acervo documental prestado. | D14: Funcionario designado de archivos de gestión | E14: Gestor de la Jefatura de Archivo y Correspondencia | F14: Deterioro de la reputación institucional que afecta su capacidad de gestión. | G14: Debilidades en la comprensión de los lineamientos establecidos del sistema de gestión antisoborno por parte del personal administrativo y académico de la universidad. | H14: Muy baja | I14: =IF(H14=Tablas!$D$7,"20%",IF(H14=Tablas!$D$6,"40%",IF(H14=Tablas!$D$5,"60%",IF(H14=Tablas!$D$4,"80%",IF(H14=Tablas!$D$3,"100%"))))) -> 20% | J14: Mayor | K14: =IF(J14=Tablas!$G$10,"20%",IF(J14=Tablas!$H$10,"40%",IF(J14=Tablas!$I$10,"60%",IF(J14=Tablas!$J$10,"80%",IF(J14=Tablas!$K$10,"100%"))))) -> 80% | L14: 0.16 | M14: Medio | N14: Solicitudes de información por medio de correo electrónico. Digitalización de la Información en el aplicativo Sharepoint el cual se configuran los permisos y accesos limitados. Solicitud de prestamo de documentos por medio del formato ADOF027. | O14: Jefatura de archivo y correspondencia | P14: Correos electrónicos. ADOF027 - FICHA SOLICITUD CONSULTA Y PRESTAMO DE DOCUMENTOS. | Q14: Correctivo | R14: =IF(Q14=Tablas!$R$3,"25%",IF(Q14=Tablas!$R$4,"15%",IF(Q14=Tablas!$R$5,"10%",))) -> 10% | S14: =IF(Q14=Tablas!$R$3,"Probabilidad",IF(Q14=Tablas!$R$4,"Probabilidad",IF(Q14=Tablas!$R$5,"Impacto",))) -> Impacto | T14: Manual | U14: =IF(T14=Tablas!$U$3,"25%",IF(T14=Tablas!$U$4,"15%",)) -> 15% | V14: 0.15 | W14: 80% | X14: 0.12 | Y14: =IF(X14<=12%,"Bajo",IF(X14<=24%,"Medio",IF(X14<=40%,"Alto","Muy Alto"))) -> Bajo | Z14: 1. Apropiación y adopción de valores y principios institucionales. 2. Desarrollo del reto de integridad actualizado con la gestión antisobormo. 3. Fortalecimiento del botón "Yo Denuncio". 4. Fortalecimiento de la cultura de integridad y transparencia. | AA14: Se realiza la revisión y actualización de los riesgos identificados por el proceso, así como los controles establecidos y se evidencia ejecución de los mismos por parte de proceso y no se ha identificado materialización de riegos de soborno.
B16: 13- 46.18
B18: Diagonal 18 No. 20-29 Fusagasugá – Cundinamarca Teléfono (601) 8281483 Línea Gratuita 018000180414 www.ucundinamarca.edu.co E-mail: info@ucundinamarca.edu.co NIT: 890.680.062-2
B20: Documento controlado por el Sistema de Gestión de la Calidad Asegúrese que corresponde a la última versión consultando el Portal Institucional

Sheet 20
D2: MACROPROCESO ESTRATÉGICO | Z2: CÓDIGO: ESG-ESG-GAS-r003
D3: PROCESO GESTIÓN DE SISTEMAS INTEGRADOS | Z3: VERSIÓN: 2
D4: GESTIÓN DEL RIESGO SISTEMA DE GESTIÓN ANTISOBORNO | Z4: VIGENCIA: 2024-08-09
Z5: PÁGINA: 4 de 29
B7: 13.
C8: Proceso responsable: | D8: =Contenido!F31 -> Financiera | G8: Objetivo del Proceso: | H8: Administrar eficientemente los recursos financieros desde la perspectiva de la autonomía universitaria para el cumplimiento de los objetivos misionales. | Z8: Fecha de actualización: | AA8: =Contenido!G10 -> 9 de agosto de 2024.
B10: Procedimiento Asociado | C10: Posibles hechos de soborno (Descripción del riesgo) | D10: Rol del sobornador | E10: Organizaciones externas, funciones o cargos expuestos al hecho de soborno | F10: Riesgos de soborno (Efecto de la incertidumbre sobre los objetivos estratégicos) | G10: Riesgos de soborno (Efecto de la incertidumbre sobre los objetivos del SGAS) | H10: Probabilidad del riesgo inherente | J10: Impacto del riesgo inherente | L10: Nivel de riesgo inherente | M10: Valoración del nivel de riesgo inherente | N10: Controles actuales existentes | O10: Responsable del control | P10: Documentación | Q10: Control | T10: Implementación | V10: Probabilidad del riesgo residual | W10: Impacto del riesgo residual | X10: Nivel de riesgo residual | Y10: Valoración del nivel de riesgo residual | Z10: Controles adicionales requeridos | AA10: Observaciones 2a. Línea (Oficial Antisoborno) | AB10: Observaciones 3a. Línea (Dirección Control Interno)
H11: Probabilidad | I11: % | J11: Impacto | K11: % | Q11: Tipo | R11: % Peso | S11: Afectación | T11: Tipo | U11: % Peso
B12: AFIP01 - EXPEDICIÓN CERTIFICADO DE DISPONIBILIDAD PRESUPUESTAL Y REGISTRO PRESUPUESTAL | C12: Que un Funcionario ofrezca una dádiva o contraprestación para que se expida el Certificado de Disponibilidad y/o Registro Presupuestal sin el lleno de requisitos. | D12: Jefe de Presupuesto | E12: Contrarista, Tercero. | F12: Deterioro de la reputación institucional que afecta su gobernanza | G12: Deficiencia en las acciones de control implementadas que prevengan actuaciones o comportamientos en contravía de lo dispuesta en del Código Autonómico de la UCundinamarca Generación Siglo XXI. | H12: Muy baja | I12: =IF(H12=Tablas!$D$7,"20%",IF(H12=Tablas!$D$6,"40%",IF(H12=Tablas!$D$5,"60%",IF(H12=Tablas!$D$4,"80%",IF(H12=Tablas!$D$3,"100%"))))) -> 20% | J12: Catastrófico | K12: =IF(J12=Tablas!$G$10,"20%",IF(J12=Tablas!$H$10,"40%",IF(J12=Tablas!$I$10,"60%",IF(J12=Tablas!$J$10,"80%",IF(J12=Tablas!$K$10,"100%"))))) -> 100% | L12: =I12*K12 -> 0.2 | M12: =IF(L12<=12%,"Bajo",IF(L12<=24%,"Medio",IF(L12<=40%,"Alto","Muy Alto"))) -> Medio | N12: Revisión del acervo documental del proceso en curso en el Aplicativo INTEGRADOC. La solicitud de CDP cuenta con el aval de la Vicerrectoría Administrativa y Financiera y el ordenador del gasto. | O12: Jefatura de Presupuesto | P12: Reporte de Integradoc del AFIP01CDP | Q12: Preventivo | R12: =IF(Q12=Tablas!$R$3,"25%",IF(Q12=Tablas!$R$4,"15%",IF(Q12=Tablas!$R$5,"10%",))) -> 25% | S12: =IF(Q12=Tablas!$R$3,"Probabilidad",IF(Q12=Tablas!$R$4,"Probabilidad",IF(Q12=Tablas!$R$5,"Impacto",))) -> Probabilidad | T12: Manual | U12: =IF(T12=Tablas!$U$3,"25%",IF(T12=Tablas!$U$4,"15%",)) -> 15% | V12: =I12-(I12*(R12+U12)) -> 0.12 | W12: =K12 -> 100% | X12: =V12*W12 -> 0.12 | Y12: =IF(X12<=12%,"Bajo",IF(X12<=24%,"Medio",IF(X12<=40%,"Alto","Muy Alto"))) -> Bajo | Z12: Reporte de Integradoc del AFIP01CDP | AA12: Se realiza la revisión y actualización de los riesgos identificados por el proceso, así como los controles establecidos pendiente evidencia ejecución de los mismos por parte de proceso adicional a ello no se ha identificado materialización de riegos de soborno
B13: AFIP39 - TRASLADOS PRESUPUESTALES | C13: Que un Funcionario ofrezca una dádiva o contraprestación para que se constituya una reserva sin el lleno de requisitos. | D13: Jefe de Presupuesto | E13: Contrarista, Tercero. | F13: Perdida de recursos y deterioro de la imagen institucional que afecta la gestion y gobernanza. | G13: Deficiencia en las acciones de control implementadas que prevengan actuaciones o comportamientos en contravía de lo dispuesta en del Código Autonómico de la UCundinamarca Generación Siglo XXI. | H13: Muy baja | I13: =IF(H13=Tablas!$D$7,"20%",IF(H13=Tablas!$D$6,"40%",IF(H13=Tablas!$D$5,"60%",IF(H13=Tablas!$D$4,"80%",IF(H13=Tablas!$D$3,"100%"))))) -> 20% | J13: Catastrófico | K13: =IF(J13=Tablas!$G$10,"20%",IF(J13=Tablas!$H$10,"40%",IF(J13=Tablas!$I$10,"60%",IF(J13=Tablas!$J$10,"80%",IF(J13=Tablas!$K$10,"100%"))))) -> 100% | L13: =I13*K13 -> 0.2 | M13: =IF(L13<=12%,"Bajo",IF(L13<=24%,"Medio",IF(L13<=40%,"Alto","Muy Alto"))) -> Medio | N13: Las solicitudes de traslados deben estar firmadas por los resposables de las áreas con recursos a cargo para la aprobación en el COUNFIS. Revisión y visto bueno del proyecto de resolución de traslados. Reportes a entes de control. | O13: Jefatura de Presupuesto | P13: Resolución de traslados con los respectivos vistos buenos. | Q13: Preventivo | R13: =IF(Q13=Tablas!$R$3,"25%",IF(Q13=Tablas!$R$4,"15%",IF(Q13=Tablas!$R$5,"10%",))) -> 25% | S13: =IF(Q13=Tablas!$R$3,"Probabilidad",IF(Q13=Tablas!$R$4,"Probabilidad",IF(Q13=Tablas!$R$5,"Impacto",))) -> Probabilidad | T13: Manual | U13: =IF(T13=Tablas!$U$3,"25%",IF(T13=Tablas!$U$4,"15%",)) -> 15% | V13: =I13-(I13*(R13+U13)) -> 0.12 | W13: =K13 -> 100% | X13: =V13*W13 -> 0.12 | Y13: =IF(X13<=12%,"Bajo",IF(X13<=24%,"Medio",IF(X13<=40%,"Alto","Muy Alto"))) -> Bajo | Z13: Resolución de traslados con los respectivos vistos buenos. | AA13: Se realiza la revisión y actualización de los riesgos identificados por el proceso, así como los controles establecidos pendiente evidencia ejecución de los mismos por parte de proceso adicional a ello no se ha identificado materialización de riegos de soborno
B14: AFIP38 - CONSTITUCION RESERVAS PRESUPUESTALES | C14: Que un Funcionario ofrezca una dádiva o contraprestación para que se realice un traslado presupuestal sin previa aprobación del COUNFIS. | D14: Jefe de Presupuesto | E14: Funcionario asignado a Tesorería | F14: Perdida de recursos y deterioro de la imagen institucional que afecta la gestion y gobernanza. | G14: Deficiencia en las acciones de control implementadas que prevengan actuaciones o comportamientos en contravía de lo dispuesta en del Código Autonómico de la UCundinamarca Generación Siglo XXI. | H14: Muy baja | I14: =IF(H14=Tablas!$D$7,"20%",IF(H14=Tablas!$D$6,"40%",IF(H14=Tablas!$D$5,"60%",IF(H14=Tablas!$D$4,"80%",IF(H14=Tablas!$D$3,"100%"))))) -> 20% | J14: Catastrófico | K14: =IF(J14=Tablas!$G$10,"20%",IF(J14=Tablas!$H$10,"40%",IF(J14=Tablas!$I$10,"60%",IF(J14=Tablas!$J$10,"80%",IF(J14=Tablas!$K$10,"100%"))))) -> 100% | L14: 0.2 | M14: Medio | N14: Las solicitudes de traslados deben estar firmadas por los resposables de las áreas con recursos a cargo para la aprobación en el COUNFIS. Revisión y visto bueno del proyecto de resolución de traslados. Reportes a entes de control. | O14: Jefatura de Presupuesto | P14: Resolución de Constitución Anexo de constitución Reporte a la Contraloria de Cundinamarca | Q14: Preventivo | R14: =IF(Q14=Tablas!$R$3,"25%",IF(Q14=Tablas!$R$4,"15%",IF(Q14=Tablas!$R$5,"10%",))) -> 25% | S14: =IF(Q14=Tablas!$R$3,"Probabilidad",IF(Q14=Tablas!$R$4,"Probabilidad",IF(Q14=Tablas!$R$5,"Impacto",))) -> Probabilidad | T14: Manual | U14: =IF(T14=Tablas!$U$3,"25%",IF(T14=Tablas!$U$4,"15%",)) -> 15% | V14: 0.12 | W14: 100% | X14: 0.12 | Y14: =IF(X14<=12%,"Bajo",IF(X14<=24%,"Medio",IF(X14<=40%,"Alto","Muy Alto"))) -> Bajo | Z14: Resolución de Constitución Anexo de constitución Reporte a la Contraloria de Cundinamarca | AA14: Se realiza la revisión y actualización de los riesgos identificados por el proceso, así como los controles establecidos pendiente evidencia ejecución de los mismos por parte de proceso adicional a ello no se ha identificado materialización de riegos de soborno
B15: AFIP08 – PAGO DE CUENTAS | C15: Que un Funcionario de la Universidad ofrezca una contraprestación para que se alteren los resultados del estado de crédito. | D15: Funcionario y Jefe del Área de Tesorería | E15: Funcionario asignado área de Contabilidad | F15: Afectar la credibilidad y el buen nombre de la UCundinamarca frente a la ciudadanía y a los directivos. | G15: Deficiencia en las acciones de control implementadas que prevengan actuaciones o comportamientos en contravía de lo dispuesta en del Código Autonómico de la UCundinamarca Generación Siglo XXI. | H15: Muy baja | I15: =IF(H15=Tablas!$D$7,"20%",IF(H15=Tablas!$D$6,"40%",IF(H15=Tablas!$D$5,"60%",IF(H15=Tablas!$D$4,"80%",IF(H15=Tablas!$D$3,"100%"))))) -> 20% | J15: Catastrófico | K15: =IF(J15=Tablas!$G$10,"20%",IF(J15=Tablas!$H$10,"40%",IF(J15=Tablas!$I$10,"60%",IF(J15=Tablas!$J$10,"80%",IF(J15=Tablas!$K$10,"100%"))))) -> 100% | L15: 0.2 | M15: Medio | N15: Revisión, visto bueno y firma de la Jefatura de Tesorería. | O15: Jefatura de Tesorería | P15: Estudio de crédito Copia de la libranza (fisica). | Q15: Preventivo | R15: =IF(Q15=Tablas!$R$3,"25%",IF(Q15=Tablas!$R$4,"15%",IF(Q15=Tablas!$R$5,"10%",))) -> 25% | S15: =IF(Q15=Tablas!$R$3,"Probabilidad",IF(Q15=Tablas!$R$4,"Probabilidad",IF(Q15=Tablas!$R$5,"Impacto",))) -> Probabilidad | T15: Manual | U15: =IF(T15=Tablas!$U$3,"25%",IF(T15=Tablas!$U$4,"15%",)) -> 15% | V15: 0.12 | W15: 100% | X15: 0.12 | Y15: Bajo | Z15: Estudio de crédito Copia de la libranza (fisica). | AA15: Se realiza la revisión y actualización de los riesgos identificados por el proceso, así como los controles establecidos y se evidencia ejecución de los mismos por parte de proceso y no se ha identificado materialización de riegos de soborno.
B16: AFIP08 – PAGO DE CUENTAS AFIP 15 - PAGO A TERCEROS AFIP36 - PAGOS | C16: Que un proveedor o tercero ofrezca una dádiva para obtener un mayor valor del recurso autorizado para giro, o un adelanto en la fila de pagos. | D16: Funcionario y/o Jefe del Área de Tesorería | E16: Funcionario asignado área | F16: Afectar la credibilidad y el buen nombre de la UCundinamarca frente a la ciudadanía y a los directivos. | G16: Deficiencia en las acciones de control implementadas que prevengan actuaciones o comportamientos en contravía de lo dispuesta en del Código Autonómico de la UCundinamarca Generación Siglo XXI. | H16: Muy baja | I16: =IF(H16=Tablas!$D$7,"20%",IF(H16=Tablas!$D$6,"40%",IF(H16=Tablas!$D$5,"60%",IF(H16=Tablas!$D$4,"80%",IF(H16=Tablas!$D$3,"100%"))))) -> 20% | J16: Catastrófico | K16: =IF(J16=Tablas!$G$10,"20%",IF(J16=Tablas!$H$10,"40%",IF(J16=Tablas!$I$10,"60%",IF(J16=Tablas!$J$10,"80%",IF(J16=Tablas!$K$10,"100%"))))) -> 100% | L16: 0.2 | M16: Medio | N16: Sistematización del proceso de pago. Separación de Funciones (Nómina, Presupuesto, Contabilidad, Direción Financiera) Condiciones de manejo de las Entidades Bancarias: Tres firmas en portales bancarios para la autorización (mínimo 2 firmas) para el traslado de recursos a beneficiarios finales. Puntos de control internos en la Tesorería. Conciliaciones bancarias. | O16: Jefatura de Tesorería | P16: Documentacion soporte completa descargada de la herramienta INTEGRADOC 'Comprobante de egreso. Conciliación bancaría generada por GESTASOFT, extractos bancarios. Fichero de pago. Nóminas firmadas (Talento Humano, Contadora, Directora Financiera y Tesorera). AFIr019 - Hoja de ruta de la trazabilidad de la solicitud de pago. Boletín diario de tesorería. | Q16: Preventivo | R16: =IF(Q16=Tablas!$R$3,"25%",IF(Q16=Tablas!$R$4,"15%",IF(Q16=Tablas!$R$5,"10%",))) -> 25% | S16: =IF(Q16=Tablas!$R$3,"Probabilidad",IF(Q16=Tablas!$R$4,"Probabilidad",IF(Q16=Tablas!$R$5,"Impacto",))) -> Probabilidad | T16: Manual | U16: =IF(T16=Tablas!$U$3,"25%",IF(T16=Tablas!$U$4,"15%",)) -> 15% | V16: 0.12 | W16: 100% | X16: 0.12 | Y16: Bajo | Z16: Documentacion soporte completa descargada de la herramienta INTEGRADOC 'Comprobante de egreso. Conciliación bancaría generada por GESTASOFT, extractos bancarios. Fichero de pago. Nóminas firmadas (Talento Humano, Contadora, Directora Financiera y Tesorera). AFIr019 - Hoja de ruta de la trazabilidad de la solicitud de pago. Boletín diario de tesorería. | AA16: Se realiza la revisión y actualización de los riesgos identificados por el proceso, así como los controles establecidos y se evidencia ejecución de los mismos por parte de proceso y no se ha identificado materialización de riegos de soborno.
B17: AFIP28 - PORTAFOLIO DE INVERSIÓN | C17: Que un representante financiero de una entidad bancaria prometa y ofrezca dádivas para ser beneficiado con la colocación de dineros excendentes tesorales. | D17: Funcionario y/o Jefe del Área de Tesorería | E17: Funcionario asignado área | F17: Afectar la credibilidad y el buen nombre de la UCundinamarca frente a la ciudadanía y a los directivos. | G17: Deficiencia en las acciones de control implementadas que prevengan actuaciones o comportamientos en contravía de lo dispuesta en del Código Autonómico de la UCundinamarca Generación Siglo XXI. | H17: Muy baja | I17: =IF(H17=Tablas!$D$7,"20%",IF(H17=Tablas!$D$6,"40%",IF(H17=Tablas!$D$5,"60%",IF(H17=Tablas!$D$4,"80%",IF(H17=Tablas!$D$3,"100%"))))) -> 20% | J17: Catastrófico | K17: =IF(J17=Tablas!$G$10,"20%",IF(J17=Tablas!$H$10,"40%",IF(J17=Tablas!$I$10,"60%",IF(J17=Tablas!$J$10,"80%",IF(J17=Tablas!$K$10,"100%"))))) -> 100% | L17: 0.2 | M17: Medio | N17: Invitación (con los terminos de la presentación de la propuesta) y recepción de las respectivas propuestas por medio de correos electrónicos. Aprobación de la Jefe de Tesorería. Aprobación de la Dirección Financiera. Aprobación de la Vicerrectoría Financiera. Aprobación del COUNFIS. | O17: Jefatura de Tesorería | P17: Correos electrónicos de envio y recepción de propuestas. Correos electrónicos con aprobación y/o observaciones (Jefe de Tesorería). Actas de aprobación por parte de la Dirección Financiera y Tesorería. Actas de aprobación por parte de la Dirección Financiera. Vicerrectoría Administrativa y Financera, y Tesorería. Certificación de la Jefatura de Presupuesto. | Q17: Preventivo | R17: =IF(Q17=Tablas!$R$3,"25%",IF(Q17=Tablas!$R$4,"15%",IF(Q17=Tablas!$R$5,"10%",))) -> 25% | S17: =IF(Q17=Tablas!$R$3,"Probabilidad",IF(Q17=Tablas!$R$4,"Probabilidad",IF(Q17=Tablas!$R$5,"Impacto",))) -> Probabilidad | T17: Manual | U17: =IF(T17=Tablas!$U$3,"25%",IF(T17=Tablas!$U$4,"15%",)) -> 15% | V17: 0.12 | W17: 100% | X17: 0.12 | Y17: Bajo | Z17: Correos electrónicos de envio y recepción de propuestas. Correos electrónicos con aprobación y/o observaciones (Jefe de Tesorería). Actas de aprobación por parte de la Dirección Financiera y Tesorería. Actas de aprobación por parte de la Dirección Financiera. Vicerrectoría Administrativa y Financera, y Tesorería. Certificación de la Jefatura de Presupuesto. | AA17: Se realiza la revisión y actualización de los riesgos identificados por el proceso, así como los controles establecidos y se evidencia ejecución de los mismos por parte de proceso y no se ha identificado materialización de riegos de soborno.
B18: AFIP15 - PAGO A TERCEROS | C18: Que un Funcionario reciba una contraprestación para causar un pago omitiendo y/o incluyendo un impuesto, tasa o contribución que no es aplicable. | D18: Equipo de la Jefatura de Contabilidad | E18: Tercero (Contratista - Proveedor) | F18: Afectar la credibilidad y el buen nombre de la UCundinamarca frente a la ciudadanía y a los directivos. | G18: Deficiencia en las acciones de control implementadas que prevengan actuaciones o comportamientos en contravía de lo dispuesta en del Código Autonómico de la UCundinamarca Generación Siglo XXI. | H18: Muy baja | I18: =IF(H18=Tablas!$D$7,"20%",IF(H18=Tablas!$D$6,"40%",IF(H18=Tablas!$D$5,"60%",IF(H18=Tablas!$D$4,"80%",IF(H18=Tablas!$D$3,"100%"))))) -> 20% | J18: Catastrófico | K18: =IF(J18=Tablas!$G$10,"20%",IF(J18=Tablas!$H$10,"40%",IF(J18=Tablas!$I$10,"60%",IF(J18=Tablas!$J$10,"80%",IF(J18=Tablas!$K$10,"100%"))))) -> 100% | L18: 0.2 | M18: Medio | N18: Revisión cooperativa (Equipo de contabilidad, Jefe de Contabilidad) paso a direccion financiera y aTesorería. | O18: Equipo de la Jefatura de Contabilidad | P18: Vistos bueno del Jefe de Contabilidad Resolución de pago y causación. Formulario de cada proceso aplicativo Integradoc | Q18: Preventivo | R18: =IF(Q18=Tablas!$R$3,"25%",IF(Q18=Tablas!$R$4,"15%",IF(Q18=Tablas!$R$5,"10%",))) -> 25% | S18: =IF(Q18=Tablas!$R$3,"Probabilidad",IF(Q18=Tablas!$R$4,"Probabilidad",IF(Q18=Tablas!$R$5,"Impacto",))) -> Probabilidad | T18: Manual | U18: =IF(T18=Tablas!$U$3,"25%",IF(T18=Tablas!$U$4,"15%",)) -> 15% | V18: 0.12 | W18: 100% | X18: 0.12 | Y18: Bajo | Z18: 1. Apropiación y adopción de valores y principios institucionales. 2. Controles financieros para la gestión antisoborno | AA18: Se realiza la revisión y actualización de los riesgos identificados por el proceso, así como los controles establecidos y se evidencia ejecución de los mismos por parte de proceso y no se ha identificado materialización de riegos de soborno.
B19: AFIP10 - ELABORACION DE ESTADOS FINANCIEROS Y REPORTES A ENTES DE CONTROL | C19: Que se reciba una dadiva o favor personal para que este alteren los estados financieros del periodo a reportar. | D19: Representante Alta Dirección / Directivos / personal externo | E19: Funcionario asignado área+E12:E18+E14:E18 de Contabilidad | F19: Afectar la credibilidad y el buen nombre de la UCundinamarca frente a la ciudadanía y a los directivos. | G19: Deficiencia en las acciones de control implementadas que prevengan actuaciones o comportamientos en contravía de lo dispuesta en del Código Autonómico de la UCundinamarca Generación Siglo XXI. | H19: Muy baja | I19: =IF(H19=Tablas!$D$7,"20%",IF(H19=Tablas!$D$6,"40%",IF(H19=Tablas!$D$5,"60%",IF(H19=Tablas!$D$4,"80%",IF(H19=Tablas!$D$3,"100%"))))) -> 20% | J19: Catastrófico | K19: =IF(J19=Tablas!$G$10,"20%",IF(J19=Tablas!$H$10,"40%",IF(J19=Tablas!$I$10,"60%",IF(J19=Tablas!$J$10,"80%",IF(J19=Tablas!$K$10,"100%"))))) -> 100% | L19: 0.2 | M19: Medio | N19: Revisiones cooperativas para el aval de los estados financieros (Jefe de Contabilidad, Dirección Financiera y Vicerrectoría administrativa y Financiera). | O19: Equipo de la Jefatura de Contabilidad | P19: Estados financieros firmados con los avales respectivos por parte de Jefe de Contabilidad, Dirección Financiera, Vicerrectoría administrativa y Financiera, y Rectoria. Publicacion de los estados financieros pagina web de la Universidad. Formulario de cada proceso aplicativo Integradoc | Q19: Preventivo | R19: =IF(Q19=Tablas!$R$3,"25%",IF(Q19=Tablas!$R$4,"15%",IF(Q19=Tablas!$R$5,"10%",))) -> 25% | S19: =IF(Q19=Tablas!$R$3,"Probabilidad",IF(Q19=Tablas!$R$4,"Probabilidad",IF(Q19=Tablas!$R$5,"Impacto",))) -> Probabilidad | T19: Manual | U19: =IF(T19=Tablas!$U$3,"25%",IF(T19=Tablas!$U$4,"15%",)) -> 15% | V19: 0.12 | W19: 100% | X19: 0.12 | Y19: Bajo | Z19: 1. Apropiación y adopción de valores y principios institucionales. 2. Controles financieros para la gestión antisoborno | AA19: Se realiza la revisión y actualización de los riesgos identificados por el proceso, así como los controles establecidos y se evidencia ejecución de los mismos por parte de proceso y no se ha identificado materialización de riegos de soborno.
B20: 13- 46.18
B22: Diagonal 18 No. 20-29 Fusagasugá – Cundinamarca Teléfono (601) 8281483 Línea Gratuita 018000180414 www.ucundinamarca.edu.co E-mail: info@ucundinamarca.edu.co NIT: 890.680.062-2
B25: Documento controlado por el Sistema de Gestión de la Calidad Asegúrese que corresponde a la última versión consultando el Portal Institucional

Sheet 21
D2: MACROPROCESO ESTRATÉGICO | Z2: CÓDIGO: ESG-ESG-GAS-r003
D3: PROCESO GESTIÓN DE SISTEMAS INTEGRADOS | Z3: VERSIÓN: 2
D4: GESTIÓN DEL RIESGO SISTEMA DE GESTIÓN ANTISOBORNO | Z4: VIGENCIA: 2024-08-09
Z5: PÁGINA: 5 de 29
B7: 13.
C8: Proceso responsable: | D8: =Contenido!F32 -> Jurídica | G8: Objetivo del Proceso: | H8: Apoyar a las diferentes dependencias de la Universidad de Cundinamarca, verificando el cumplimiento de requisitos legales para la contratación, emitiendo conceptos y representando judicial y extrajudicialmente a la Universidad de Cundinamarca, a través del estudio y aplicación permanente de la normatividad vigente con el fin de que todas las actividades realizadas por los diferentes procesos se encuentren ajustadas aL derecho. | Z8: Fecha de actualización: | AA8: =Contenido!G10 -> 9 de agosto de 2024.
B10: Procedimiento Asociado | C10: Posibles hechos de soborno (Descripción del riesgo) | D10: Rol del sobornador | E10: Organizaciones externas, funciones o cargos expuestos al hecho de soborno | F10: Riesgos de soborno (Efecto de la incertidumbre sobre los objetivos estratégicos) | G10: Riesgos de soborno (Efecto de la incertidumbre sobre los objetivos del SGAS) | H10: Probabilidad del riesgo inherente | J10: Impacto del riesgo inherente | L10: Nivel de riesgo inherente | M10: Valoración del nivel de riesgo inherente | N10: Controles actuales existentes | O10: Responsable del control | P10: Documentación | Q10: Control | T10: Implementación | V10: Probabilidad del riesgo residual | W10: Impacto del riesgo residual | X10: Nivel de riesgo residual | Y10: Valoración del nivel de riesgo residual | Z10: Controles adicionales requeridos | AA10: Observaciones 2a. Línea (Oficial Antisoborno) | AB10: Observaciones 3a. Línea (Dirección Control Interno)
H11: Probabilidad | I11: % | J11: Impacto | K11: % | Q11: Tipo | R11: % Peso | S11: Afectación | T11: Tipo | U11: % Peso
B12: AJUP01 - Asesoría Jurídica | C12: Que un tercero ofrezca una dádiva para que en el trámite de incumplimiento contractual, se emita un concepto favorable y se desvirtue la falta dentro del desarrollo del contrato evitando sanciones y multas. | D12: Funcionario de la Ucundinamarca y persona externa con interes particular | E12: Directora de la Dirección Jurídica / Abogado Asesor | F12: Deterioro de la reputación institucional que afecta su gobernanza. | G12: Deficiencia en las acciones de control implementadas que prevengan actuaciones o comportamientos en contravía de lo dispuesta en del Código Autonómico de la UCundinamarca Generación Siglo XXI. | H12: Muy baja | I12: =IF(H12=Tablas!$D$7,"20%",IF(H12=Tablas!$D$6,"40%",IF(H12=Tablas!$D$5,"60%",IF(H12=Tablas!$D$4,"80%",IF(H12=Tablas!$D$3,"100%"))))) -> 20% | J12: Mayor | K12: =IF(J12=Tablas!$G$10,"20%",IF(J12=Tablas!$H$10,"40%",IF(J12=Tablas!$I$10,"60%",IF(J12=Tablas!$J$10,"80%",IF(J12=Tablas!$K$10,"100%"))))) -> 80% | L12: =I12*K12 -> 0.16 | M12: =IF(L12<=12%,"Bajo",IF(L12<=24%,"Medio",IF(L12<=40%,"Alto","Muy Alto"))) -> Medio | N12: Los trámites de incumplimiento contractual, se reportan a la Oficina de Control Interno, además se debe presentar un informe de las actuaciones de la delegación ante el señor Rector de los trámites de incumplimiento adelantados desde la Dirección Jurídica, de esta forma ejerciendo un control a las desiciones | O12: Oficina de conrrol Interno y Direccipon Jurídica | P12: Informes de delegación y informe ejecutivo a la oficina de control interno de manera semestral | Q12: Preventivo | R12: =IF(Q12=Tablas!$R$3,"25%",IF(Q12=Tablas!$R$4,"15%",IF(Q12=Tablas!$R$5,"10%",))) -> 25% | S12: =IF(Q12=Tablas!$R$3,"Probabilidad",IF(Q12=Tablas!$R$4,"Probabilidad",IF(Q12=Tablas!$R$5,"Impacto",))) -> Probabilidad | T12: Manual | U12: =IF(T12=Tablas!$U$3,"25%",IF(T12=Tablas!$U$4,"15%",)) -> 15% | V12: =I12-(I12*(R12+U12)) -> 0.12 | W12: =K12 -> 80% | X12: =V12*W12 -> 0.096 | Y12: =IF(X12<=12%,"Bajo",IF(X12<=24%,"Medio",IF(X12<=40%,"Alto","Muy Alto"))) -> Bajo
B13: AJUP05 – Representación judicial y administrativa | C13: El Abogado Asesor que ejerce la defensa de la Institución solicita o recibe una dádiva o comisión para no cumplir o impedir la defensa técnica adecuada en desarrollo del proceso en cualquiera de sus etapas con el fin favorecer a la contraparte | D13: Abogado Asesor Apoderado de la Ucundinamarca | E13: Abogado Asesor Externo / Apoderado | F13: Pérdida de bienes institucionales, condena en costas, sanciones, multas, condenas generales a la Universidad. | G13: Deficiencia en las acciones de control implementadas que prevengan actuaciones o comportamientos en contravía de lo dispuesta en del Código Autonómico de la UCundinamarca Generación Siglo XXI. | H13: Muy baja | I13: =IF(H13=Tablas!$D$7,"20%",IF(H13=Tablas!$D$6,"40%",IF(H13=Tablas!$D$5,"60%",IF(H13=Tablas!$D$4,"80%",IF(H13=Tablas!$D$3,"100%"))))) -> 20% | J13: Catastrófico | K13: =IF(J13=Tablas!$G$10,"20%",IF(J13=Tablas!$H$10,"40%",IF(J13=Tablas!$I$10,"60%",IF(J13=Tablas!$J$10,"80%",IF(J13=Tablas!$K$10,"100%"))))) -> 100% | L13: =I13*K13 -> 0.2 | M13: =IF(L13<=12%,"Bajo",IF(L13<=24%,"Medio",IF(L13<=40%,"Alto","Muy Alto"))) -> Medio | N13: Seguimiento trimestral conforme la información que reportan los apoderados judiciales de la Universidad. Seguimiento que realiza la Dirección Jurídica a traves de la página de la Rama Judicial, conforme al número de radicado de cada proceso. Informe trimestral a la Oficina de Control Interno del estado de los procesos | O13: Dirección Jurídica | P13: Controles periódicos de los procesos judiciales en curso a travez del formato AJUR008 SEGUIMIENTO Y CONTROL DE PROCESOS JUDICIALES que se semite trimestralmente a la oficina de Control Interno | Q13: Preventivo | R13: =IF(Q13=Tablas!$R$3,"25%",IF(Q13=Tablas!$R$4,"15%",IF(Q13=Tablas!$R$5,"10%",))) -> 25% | S13: =IF(Q13=Tablas!$R$3,"Probabilidad",IF(Q13=Tablas!$R$4,"Probabilidad",IF(Q13=Tablas!$R$5,"Impacto",))) -> Probabilidad | T13: Manual | U13: =IF(T13=Tablas!$U$3,"25%",IF(T13=Tablas!$U$4,"15%",)) -> 15% | V13: =I13-(I13*(R13+U13)) -> 0.12 | W13: =K13 -> 100% | X13: =V13*W13 -> 0.12 | Y13: =IF(X13<=12%,"Bajo",IF(X13<=24%,"Medio",IF(X13<=40%,"Alto","Muy Alto"))) -> Bajo | Z13: 1. Apropiación y adopción de valores y principios institucionales. 2. Desarrollo del reto de integridad actualizado con la gestión antisobormo. 3. Fortalecimiento del botón "Yo Denuncio". 4. Fortalecimiento de la cultura de integridad y transparencia. | AA13: Se realiza la revisión y actualización de los riesgos identificados por el proceso, así como los controles establecidos y se evidencia ejecución de los mismos por parte de proceso y no se ha identificado materialización de riegos de soborno.
B14: AJUP06 – Verificación de requisitos Jurídicos Contractuales | C14: Un Funcionario de la Oficina Juridica y/o Abogado Asesor solicita una dádiva o una comisión para elaborar pronunciamiento en cuanto al cumplimiento del objeto social que sea, a fin al requerimiento de las invitaciones en benefico de un tercero. | D14: Director oficina Jurídica y/o abogado asesor | E14: Tercero (Contratista - Proveedor) | F14: Deterioro de la reputación institucional que afecta su gobernanza. | G14: Deficiencia en las acciones de control implementadas que prevengan actuaciones o comportamientos en contravía de lo dispuesta en del Código Autonómico de la UCundinamarca Generación Siglo XXI. | H14: Muy baja | I14: =IF(H14=Tablas!$D$7,"20%",IF(H14=Tablas!$D$6,"40%",IF(H14=Tablas!$D$5,"60%",IF(H14=Tablas!$D$4,"80%",IF(H14=Tablas!$D$3,"100%"))))) -> 20% | J14: Catastrófico | K14: =IF(J14=Tablas!$G$10,"20%",IF(J14=Tablas!$H$10,"40%",IF(J14=Tablas!$I$10,"60%",IF(J14=Tablas!$J$10,"80%",IF(J14=Tablas!$K$10,"100%"))))) -> 100% | L14: 0.2 | M14: Medio | N14: Verificar en las plataformas digitales (plataforma institucional/ABS - Integradoc) los procesos contractuales, controlando la documentación automatizada en estas plataformas. | O14: Dirección Jurídica | P14: Revisión por parte de la Dirección Jurídica a travez de correo electrónico de la evaluación remitida por los diferentes asesores jurídicos (mostreo aleatorio de correos electrónicos) | Q14: Preventivo | R14: =IF(Q14=Tablas!$R$3,"25%",IF(Q14=Tablas!$R$4,"15%",IF(Q14=Tablas!$R$5,"10%",))) -> 25% | S14: =IF(Q14=Tablas!$R$3,"Probabilidad",IF(Q14=Tablas!$R$4,"Probabilidad",IF(Q14=Tablas!$R$5,"Impacto",))) -> Probabilidad | T14: Manual | U14: =IF(T14=Tablas!$U$3,"25%",IF(T14=Tablas!$U$4,"15%",)) -> 15% | V14: 0.12 | W14: 100% | X14: 0.12 | Y14: =IF(X14<=12%,"Bajo",IF(X14<=24%,"Medio",IF(X14<=40%,"Alto","Muy Alto"))) -> Bajo | Z14: 1. Apropiación y adopción de valores y principios institucionales. 2. Desarrollo del reto de integridad actualizado con la gestión antisobormo. 3. Fortalecimiento del botón "Yo Denuncio". 4. Fortalecimiento de la cultura de integridad y transparencia. | AA14: Se realiza la revisión y actualización de los riesgos identificados por el proceso, así como los controles establecidos y se evidencia ejecución de los mismos por parte de proceso y no se ha identificado materialización de riegos de soborno.
D17: 13- 46.18
B18: Diagonal 18 No. 20-29 Fusagasugá – Cundinamarca Teléfono (601) 8281483 Línea Gratuita 018000180414 www.ucundinamarca.edu.co E-mail: info@ucundinamarca.edu.co NIT: 890.680.062-2
B20: Documento controlado por el Sistema de Gestión de la Calidad Asegúrese que corresponde a la última versión consultando el Portal Institucional

Sheet 22
D2: MACROPROCESO ESTRATÉGICO | Z2: CÓDIGO: ESG-ESG-GAS-r003
D3: PROCESO GESTIÓN DE SISTEMAS INTEGRADOS | Z3: VERSIÓN: 2
D4: GESTIÓN DEL RIESGO SISTEMA DE GESTIÓN ANTISOBORNO | Z4: VIGENCIA: 2024-08-09
Z5: PÁGINA: 6 de 29
B7: 13.
C8: Proceso responsable: | D8: =Contenido!F33 -> Sistemas y Tecnología | G8: Objetivo del Proceso: | H8: Gestionar y administrar la arquitectura, la operación, el soporte y la seguridad de los Recursos y servicios Informáticos apoyando la implementación del Sistema de Gestión de Seguridad de la Información – SGSI y la Ley de protección de Datos, mediante la generación de políticas, buenas prácticas y proyectos de inversión tecnológica orientadas a la comunidad educativa en concordancia con las directrices institucionales. | Z8: Fecha de actualización: | AA8: =Contenido!G10 -> 9 de agosto de 2024.
B10: Procedimiento Asociado | C10: Posibles hechos de soborno (Descripción del riesgo) | D10: Rol del sobornador | E10: Organizaciones externas, funciones o cargos expuestos al hecho de soborno | F10: Riesgos de soborno (Efecto de la incertidumbre sobre los objetivos estratégicos) | G10: Riesgos de soborno (Efecto de la incertidumbre sobre los objetivos del SGAS) | H10: Probabilidad del riesgo inherente | J10: Impacto del riesgo inherente | L10: Nivel de riesgo inherente | M10: Valoración del nivel de riesgo inherente | N10: Controles actuales existentes | O10: Responsable del control | P10: Documentación | Q10: Control | T10: Implementación | V10: Probabilidad del riesgo residual | W10: Impacto del riesgo residual | X10: Nivel de riesgo residual | Y10: Valoración del nivel de riesgo residual | Z10: Controles adicionales requeridos | AA10: Observaciones 2a. Línea (Oficial Antisoborno) | AB10: Observaciones 3a. Línea (Dirección Control Interno)
H11: Probabilidad | I11: % | J11: Impacto | K11: % | Q11: Tipo | R11: % Peso | S11: Afectación | T11: Tipo | U11: % Peso
B12: ASIP16 - DESARROLLO DE SISTEMAS DE INFORMACIÓN | C12: Que un tercero interno o externo ofrezca una contraprestación para obtener información de los Sistemas de Información Institucionales. | D12: Dirección de Sistemas y Tecnología | E12: Funcionario de la Ucundinamarca, o un tercero | F12: Reducción de la capacidad de innovación por desconfianza en la gestión de la UCundinamarca | G12: Deficiencia en las acciones de control implementadas que prevengan actuaciones o comportamientos en contravía de lo dispuesta en del Código Autonómico de la UCundinamarca Generación Siglo XXI. | H12: Muy baja | I12: =IF(H12=Tablas!$D$7,"20%",IF(H12=Tablas!$D$6,"40%",IF(H12=Tablas!$D$5,"60%",IF(H12=Tablas!$D$4,"80%",IF(H12=Tablas!$D$3,"100%"))))) -> 20% | J12: Mayor | K12: =IF(J12=Tablas!$G$10,"20%",IF(J12=Tablas!$H$10,"40%",IF(J12=Tablas!$I$10,"60%",IF(J12=Tablas!$J$10,"80%",IF(J12=Tablas!$K$10,"100%"))))) -> 80% | L12: =I12*K12 -> 0.16 | M12: =IF(L12<=12%,"Bajo",IF(L12<=24%,"Medio",IF(L12<=40%,"Alto","Muy Alto"))) -> Medio | N12: Solicitudes por mesa de servicios por el custodio de cada módulo dentro de la Plataforma Institucional. Asignación interna para el desarrollo del requerimiento. Acceso limitado a área de desarrollo de sistemas de información. Firma de acuerdo de confidencialidad. | O12: Dirección de Sistemas y Tecnología | P12: ASIM018 - MANUAL DE MESA DE SERVICIOS A UN CLIC. ASIM006 - MANUAL DE POLITICAS DE DESARROLLO DE SOFTWARE INSTITUCIONAL Trazabilidad solicitud mesa de servicios, seguimiento diario de los desarrolladores. Circular emitida por la Vicerrectoria Financiera y Administrativa. ESG-SSI-F002 - ACUERDO DE CONFIDENCIALIDAD PARA MIEMBROS DEL TALENTO HUMANO, PASANTES Y MONITORES | Q12: Preventivo | R12: =IF(Q12=Tablas!$R$3,"25%",IF(Q12=Tablas!$R$4,"15%",IF(Q12=Tablas!$R$5,"10%",))) -> 25% | S12: =IF(Q12=Tablas!$R$3,"Probabilidad",IF(Q12=Tablas!$R$4,"Probabilidad",IF(Q12=Tablas!$R$5,"Impacto",))) -> Probabilidad | T12: Manual | U12: =IF(T12=Tablas!$U$3,"25%",IF(T12=Tablas!$U$4,"15%",)) -> 15% | V12: =I12-(I12*(R12+U12)) -> 0.12 | W12: =K12 -> 80% | X12: =V12*W12 -> 0.096 | Y12: =IF(X12<=12%,"Bajo",IF(X12<=24%,"Medio",IF(X12<=40%,"Alto","Muy Alto"))) -> Bajo | Z12: 1. Apropiación y adopción de valores y principios institucionales. 2. Desarrollo del reto de integridad actualizado con la gestión antisobormo. 3. Fortalecimiento del botón "Yo Denuncio". 4. Fortalecimiento de la cultura de integridad y transparencia. | AA12: Se realiza la revisión y actualización de los riesgos identificados por el proceso, así como los controles establecidos y se evidencia ejecución de los mismos por parte de proceso y no se ha identificado materialización de riegos de soborno.
B13: ASIP18 - SOPORTE, MANTENIMIENTO Y MONITOREO A LA INFRAESTRUCTURA DE RED Y RECURSOS TECNOLÓGICOS | C13: Que un tercero interno o externo ofrezca una contraprestación para que se elimine, dañe o transfiera información de determinado equipo y para tener acceso a información y datos sensibles de la Institución. | D13: Gestores del Área de Servicios tecnológicos | E13: Tercero | F13: Deterioro de la reputación institucional que afecta su capacidad y gobernanza. | G13: Deficiencia en las acciones de control implementadas que prevengan actuaciones o comportamientos en contravía de lo dispuesta en del Código Autonómico de la UCundinamarca Generación Siglo XXI. | H13: Muy baja | I13: =IF(H13=Tablas!$D$7,"20%",IF(H13=Tablas!$D$6,"40%",IF(H13=Tablas!$D$5,"60%",IF(H13=Tablas!$D$4,"80%",IF(H13=Tablas!$D$3,"100%"))))) -> 20% | J13: Moderado | K13: =IF(J13=Tablas!$G$10,"20%",IF(J13=Tablas!$H$10,"40%",IF(J13=Tablas!$I$10,"60%",IF(J13=Tablas!$J$10,"80%",IF(J13=Tablas!$K$10,"100%"))))) -> 60% | L13: =I13*K13 -> 0.12 | M13: =IF(L13<=12%,"Bajo",IF(L13<=24%,"Medio",IF(L13<=40%,"Alto","Muy Alto"))) -> Bajo | N13: Cronograma de mantenimiento preventivo. Diligenciamiento de la lista de verificación del mantenimiento realizado, y actualización hoja de vida en el Sistema de Información de bienes y servicios. Firma de acuerdo de confidencialidad. Inducción y reinducción frente al procedimiento ASIP18. Borrado seguro de la información al momento de reasignación de los equipos de computo. | O13: Dirección de Sistemas y Tecnología | P13: Cronograma publicado en la Intranet. ASIF061- LISTA DE VERIFICACION MANTENIMIENTO EQUIPOS DE COMPUTO ESG-SSI-F002 - ACUERDO DE CONFIDENCIALIDAD PARA MIEMBROS DEL TALENTO HUMANO, PASANTES Y MONITORES. Acta de reunión y registro de asistencia. ASIM016 - MANUAL PARA BORRADO SEGURO DE INFORMACIÓN ASIF003 - CONCEPTO TECNICA ASIP25 - COPIA DE SEGURIDAD DE LA INFORMACIÓN. ASIM008 - MANUAL PARA REALIZAR PROCESO,SEGUIMIENTO Y RECUPERACION DE BACKUPS. | Q13: Preventivo | R13: =IF(Q13=Tablas!$R$3,"25%",IF(Q13=Tablas!$R$4,"15%",IF(Q13=Tablas!$R$5,"10%",))) -> 25% | S13: =IF(Q13=Tablas!$R$3,"Probabilidad",IF(Q13=Tablas!$R$4,"Probabilidad",IF(Q13=Tablas!$R$5,"Impacto",))) -> Probabilidad | T13: Manual | U13: =IF(T13=Tablas!$U$3,"25%",IF(T13=Tablas!$U$4,"15%",)) -> 15% | V13: =I13-(I13*(R13+U13)) -> 0.12 | W13: =K13 -> 60% | X13: =V13*W13 -> 0.072 | Y13: =IF(X13<=12%,"Bajo",IF(X13<=24%,"Medio",IF(X13<=40%,"Alto","Muy Alto"))) -> Bajo | Z13: 1. Apropiación y adopción de valores y principios institucionales. 2. Desarrollo del reto de integridad actualizado con la gestión antisobormo. 3. Fortalecimiento del botón "Yo Denuncio". 4. Fortalecimiento de la cultura de integridad y transparencia. | AA13: Se realiza la revisión y actualización de los riesgos identificados por el proceso, así como los controles establecidos y se evidencia ejecución de los mismos por parte de proceso y no se ha identificado materialización de riegos de soborno.
B14: ASIP20 – Gestión de Acceso a Usuarios de Servicios Informáticos | C14: Que un tercero externo o interno ofrezca una contraprestación para tener acceso remoto a los servicios tecnologicos institucionales. | D14: Dirección de Sistemas y Tecnología | E14: Funcionario de la Ucundinamarca, o un tercero | F14: Posible afectación reputacional y económica por incumplimiento de trámites ambientales institucionales asociados con desviaciones en el proceso. | G14: Deficiencia en las acciones de control implementadas que prevengan actuaciones o comportamientos en contravía de lo dispuesta en del Código Autonómico de la UCundinamarca Generación Siglo XXI. | H14: Muy baja | I14: =IF(H14=Tablas!$D$7,"20%",IF(H14=Tablas!$D$6,"40%",IF(H14=Tablas!$D$5,"60%",IF(H14=Tablas!$D$4,"80%",IF(H14=Tablas!$D$3,"100%"))))) -> 20% | J14: Mayor | K14: =IF(J14=Tablas!$G$10,"20%",IF(J14=Tablas!$H$10,"40%",IF(J14=Tablas!$I$10,"60%",IF(J14=Tablas!$J$10,"80%",IF(J14=Tablas!$K$10,"100%"))))) -> 80% | L14: 0.16 | M14: Medio | N14: Los accesos a VPN son avalados únicamente por el Director de Sistemas y Tecnología y por el responsable del proceso. Restricción de acceso según solicitud. Firma del acuerdo de confidencialidad. | O14: Dirección de Sistemas y Tecnología | P14: Solicitud por mesa de servicios. ASIM018 - MANUAL DE MESA DE SERVICIOS A UN CLIC. ESG-SSI-F002 - ACUERDO DE CONFIDENCIALIDAD PARA MIEMBROS DEL TALENTO HUMANO, PASANTES Y MONITORES. | Q14: Preventivo | R14: =IF(Q14=Tablas!$R$3,"25%",IF(Q14=Tablas!$R$4,"15%",IF(Q14=Tablas!$R$5,"10%",))) -> 25% | S14: =IF(Q14=Tablas!$R$3,"Probabilidad",IF(Q14=Tablas!$R$4,"Probabilidad",IF(Q14=Tablas!$R$5,"Impacto",))) -> Probabilidad | T14: Manual | U14: =IF(T14=Tablas!$U$3,"25%",IF(T14=Tablas!$U$4,"15%",)) -> 15% | V14: 0.12 | W14: 80% | X14: 0.096 | Y14: =IF(X14<=12%,"Bajo",IF(X14<=24%,"Medio",IF(X14<=40%,"Alto","Muy Alto"))) -> Bajo | Z14: 1. Apropiación y adopción de valores y principios institucionales. 2. Desarrollo del reto de integridad actualizado con la gestión antisobormo. 3. Fortalecimiento del botón "Yo Denuncio". 4. Fortalecimiento de la cultura de integridad y transparencia. | AA14: Se realiza la revisión y actualización de los riesgos identificados por el proceso, así como los controles establecidos y se evidencia ejecución de los mismos por parte de proceso y no se ha identificado materialización de riegos de soborno.
B15: ASIP20 – Gestión de Acceso a Usuarios de Servicios Informáticos | C15: Que un tercero interno o externo ofrezca una dádiva para que le sea asignado un módulo en la plataforma institucional | D15: Dirección de Sistemas y Tecnología | E15: Funcionario de la Ucundinamarca, o un tercero | F15: Posible afectación reputacional y económica por incumplimiento de trámites ambientales institucionales asociados con desviaciones en el proceso. | G15: Deficiencia en las acciones de control implementadas que prevengan actuaciones o comportamientos en contravía de lo dispuesta en del Código Autonómico de la UCundinamarca Generación Siglo XXI. | H15: Muy baja | I15: =IF(H15=Tablas!$D$7,"20%",IF(H15=Tablas!$D$6,"40%",IF(H15=Tablas!$D$5,"60%",IF(H15=Tablas!$D$4,"80%",IF(H15=Tablas!$D$3,"100%"))))) -> 20% | J15: Mayor | K15: =IF(J15=Tablas!$G$10,"20%",IF(J15=Tablas!$H$10,"40%",IF(J15=Tablas!$I$10,"60%",IF(J15=Tablas!$J$10,"80%",IF(J15=Tablas!$K$10,"100%"))))) -> 80% | L15: 0.16 | M15: Medio | N15: Las solicitudes se realizan únicamente por la plataforma institucional, y sólo puede ser solicitada por el Jefe y/o Director custodio del aplicativo. La Dirección de Talento Humano realiza la solicitud de asignación de roles (aplica para nuevo ingreso y para cambios de área y/o cargo). Inactivación de usuarios en cuanto se termina la vinculación laboral con la UCundinamarca. | O15: Dirección de Sistemas y Tecnología | P15: ASII015v - INSTRUCTIVO GESTION DE ACCESO A LOS SISTEMAS DE INFORMACION, RECURSOS Y SERVICIOS TECNOLOGICOS. GESTION DE ACCESO A LOS SISTEMAS DE INFORMACION, RECURSOS Y SERVICIOS TECNOLOGICOS - ASIP20. MESA DE SERVICIOS A UN CLIC - ASIP33. ASIM018 - MANUAL DE MESA DE SERVICIOS A UN CLIC. " | Q15: Preventivo | R15: =IF(Q15=Tablas!$R$3,"25%",IF(Q15=Tablas!$R$4,"15%",IF(Q15=Tablas!$R$5,"10%",))) -> 25% | S15: =IF(Q15=Tablas!$R$3,"Probabilidad",IF(Q15=Tablas!$R$4,"Probabilidad",IF(Q15=Tablas!$R$5,"Impacto",))) -> Probabilidad | T15: Automático | U15: =IF(T15=Tablas!$U$3,"25%",IF(T15=Tablas!$U$4,"15%",)) -> 25% | V15: 0.1 | W15: 80% | X15: 0.08 | Y15: Bajo | Z15: 1. Apropiación y adopción de valores y principios institucionales. 2. Desarrollo del reto de integridad actualizado con la gestión antisobormo. 3. Fortalecimiento del botón "Yo Denuncio". 4. Fortalecimiento de la cultura de integridad y transparencia. | AA15: Se realiza la revisión y actualización de los riesgos identificados por el proceso, así como los controles establecidos y se evidencia ejecución de los mismos por parte de proceso y no se ha identificado materialización de riegos de soborno.
B16: ASIP33 - MESA DE SERVICIOS A UN CLIC | C16: Que un tercero interno o externo ofrezca una dádiva para modificar la información que reposa en los Sistemas de Información Institucionales. | D16: Dirección de Sistemas y Tecnología | E16: Funcionario de la Ucundinamarca, o un tercero | F16: Posible afectación reputacional y económica por incumplimiento de trámites ambientales institucionales asociados con desviaciones en el proceso. | G16: Deficiencia en las acciones de control implementadas que prevengan actuaciones o comportamientos en contravía de lo dispuesta en del Código Autonómico de la UCundinamarca Generación Siglo XXI. | H16: Muy baja | I16: =IF(H16=Tablas!$D$7,"20%",IF(H16=Tablas!$D$6,"40%",IF(H16=Tablas!$D$5,"60%",IF(H16=Tablas!$D$4,"80%",IF(H16=Tablas!$D$3,"100%"))))) -> 20% | J16: Moderado | K16: =IF(J16=Tablas!$G$10,"20%",IF(J16=Tablas!$H$10,"40%",IF(J16=Tablas!$I$10,"60%",IF(J16=Tablas!$J$10,"80%",IF(J16=Tablas!$K$10,"100%"))))) -> 60% | L16: 0.12 | M16: Bajo | N16: Las solicitudes se realizan únicamente por la plataforma institucional, y sólo puede ser solicitada por el custodio del aplicativo. Verificación de trazabilidad en la base de datos. | O16: Dirección de Sistemas y Tecnología | P16: MESA DE SERVICIOS A UN CLIC - ASIP33. ASIM018 - MANUAL DE MESA DE SERVICIOS A UN CLIC. | Q16: Preventivo | R16: =IF(Q16=Tablas!$R$3,"25%",IF(Q16=Tablas!$R$4,"15%",IF(Q16=Tablas!$R$5,"10%",))) -> 25% | S16: =IF(Q16=Tablas!$R$3,"Probabilidad",IF(Q16=Tablas!$R$4,"Probabilidad",IF(Q16=Tablas!$R$5,"Impacto",))) -> Probabilidad | T16: Automático | U16: =IF(T16=Tablas!$U$3,"25%",IF(T16=Tablas!$U$4,"15%",)) -> 25% | V16: 0.1 | W16: 60% | X16: 0.06 | Y16: Bajo | Z16: 1. Apropiación y adopción de valores y principios institucionales. 2. Desarrollo del reto de integridad actualizado con la gestión antisobormo. 3. Fortalecimiento del botón "Yo Denuncio". 4. Fortalecimiento de la cultura de integridad y transparencia. | AA16: Se realiza la revisión y actualización de los riesgos identificados por el proceso, así como los controles establecidos y se evidencia ejecución de los mismos por parte de proceso y no se ha identificado materialización de riegos de soborno.
B19: 13- 46.18
B20: Diagonal 18 No. 20-29 Fusagasugá – Cundinamarca Teléfono (601) 8281483 Línea Gratuita 018000180414 www.ucundinamarca.edu.co E-mail: info@ucundinamarca.edu.co NIT: 890.680.062-2
B22: Documento controlado por el Sistema de Gestión de la Calidad Asegúrese que corresponde a la última versión consultando el Portal Institucional

Sheet 23
D2: MACROPROCESO ESTRATÉGICO | Z2: CÓDIGO: ESG-ESG-GAS-r003
D3: PROCESO GESTIÓN DE SISTEMAS INTEGRADOS | Z3: VERSIÓN: 2
D4: GESTIÓN DEL RIESGO SISTEMA DE GESTIÓN ANTISOBORNO | Z4: VIGENCIA: 2024-08-09
Z5: PÁGINA: 7 de 29
B7: 13.
C8: Proceso responsable: | D8: =Contenido!F34 -> Talento Humano | G8: Objetivo del Proceso: | H8: Proveer y mantener el Talento Humano idóneo y competente, requerido por la organización para el cumplimiento de las metas institucionales. | Z8: Fecha de actualización: | AA8: =Contenido!G10 -> 9 de agosto de 2024.
B10: Procedimiento Asociado | C10: Posibles hechos de soborno (Descripción del riesgo) | D10: Rol del sobornador | E10: Organizaciones externas, funciones o cargos expuestos al hecho de soborno | F10: Riesgos de soborno (Efecto de la incertidumbre sobre los objetivos estratégicos) | G10: Riesgos de soborno (Efecto de la incertidumbre sobre los objetivos del SGAS) | H10: Probabilidad del riesgo inherente | J10: Impacto del riesgo inherente | L10: Nivel de riesgo inherente | M10: Valoración del nivel de riesgo inherente | N10: Controles actuales existentes | O10: Responsable del control | P10: Documentación | Q10: Control | T10: Implementación | V10: Probabilidad del riesgo residual | W10: Impacto del riesgo residual | X10: Nivel de riesgo residual | Y10: Valoración del nivel de riesgo residual | Z10: Controles adicionales requeridos | AA10: Observaciones 2a. Línea (Oficial Antisoborno) | AB10: Observaciones 3a. Línea (Dirección Control Interno)
H11: Probabilidad | I11: % | J11: Impacto | K11: % | Q11: Tipo | R11: % Peso | S11: Afectación | T11: Tipo | U11: % Peso
B12: ATHP01 - SELECCION DEL PERSONAL ATHP08 - PROCEDIMIENTO CONTRATACION DE SERVIDORES PUBLICOS OCASIONALES | C12: Que un tercero interno o externo ofrezca una contraprestación con el fin de influenciar en la contratación de personal. | D12: Gestores de la Dirección de Talento Humano | E12: Dirección de Talento Humano / Funcionario designado | F12: Perdida de la confianza y la capacidad de gestión institucional frente a la comunidad educativa | G12: Deficiencia en las acciones de control implementadas que prevengan actuaciones o comportamientos en contravía de lo dispuesta en del Código Autonómico de la UCundinamarca Generación Siglo XXI. | H12: Media | I12: =IF(H12=Tablas!$D$7,"20%",IF(H12=Tablas!$D$6,"40%",IF(H12=Tablas!$D$5,"60%",IF(H12=Tablas!$D$4,"80%",IF(H12=Tablas!$D$3,"100%"))))) -> 60% | J12: Mayor | K12: =IF(J12=Tablas!$G$10,"20%",IF(J12=Tablas!$H$10,"40%",IF(J12=Tablas!$I$10,"60%",IF(J12=Tablas!$J$10,"80%",IF(J12=Tablas!$K$10,"100%"))))) -> 80% | L12: =I12*K12 -> 0.48 | M12: =IF(L12<=12%,"Bajo",IF(L12<=24%,"Medio",IF(L12<=40%,"Alto","Muy Alto"))) -> Muy Alto | N12: Autorización por parte de la Vicerrectoría Administrativa y Financiera para contratar al personal. ATHr 131 - CHECKLIST Y FICHA DE SELECCION PARA CONTRATACION DE PERSONAL A TERMINO FIJO OPS, DOCENTES OCASIONALES, PERSONAL ACADEMICO Y PERSONAL DE PLANTA. ATHI 007 - Instructivo de contratación. Resoluciones 066 y 322 - Manuales de Funciones y Competencias Labores de la UCundinamarca. ATHF205 - ESTUDIO DE NECESIDAD Y CONVENIENCIA PARA EXPERTOS ACADEMICOS. ATHF100 - SOLICITUD ORDEN DE PRESTACION DE SERVICIOS HASTA 100 SMLV Aprobación de hojas de vida para la contratación de personal docente. Aprobación por parte de la Vicerrectoría Académica de los Docentes casos especiales. | O12: Dirección de Talento Humano / Vicerrectoría Administrativa y Financiera y Vicerrectoría Académica | P12: Correo electronico de autorización de la Vicerrectoría Administrativa y Financiera y/o Vicerrectoría Académica. Actas de Consejo de Facultad ATHr131 con vistos buenos. ATHF205 diligenciado. ATHF100 diligenciado. Carta de aprobación contratación de docentes casos especiales. | Q12: Preventivo | R12: =IF(Q12=Tablas!$R$3,"25%",IF(Q12=Tablas!$R$4,"15%",IF(Q12=Tablas!$R$5,"10%",))) -> 25% | S12: =IF(Q12=Tablas!$R$3,"Probabilidad",IF(Q12=Tablas!$R$4,"Probabilidad",IF(Q12=Tablas!$R$5,"Impacto",))) -> Probabilidad | T12: Manual | U12: =IF(T12=Tablas!$U$3,"25%",IF(T12=Tablas!$U$4,"15%",)) -> 15% | V12: =I12-(I12*(R12+U12)) -> 0.36 | W12: =K12 -> 80% | X12: =V12*W12 -> 0.288 | Y12: =IF(X12<=12%,"Bajo",IF(X12<=24%,"Medio",IF(X12<=40%,"Alto","Muy Alto"))) -> Alto | Z12: 1. Apropiación y adopción de valores y principios institucionales. 2. Desarrollo del reto de integridad actualizado con la gestión antisobormo. 3. Fortalecimiento del botón "Yo Denuncio". 4. Fortalecimiento de la cultura de integridad y transparencia. 5. Aplicación del procedimiento de debida diligencia. | AA12: Se realiza la revisión y actualización de los riesgos identificados por el proceso, así como los controles establecidos y se evidencia ejecución de los mismos por parte de proceso y no se ha identificado materialización de riegos de soborno.
B13: ATHP01 - SELECCION DEL PERSONAL ATHP08 - PROCEDIMIENTO CONTRATACION DE SERVIDORES PUBLICOS OCASIONALES | C13: Que un tercero interno o externo ofrezca una contraprestación con el fin de influenciar en la contratación de personal, que no cumple con los requisitos establecidos para el cargo o el objeto contractual. | D13: Gestores de la Dirección de Talento Humano | E13: Dirección de Talento Humano / Funcionario designado | F13: Menor disponibilidad de recursos para invertir en las necesidades bienes obras o servicios, deterioro de la reputación institucional. | G13: Deficiencia en las acciones de control implementadas que prevengan actuaciones o comportamientos en contravía de lo dispuesta en del Código Autonómico de la UCundinamarca Generación Siglo XXI. | H13: Muy baja | I13: =IF(H13=Tablas!$D$7,"20%",IF(H13=Tablas!$D$6,"40%",IF(H13=Tablas!$D$5,"60%",IF(H13=Tablas!$D$4,"80%",IF(H13=Tablas!$D$3,"100%"))))) -> 20% | J13: Mayor | K13: =IF(J13=Tablas!$G$10,"20%",IF(J13=Tablas!$H$10,"40%",IF(J13=Tablas!$I$10,"60%",IF(J13=Tablas!$J$10,"80%",IF(J13=Tablas!$K$10,"100%"))))) -> 80% | L13: =I13*K13 -> 0.16 | M13: =IF(L13<=12%,"Bajo",IF(L13<=24%,"Medio",IF(L13<=40%,"Alto","Muy Alto"))) -> Medio | N13: Autorización por parte de la Vicerrectoría Administrativa y Financiera para contratar al personal. ATHr 131 - CHECKLIST Y FICHA DE SELECCION PARA CONTRATACION DE PERSONAL A TERMINO FIJO OPS, DOCENTES OCASIONALES, PERSONAL ACADEMICO Y PERSONAL DE PLANTA. Aprobación por parte de la Vicerrectoría Académica de los Docentes casos especiales. Convocatorias laborales | O13: Dirección de Talento Humano / Vicerrectoría Administrativa y Financiera y Vicerrectoría Académica | P13: Correo electronico de autorización de la Vicerrectoría Administrativa y Financiera y/o Vicerrectoría Académica. Actas de Consejo de Facultad ATHr131 con vistos buenos. Carta de aprobación contratación de docentes casos especiales. Convocatorias laborales publicadas en la página web institucional. | Q13: Preventivo | R13: =IF(Q13=Tablas!$R$3,"25%",IF(Q13=Tablas!$R$4,"15%",IF(Q13=Tablas!$R$5,"10%",))) -> 25% | S13: =IF(Q13=Tablas!$R$3,"Probabilidad",IF(Q13=Tablas!$R$4,"Probabilidad",IF(Q13=Tablas!$R$5,"Impacto",))) -> Probabilidad | T13: Manual | U13: =IF(T13=Tablas!$U$3,"25%",IF(T13=Tablas!$U$4,"15%",)) -> 15% | V13: =I13-(I13*(R13+U13)) -> 0.12 | W13: =K13 -> 80% | X13: =V13*W13 -> 0.096 | Y13: =IF(X13<=12%,"Bajo",IF(X13<=24%,"Medio",IF(X13<=40%,"Alto","Muy Alto"))) -> Bajo | Z13: 1. Apropiación y adopción de valores y principios institucionales. 2. Desarrollo del reto de integridad actualizado con la gestión antisobormo. 3. Fortalecimiento del botón "Yo Denuncio". 4. Fortalecimiento de la cultura de integridad y transparencia. 5. Aplicación del procedimiento de debida diligencia. | AA13: Se realiza la revisión y actualización de los riesgos identificados por el proceso, así como los controles establecidos y se evidencia ejecución de los mismos por parte de proceso y no se ha identificado materialización de riegos de soborno.
B14: ATHP04 - BIENESTAR SOCIAL LABORAL | C14: Que un proveedor ofrezca o prometa apoyos de carácter económico para la realización de actividades de bienestar laboral con el fin de ser favorecido para futuras contrataciones con la Institución. | D14: Gestor y/o Jefe de la Dirección de Talento Humano | E14: Director de talento humano | F14: Perdida de la confianza y la capacidad de gestión institucional frente a la comunidad educativa | G14: Deficiencia en las acciones de control implementadas que prevengan actuaciones o comportamientos en contravía de lo dispuesta en del Código Autonómico de la UCundinamarca Generación Siglo XXI. | H14: Muy baja | I14: =IF(H14=Tablas!$D$7,"20%",IF(H14=Tablas!$D$6,"40%",IF(H14=Tablas!$D$5,"60%",IF(H14=Tablas!$D$4,"80%",IF(H14=Tablas!$D$3,"100%"))))) -> 20% | J14: Mayor | K14: =IF(J14=Tablas!$G$10,"20%",IF(J14=Tablas!$H$10,"40%",IF(J14=Tablas!$I$10,"60%",IF(J14=Tablas!$J$10,"80%",IF(J14=Tablas!$K$10,"100%"))))) -> 80% | L14: 0.16 | M14: Medio | N14: Socialización Proyección Presupuestal Bienestar Social Laboral para Seccionales y Extensiones 2025 Documento de proyección de actividades proyectadas Bienestar Social Laboral para Seccionales y Extensiones 2025 Solicitud de apoyo de actividades a Caja de Compensación Circular 007 de 2022 sobre Lineamientos de Austeridad en el Gasto | O14: Dirección de Talento Humano / Vicerrectoría Administrativa y Financiera | P14: Correo electrónico de autorización. Presupuesto asignado Circular 007/2022 - Lineamientos para austeridad del gasto público. Manual de Contratación y demás. Procesos de contratación publicados en la página web institucional. | Q14: Preventivo | R14: =IF(Q14=Tablas!$R$3,"25%",IF(Q14=Tablas!$R$4,"15%",IF(Q14=Tablas!$R$5,"10%",))) -> 25% | S14: =IF(Q14=Tablas!$R$3,"Probabilidad",IF(Q14=Tablas!$R$4,"Probabilidad",IF(Q14=Tablas!$R$5,"Impacto",))) -> Probabilidad | T14: Manual | U14: =IF(T14=Tablas!$U$3,"25%",IF(T14=Tablas!$U$4,"15%",)) -> 15% | V14: 0.12 | W14: 80% | X14: 0.096 | Y14: =IF(X14<=12%,"Bajo",IF(X14<=24%,"Medio",IF(X14<=40%,"Alto","Muy Alto"))) -> Bajo | Z14: 1. Apropiación y adopción de valores y principios institucionales. 2. Desarrollo del reto de integridad actualizado con la gestión antisobormo. 3. Fortalecimiento del botón "Yo Denuncio". 4. Fortalecimiento de la cultura de integridad y transparencia. | AA14: Se realiza la revisión y actualización de los riesgos identificados por el proceso, así como los controles establecidos y se evidencia ejecución de los mismos por parte de proceso y no se ha identificado materialización de riegos de soborno.
B15: ATHP05 - FORMACION Y CAPACITACION PERSONAL ADMINISTRATIVO | C15: Que un colaborador interno prometa u ofrezca dádivas para la asignación de recursos por concepto de apoyo posgradual. | D15: Gestor y/o Jefe de la Dirección de Talento Humano | E15: Tercero contratista de la UCundinamarca | F15: Perdida de la confianza y la capacidad de gestión institucional y deterioro de la reputación institucional. | G15: Deficiencia en las acciones de control implementadas que prevengan actuaciones o comportamientos en contravía de lo dispuesta en del Código Autonómico de la UCundinamarca Generación Siglo XXI. | H15: Muy baja | I15: =IF(H15=Tablas!$D$7,"20%",IF(H15=Tablas!$D$6,"40%",IF(H15=Tablas!$D$5,"60%",IF(H15=Tablas!$D$4,"80%",IF(H15=Tablas!$D$3,"100%"))))) -> 20% | J15: Mayor | K15: =IF(J15=Tablas!$G$10,"20%",IF(J15=Tablas!$H$10,"40%",IF(J15=Tablas!$I$10,"60%",IF(J15=Tablas!$J$10,"80%",IF(J15=Tablas!$K$10,"100%"))))) -> 80% | L15: 0.16 | M15: Medio | O15: Dirección de Talento Humano | P15: Registro de asistencia a la socialización. Reportes generados | Q15: Preventivo | R15: =IF(Q15=Tablas!$R$3,"25%",IF(Q15=Tablas!$R$4,"15%",IF(Q15=Tablas!$R$5,"10%",))) -> 25% | S15: =IF(Q15=Tablas!$R$3,"Probabilidad",IF(Q15=Tablas!$R$4,"Probabilidad",IF(Q15=Tablas!$R$5,"Impacto",))) -> Probabilidad | T15: Manual | U15: =IF(T15=Tablas!$U$3,"25%",IF(T15=Tablas!$U$4,"15%",)) -> 15% | V15: 0.12 | W15: 80% | X15: 0.096 | Y15: Bajo | Z15: 1. Apropiación y adopción de valores y principios institucionales. 2. Desarrollo del reto de integridad actualizado con la gestión antisobormo. 3. Fortalecimiento del botón "Yo Denuncio". 4. Fortalecimiento de la cultura de integridad y transparencia. 5. Aplicación del procedimiento de debida diligencia. | AA15: No se evidencia relación de los controles que se están ejecutando para la mitigación del riesgo.
B16: ATHP06 - EVALUACIÓN DESEMPEÑO ADMINISTRATIVO | C16: Que un colaborador interno prometa u ofrezca dádivas con el fin de modificar o cambiar la calificación obtenida en la evaluación de desempeño administrativo. | D16: Jefe inmediato / Gestor encargado de la Dirección de Sistemas y Tecnologías | E16: Dirección de Talento Humano / Funcionario designado | F16: Deterioro de la reputación institucional que afecta su gobernanza. | G16: Deficiencia en las acciones de control implementadas que prevengan actuaciones o comportamientos en contravía de lo dispuesta en del Código Autonómico de la UCundinamarca Generación Siglo XXI. | H16: Muy baja | I16: =IF(H16=Tablas!$D$7,"20%",IF(H16=Tablas!$D$6,"40%",IF(H16=Tablas!$D$5,"60%",IF(H16=Tablas!$D$4,"80%",IF(H16=Tablas!$D$3,"100%"))))) -> 20% | J16: Mayor | K16: =IF(J16=Tablas!$G$10,"20%",IF(J16=Tablas!$H$10,"40%",IF(J16=Tablas!$I$10,"60%",IF(J16=Tablas!$J$10,"80%",IF(J16=Tablas!$K$10,"100%"))))) -> 80% | L16: 0.16 | M16: Medio | N16: Correo de seguimiento a compromisos laborales de evaluación administrativa Cronograma Antisoborno para temas de Evaluación Informe Publicado en Portal Institucional con resultados de Evaluación anual | O16: Dirección de Talento Humano | P16: Registro de asistencia a la socialización. Reportes generados | Q16: Preventivo | R16: =IF(Q16=Tablas!$R$3,"25%",IF(Q16=Tablas!$R$4,"15%",IF(Q16=Tablas!$R$5,"10%",))) -> 25% | S16: =IF(Q16=Tablas!$R$3,"Probabilidad",IF(Q16=Tablas!$R$4,"Probabilidad",IF(Q16=Tablas!$R$5,"Impacto",))) -> Probabilidad | T16: Manual | U16: =IF(T16=Tablas!$U$3,"25%",IF(T16=Tablas!$U$4,"15%",)) -> 15% | V16: 0.12 | W16: 80% | X16: 0.096 | Y16: Bajo | Z16: 1. Apropiación y adopción de valores y principios institucionales. 2. Desarrollo del reto de integridad actualizado con la gestión antisobormo. 3. Fortalecimiento del botón "Yo Denuncio". 4. Fortalecimiento de la cultura de integridad y transparencia. | AA16: Se realiza la revisión y actualización de los riesgos identificados por el proceso, así como los controles establecidos y se evidencia ejecución de los mismos por parte de proceso y no se ha identificado materialización de riegos de soborno.
